Trans No.,Service Area Categorisation,Service Division Categorisation,Responsible Unit,Unit Code,Expenses Type,Expenses Sub Type,Expense Code,Narrative,Amount,Invoice Date,Cap/Rev,Supplier Name
1,Central Services,SupS Chief Execs,Local Involvement Network,A01039,Third Party Payments          ,Private Contractors           ,EH10,Contract Payments                       ,10423.75,02/06/2016,R,MERTON VOLUNTARY SERV COUNCIL 
2,Cultural Env Reg&Plan Services,Comm Safety (Crime Reduction),CCTV,A01200,Premises Related Expenditure  ,Energy Costs                  ,BB02,Electricity                             ,1049.9,08/07/2016,R,SCOTTISH POWER                
3,Cultural Env Reg&Plan Services,Comm Safety (Crime Reduction),CCTV,A01200,Supplies & Services           ,Equip Furniture/Materials     ,DA01,Equipment - R & M                       ,3554.12,31/07/2016,R,TYCO FIRE & INTEGR'TD SOL (UK 
4,Cultural Env Reg&Plan Services,Comm Safety (Crime Reduction),CCTV,A01200,Supplies & Services           ,Services                      ,DF57,Consulting Engineers Fees               ,744.52,02/06/2016,R,GLOBAL MSC SECURITY LTD       
5,Cultural Env Reg&Plan Services,Comm Safety (Crime Reduction),CCTV,A01200,Supplies & Services           ,Comms and Computing           ,DG15,Network Maintenance                     ,800,01/04/2016,R,VIRGIN MEDIA PAYMENTS LTD     
6,Central Services,SupS Chief Execs,NON-STATUTORY MARKETING & COMM,A02019,Supplies & Services           ,Prntng Stnry Gen Off Exp      ,DE22,Marketing                               ,3500,27/05/2016,R,REDACTED
7,Central Services,SupS Chief Execs,NON-STATUTORY MARKETING & COMM,A02019,Supplies & Services           ,Services                      ,DF02,Misc Advertising/Publicity              ,537.5,31/07/2016,R,JCDECAUX UNITED KINGDOM       
8,Central Services,SupS Chief Execs,NON-STATUTORY MARKETING & COMM,A02019,Supplies & Services           ,Services                      ,DF02,Misc Advertising/Publicity              ,537.5,31/07/2016,R,JCDECAUX UNITED KINGDOM       
9,Central Services,SupS Chief Execs,Democratic Services,A02023,Supplies & Services           ,Equip Furniture/Materials     ,DA09,Equip-Purchases                         ,3051,13/11/2015,R,BACK CARE SOLUTIONS           
10,Central Services,SupS Chief Execs,Democratic Services,A02023,Supplies & Services           ,Expenses                      ,DH79,INCOMING MAYOR (MAY-MARCH)              ,530,19/07/2016,R,SEASONS FLORISTS              
11,Central Services,SupS Chief Execs,Democratic Services,A02023,Supplies & Services           ,Expenses                      ,DH79,INCOMING MAYOR (MAY-MARCH)              ,900,03/07/2016,R,CAVALLI BROS LTD (MOKA)       
12,Central Services,SupS Chief Execs,Press and Public Relations.,A02026,Supplies & Services           ,Prntng Stnry Gen Off Exp      ,DE20,Council Magazine                        ,625,04/05/2016,R,REDACTED
13,Central Services,SupS Chief Execs,Press and Public Relations.,A02026,Supplies & Services           ,Prntng Stnry Gen Off Exp      ,DE20,Council Magazine                        ,1946,01/07/2016,R,LONDON LETTERBOX MARKETING    
14,Central Services,SupS Chief Execs,Press and Public Relations.,A02026,Supplies & Services           ,Prntng Stnry Gen Off Exp      ,DE20,Council Magazine                        ,1946,01/07/2016,R,LONDON LETTERBOX MARKETING    
15,Central Services,SupS Chief Execs,Press and Public Relations.,A02026,Supplies & Services           ,Grants and Subscriptions      ,DJ04,Subscriptions                           ,6638,31/03/2016,R,ACCESS INTEL. MEDIA & COM LTD 
16,Central Services,SupS Chief Execs,Sales and Marketing                     ,A02034,Supplies & Services           ,Prntng Stnry Gen Off Exp      ,DE22,Marketing                               ,700,22/06/2016,R,WIMBLEDON BOOKFEST            
17,CS -Oth Operating Inc & Expend,T/A Corporate Services,Prting Jobs - Internal,A03040,Supplies & Services           ,Prntng Stnry Gen Off Exp      ,DE05,Micro-filming                           ,1337.86,31/07/2016,R,MISL LTD                      
18,CS -Oth Operating Inc & Expend,T/A Corporate Services,Prting Jobs - Internal,A03040,Supplies & Services           ,Prntng Stnry Gen Off Exp      ,DE05,Micro-filming                           ,18658.99,31/07/2016,R,MISL LTD                      
19,CS -Oth Operating Inc & Expend,T/A Corporate Services,Prting Jobs - Internal,A03040,Supplies & Services           ,Prntng Stnry Gen Off Exp      ,DE05,Micro-filming                           ,590.75,24/06/2016,R,MISL LTD                      
20,CS -Oth Operating Inc & Expend,T/A Corporate Services,Prting Jobs - Internal,A03040,Supplies & Services           ,Prntng Stnry Gen Off Exp      ,DE05,Micro-filming                           ,510.98,31/05/2016,R,MISL LTD                      
21,CS -Oth Operating Inc & Expend,T/A Corporate Services,Prting Jobs - Internal,A03040,Supplies & Services           ,Prntng Stnry Gen Off Exp      ,DE05,Micro-filming                           ,2009.76,31/05/2016,R,MISL LTD                      
22,CS -Oth Operating Inc & Expend,T/A Corporate Services,Prting Jobs - Internal,A03040,Supplies & Services           ,Prntng Stnry Gen Off Exp      ,DE05,Micro-filming                           ,3032.11,31/05/2016,R,MISL LTD                      
23,CS -Oth Operating Inc & Expend,T/A Corporate Services,Prting Jobs - Internal,A03040,Supplies & Services           ,Prntng Stnry Gen Off Exp      ,DE05,Micro-filming                           ,519.89,30/06/2016,R,MISL LTD                      
24,CS -Oth Operating Inc & Expend,T/A Corporate Services,Prting Jobs - Internal,A03040,Supplies & Services           ,Prntng Stnry Gen Off Exp      ,DE05,Micro-filming                           ,588.05,30/06/2016,R,MISL LTD                      
25,CS -Oth Operating Inc & Expend,T/A Corporate Services,Prting Jobs - Internal,A03040,Supplies & Services           ,Prntng Stnry Gen Off Exp      ,DE05,Micro-filming                           ,751.18,30/06/2016,R,MISL LTD                      
26,CS -Oth Operating Inc & Expend,T/A Corporate Services,Prting Jobs - Internal,A03040,Supplies & Services           ,Prntng Stnry Gen Off Exp      ,DE05,Micro-filming                           ,1202.64,06/07/2016,R,MISL LTD                      
27,CS -Oth Operating Inc & Expend,T/A Corporate Services,Prting Jobs - Internal,A03040,Supplies & Services           ,Prntng Stnry Gen Off Exp      ,DE05,Micro-filming                           ,1276.01,06/07/2016,R,MISL LTD                      
28,CS -Oth Operating Inc & Expend,T/A Corporate Services,Prting Jobs - Internal,A03040,Supplies & Services           ,Prntng Stnry Gen Off Exp      ,DE05,Micro-filming                           ,2184.41,07/07/2016,R,MISL LTD                      
29,CS -Oth Operating Inc & Expend,T/A Corporate Services,Prting Jobs - Internal,A03040,Supplies & Services           ,Prntng Stnry Gen Off Exp      ,DE05,Micro-filming                           ,22215.26,07/07/2016,R,MISL LTD                      
30,CS -Oth Operating Inc & Expend,T/A Corporate Services,Prtng Jobs - Ext Agncy,A03041,Supplies & Services           ,Prntng Stnry Gen Off Exp      ,DE01,External Printing                       ,2840,31/07/2016,R,CUSTOMISED GRAPHICS PRINT LTD 
31,CS -Oth Operating Inc & Expend,T/A Corporate Services,Prtng Jobs - Ext Agncy,A03041,Supplies & Services           ,Prntng Stnry Gen Off Exp      ,DE01,External Printing                       ,7624.5,29/06/2016,R,CLIFFE ENTERPRISE LTD         
32,CS -Oth Operating Inc & Expend,T/A Corporate Services,Prtng Jobs - Ext Agncy,A03041,Supplies & Services           ,Prntng Stnry Gen Off Exp      ,DE01,External Printing                       ,757,29/06/2016,R,IMPRESS PRINT SERVICES LTD    
33,CS -Oth Operating Inc & Expend,T/A Corporate Services,Prtng Jobs - Ext Agncy,A03041,Supplies & Services           ,Prntng Stnry Gen Off Exp      ,DE01,External Printing                       ,9528,12/07/2016,R,CUSTOMISED GRAPHICS PRINT LTD 
34,CS -Oth Operating Inc & Expend,T/A Corporate Services,Prtng Jobs - Ext Agncy,A03041,Supplies & Services           ,Prntng Stnry Gen Off Exp      ,DE01,External Printing                       ,700,14/07/2016,R,CUSTOMISED GRAPHICS PRINT LTD 
35,CS -Oth Operating Inc & Expend,T/A Corporate Services,Prtng Jobs - Ext Agncy,A03041,Supplies & Services           ,Prntng Stnry Gen Off Exp      ,DE01,External Printing                       ,2080,25/07/2016,R,CUSTOMISED GRAPHICS PRINT LTD 
36,CS -Oth Operating Inc & Expend,T/A Corporate Services,PrintUnit-HighVolPhtcopying,A03042,Supplies & Services           ,Prntng Stnry Gen Off Exp      ,DE03,Stationery                              ,580,22/06/2016,R,ENCORE ENVELOPES LIMITED      
37,CS -Oth Operating Inc & Expend,T/A Corporate Services,PrintUnit-HighVolPhtcopying,A03042,Supplies & Services           ,Comms and Computing           ,DG04,Postage - General                       ,-983.25,31/07/2016,R,ENCORE PACKAGING SOLUTION     
38,CS -Oth Operating Inc & Expend,T/A Corporate Services,PrintUnit-HighVolPhtcopying,A03042,Supplies & Services           ,Comms and Computing           ,DG04,Postage - General                       ,983.25,31/07/2016,R,ENCORE PACKAGING SOLUTION     
39,CS -Oth Operating Inc & Expend,T/A Corporate Services,Translation Services,A04060,Supplies & Services           ,Services                      ,DF45,Payment of Sessional Workers            ,845,30/06/2016,R,COSMIC EUROPE LIMTED          
40,CS -Oth Operating Inc & Expend,T/A Corporate Services,Translation Services,A04060,Supplies & Services           ,Services                      ,DF45,Payment of Sessional Workers            ,1035,30/06/2016,R,COSMIC EUROPE LIMTED          
41,CS -Oth Operating Inc & Expend,T/A Corporate Services,Translation Services,A04060,Supplies & Services           ,Services                      ,DF46,Payment for Signers,1750,31/07/2016,R,COSMIC EUROPE LIMTED          
42,Central Services,SupS Best Value,Merton Link,A04070,Premises Related Expenditure  ,Ground Maintenance Costs      ,BL03,Maintenance of Grounds                  ,600,29/06/2016,R,PHORMIUM LANDSCAPE DESIGN     
43,Central Services,SupS Best Value,Merton Link,A04070,Supplies & Services           ,Prntng Stnry Gen Off Exp      ,DE30,General Office Expense                  ,1381.26,18/06/2016,R,PHS GROUP                     
44,Central Services,SupS Comm and Member Services,COMMERICIAL SERVICES,A04085,Employees                     ,Direct Employee Expenses      ,AA17,Agency Staff & Casual Paymts            ,742.5,31/07/2016,R,HAYS SPECIALIST RECRUITM'T LTD
45,Central Services,SupS Comm and Member Services,COMMERICIAL SERVICES,A04085,Employees                     ,Direct Employee Expenses      ,AA17,Agency Staff & Casual Paymts            ,1893.75,31/07/2016,R,HAYS SPECIALIST RECRUITM'T LTD
46,Central Services,SupS Comm and Member Services,COMMERICIAL SERVICES,A04085,Employees                     ,Direct Employee Expenses      ,AA17,Agency Staff & Casual Paymts            ,1980,31/07/2016,R,HAYS SPECIALIST RECRUITM'T LTD
47,Central Services,SupS Comm and Member Services,COMMERICIAL SERVICES,A04085,Employees                     ,Direct Employee Expenses      ,AA17,Agency Staff & Casual Paymts            ,2636.25,31/07/2016,R,HAYS SPECIALIST RECRUITM'T LTD
48,Central Services,SupS Comm and Member Services,COMMERICIAL SERVICES,A04085,Employees                     ,Direct Employee Expenses      ,AA17,Agency Staff & Casual Paymts            ,2636.25,24/06/2016,R,HAYS SPECIALIST RECRUITM'T LTD
49,Central Services,SupS Comm and Member Services,COMMERICIAL SERVICES,A04085,Employees                     ,Direct Employee Expenses      ,AA17,Agency Staff & Casual Paymts            ,2109,06/07/2016,R,HAYS SPECIALIST RECRUITM'T LTD
50,Central Services,SupS Comm and Member Services,COMMERICIAL SERVICES,A04085,Employees                     ,Direct Employee Expenses      ,AA17,Agency Staff & Casual Paymts            ,2636.25,29/06/2016,R,HAYS SPECIALIST RECRUITM'T LTD
51,Central Services,SupS Comm and Member Services,COMMERICIAL SERVICES,A04085,Employees                     ,Direct Employee Expenses      ,AA17,Agency Staff & Casual Paymts            ,2636.25,13/07/2016,R,HAYS SPECIALIST RECRUITM'T LTD
52,Central Services,SupS Comm and Member Services,COMMERICIAL SERVICES,A04085,Employees                     ,Direct Employee Expenses      ,AA17,Agency Staff & Casual Paymts            ,1980,14/07/2016,R,HAYS SPECIALIST RECRUITM'T LTD
53,Highways & Transport Services,On-street parking,Blue Badge Service,A04088,Supplies & Services           ,Services                      ,DF14,Doctors and Other Fees                  ,600,31/07/2016,R,LLOYDS TSB COMMERCIAL FINANCE 
54,Highways & Transport Services,On-street parking,Blue Badge Service,A04088,Supplies & Services           ,Services                      ,DF14,Doctors and Other Fees                  ,900,31/07/2016,R,LLOYDS TSB COMMERCIAL FINANCE 
55,Highways & Transport Services,On-street parking,Blue Badge Service,A04088,Supplies & Services           ,Comms and Computing           ,DG15,Network Maintenance                     ,812.07,01/07/2016,R,NORTHGATE PUBLIC SERV (UK) LTD
56,Central Services,SupS Health & Safety,Learning and Development,B06146,Employees                     ,Indirect Employee Expenses    ,AB57,EXTERNAL TRAINING COSTS                 ,1250,29/06/2016,R,SALVEO SAFETY                 
57,Central Services,SupS Health & Safety,Learning and Development,B06146,Employees                     ,Indirect Employee Expenses    ,AB57,EXTERNAL TRAINING COSTS                 ,1960,14/06/2016,R,ARCO TRAINING SERVICES        
58,Central Services,SupS Health & Safety,Learning and Development,B06146,Employees                     ,Indirect Employee Expenses    ,AB57,EXTERNAL TRAINING COSTS                 ,4000,01/07/2016,R,LEARNING POOL LTD             
59,Central Services,SupS Health & Safety,Learning and Development,B06146,Employees                     ,Indirect Employee Expenses    ,AB57,EXTERNAL TRAINING COSTS                 ,14125,01/07/2016,R,LEARNING POOL LTD             
60,Central Services,SupS Health & Safety,Learning and Development,B06146,Employees                     ,Indirect Employee Expenses    ,AB57,EXTERNAL TRAINING COSTS                 ,903,06/07/2016,R,WHITE PAPER                   
61,Central Services,SupS Health & Safety,Learning and Development,B06146,Employees                     ,Indirect Employee Expenses    ,AB57,EXTERNAL TRAINING COSTS                 ,2100,21/03/2016,R,REDACTED
62,Central Services,SupS Health & Safety,Learning and Development,B06146,Employees                     ,Indirect Employee Expenses    ,AB57,EXTERNAL TRAINING COSTS                 ,550,12/07/2016,R,MSH TRAINING & CONSULTANCY LTD
63,Central Services,SupS Health & Safety,Learning and Development,B06146,Employees                     ,Indirect Employee Expenses    ,AB57,EXTERNAL TRAINING COSTS                 ,550,12/07/2016,R,MSH TRAINING & CONSULTANCY LTD
64,Central Services,SupS Health & Safety,Learning and Development,B06146,Employees                     ,Indirect Employee Expenses    ,AB57,EXTERNAL TRAINING COSTS                 ,830,08/07/2016,R,MAYBO LTD                     
65,Central Services,SupS Health & Safety,Learning and Development,B06146,Employees                     ,Indirect Employee Expenses    ,AB57,EXTERNAL TRAINING COSTS                 ,1754.45,05/07/2016,R,CIPFA                         
66,Central Services,SupS Health & Safety,Learning and Development,B06146,Employees                     ,Indirect Employee Expenses    ,AB57,EXTERNAL TRAINING COSTS                 ,1380,11/07/2016,R,LONDON COUNCILS               
67,Central Services,SupS Health & Safety,Learning and Development,B06146,Employees                     ,Indirect Employee Expenses    ,AB57,EXTERNAL TRAINING COSTS                 ,595,14/07/2016,R,BRITISH SAFETY COUNCIL        
68,Central Services,SupS Health & Safety,Learning and Development,B06146,Employees                     ,Indirect Employee Expenses    ,AB57,EXTERNAL TRAINING COSTS                 ,550,15/07/2016,R,MSH TRAINING & CONSULTANCY LTD
69,Central Services,SupS Health & Safety,Learning and Development,B06146,Employees                     ,Indirect Employee Expenses    ,AB57,EXTERNAL TRAINING COSTS                 ,1575,15/07/2016,R,PREMIER PARTNERSHIP           
70,,,Library Self Service                    ,CC011AB,New Construction Conversion and Renovation,,B5,Suppliers - Site works                  ,511.66,12/07/2016,C,TERRALEC LTD                  
71,,,Library Self Service                    ,CC011AB,New Construction Conversion and Renovation,,B5,Suppliers - Site works                  ,600,12/07/2016,C,TERRALEC LTD                  
72,,,Library Self Service                    ,CC011AB,New Construction Conversion and Renovation,,B5,Suppliers - Site works                  ,1465.11,12/07/2016,C,TERRALEC LTD                  
73,,,Library Self Service                    ,CC011AB,New Construction Conversion and Renovation,,B5,Suppliers - Site works                  ,1534.63,12/07/2016,C,TERRALEC LTD                  
74,,,Library Self Service                    ,CC011AB,New Construction Conversion and Renovation,,B5,Suppliers - Site works                  ,3399.79,12/07/2016,C,TERRALEC LTD                  
75,,,Library Self Service                    ,CC011AB,Vehicles Plant Equipment and Machinery,,D3,Equipment                               ,3132.12,28/06/2016,C,SICO EUROPE LIMITED           
76,,,Library Self Service                    ,CC011AB,Vehicles Plant Equipment and Machinery,,D4,Specialist furniture                    ,4010.8,06/07/2016,C,MAINSTAGE LTD                 
77,,,CCTV (match funding)                    ,CE002EA,New Construction Conversion and Renovation,,B6,Other Costs - Site works                ,1124,23/05/2016,C,UK POWER NETWORKS (OPERATIONS)
78,,,Parks Bin Finance Lease                 ,CE003EA,Vehicles Plant Equipment and Machinery,,D3,Equipment                               ,6552,21/05/2016,C,MACQUARIE EQUIPMENT FINANCE   
79,,,Parks Bin Finance Lease                 ,CE003EA,Vehicles Plant Equipment and Machinery,,D3,Equipment                               ,-6552,21/05/2016,C,MACQUARIE EQUIPMENT FINANCE   
80,,,Disabled Facilities Grant DCLG          ,CE004RA,Other Capital Expenditure,,E1,Grants                                  ,1252.92,31/07/2016,C,CBS ADAPTATION                
81,,,Disabled Facilities Grant DCLG          ,CE004RA,Other Capital Expenditure,,E1,Grants                                  ,1269.21,31/07/2016,C,CBS ADAPTATION                
82,,,Disabled Facilities Grant DCLG          ,CE004RA,Other Capital Expenditure,,E1,Grants                                  ,1416.35,01/07/2016,C,CBS ADAPTATION                
83,,,Disabled Facilities Grant DCLG          ,CE004RA,Other Capital Expenditure,,E1,Grants                                  ,1713,01/07/2016,C,TLC STAIRLIFTS                
84,,,Disabled Facilities Grant DCLG          ,CE004RA,Other Capital Expenditure,,E1,Grants                                  ,2048.4,01/07/2016,C,STAYING FIRST                 
85,,,Disabled Facilities Grant DCLG          ,CE004RA,Other Capital Expenditure,,E1,Grants                                  ,2420.26,01/07/2016,C,STAYING FIRST                 
86,,,Disabled Facilities Grant DCLG          ,CE004RA,Other Capital Expenditure,,E1,Grants                                  ,3077.28,01/07/2016,C,STAYING FIRST                 
87,,,Disabled Facilities Grant DCLG          ,CE004RA,Other Capital Expenditure,,E1,Grants                                  ,3295,01/07/2016,C,FREEWAY LIFT SERVICES LTD     
88,,,Disabled Facilities Grant DCLG          ,CE004RA,Other Capital Expenditure,,E1,Grants                                  ,5310,01/07/2016,C,WEIR BUILDING SERVICES        
89,,,Disabled Facilities Grant DCLG          ,CE004RA,Other Capital Expenditure,,E1,Grants                                  ,8030,01/07/2016,C,SD FAMILY BUILDERS            
90,,,Disabled Facilities Grant DCLG          ,CE004RA,Other Capital Expenditure,,E1,Grants                                  ,13000,01/07/2016,C,LONGMAN DEVELOPMENTS LIMITED  
91,,,Disabled Facilities Grant DCLG          ,CE004RA,Other Capital Expenditure,,E1,Grants                                  ,688.43,14/07/2016,C,AMWELL CONSTRUCTION LTD       
92,,,Disabled Facilities Grant DCLG          ,CE004RA,Other Capital Expenditure,,E1,Grants                                  ,5295,15/07/2016,C,ASCENDIT LIFTS LTD            
93,,,Disabled Facilities Grant DCLG          ,CE004RA,Other Capital Expenditure,,E1,Grants                                  ,600,22/07/2016,C,SUTTON STAYING PUT            
94,,,Disabled Facilities Grant DCLG          ,CE004RA,Other Capital Expenditure,,E1,Grants                                  ,691.2,22/07/2016,C,REDACTED
95,,,Disabled Facilities Grant DCLG          ,CE004RA,Other Capital Expenditure,,E1,Grants                                  ,984.54,22/07/2016,C,CBS ADAPTATION                
96,,,Disabled Facilities Grant DCLG          ,CE004RA,Other Capital Expenditure,,E1,Grants                                  ,1554,22/07/2016,C,CBS ADAPTATION                
97,,,Disabled Facilities Grant DCLG          ,CE004RA,Other Capital Expenditure,,E1,Grants                                  ,2190,22/07/2016,C,LONGMAN DEVELOPMENTS LIMITED  
98,,,Disabled Facilities Grant DCLG          ,CE004RA,Other Capital Expenditure,,E1,Grants                                  ,2578.66,22/07/2016,C,CBS ADAPTATION                
99,,,Disabled Facilities Grant DCLG          ,CE004RA,Other Capital Expenditure,,E1,Grants                                  ,3828,22/07/2016,C,REDACTED
100,,,Disabled Facilities Grant DCLG          ,CE004RA,Other Capital Expenditure,,E1,Grants                                  ,5760,22/07/2016,C,VISTASCAPES                   
101,,,Disabled Facilities Grant DCLG          ,CE004RA,Other Capital Expenditure,,E1,Grants                                  ,10200,25/07/2016,C,TLC STAIRLIFTS                
102,,,Parks Investment                        ,CE013SA,New Construction Conversion and Renovation,,B4,Contractor - Site works                 ,7200,24/06/2016,C,TAYLOR BUILDING COMPANY LTD   
103,,,Parks Investment                        ,CE013SA,New Construction Conversion and Renovation,,B4,Contractor - Site works                 ,7900,29/06/2016,C,THE CRESCENT FENCING CO.      
104,,,Parks Investment                        ,CE013SA,New Construction Conversion and Renovation,,B4,Contractor - Site works                 ,6850,01/07/2016,C,JUST METAL UK LTD             
105,,,Parks Investment                        ,CE013SA,New Construction Conversion and Renovation,,B4,Contractor - Site works                 ,8137.23,15/07/2016,C,HAGS - SMP LIMITED            
106,,,Parks Investment                        ,CE013SA,New Construction Conversion and Renovation,,B5,Suppliers - Site works                  ,1631,13/07/2016,C,EARTH ANCHORS LTD             
107,,,Surface Water Drainage                  ,CE024FA,New Construction Conversion and Renovation,,B4,Contractor - Site works                 ,8003.32,27/06/2016,C,FM CONWAY LTD                 
108,,,Surface Water Drainage                  ,CE024FA,New Construction Conversion and Renovation,,B4,Contractor - Site works                 ,2720.31,08/07/2016,C,FM CONWAY LTD                 
109,,,Surface Water Drainage                  ,CE024FA,New Construction Conversion and Renovation,,B4,Contractor - Site works                 ,6000,08/07/2016,C,FM CONWAY LTD                 
110,,,Borough Roads Maintenance               ,CE026FA,New Construction Conversion and Renovation,,B4,Contractor - Site works                 ,8856.86,27/06/2016,C,FM CONWAY LTD                 
111,,,Borough Roads Maintenance               ,CE026FA,New Construction Conversion and Renovation,,B4,Contractor - Site works                 ,13826.88,27/06/2016,C,FM CONWAY LTD                 
112,,,Borough Roads Maintenance               ,CE026FA,New Construction Conversion and Renovation,,B4,Contractor - Site works                 ,25000,27/06/2016,C,FM CONWAY LTD                 
113,,,Borough Roads Maintenance               ,CE026FA,New Construction Conversion and Renovation,,B4,Contractor - Site works                 ,26000,27/06/2016,C,FM CONWAY LTD                 
114,,,Borough Roads Maintenance               ,CE026FA,New Construction Conversion and Renovation,,B4,Contractor - Site works                 ,48599.81,27/06/2016,C,FM CONWAY LTD                 
115,,,Borough Roads Maintenance               ,CE026FA,New Construction Conversion and Renovation,,B4,Contractor - Site works                 ,147341.96,27/06/2016,C,FM CONWAY LTD                 
116,,,Borough Roads Maintenance               ,CE026FA,New Construction Conversion and Renovation,,B4,Contractor - Site works                 ,54686.52,13/07/2016,C,FM CONWAY LTD                 
117,,,Borough Roads Maintenance               ,CE026FA,New Construction Conversion and Renovation,,B4,Contractor - Site works                 ,10642.69,12/07/2016,C,FM CONWAY LTD                 
118,,,Borough Roads Maintenance               ,CE026FA,New Construction Conversion and Renovation,,B4,Contractor - Site works                 ,15897.94,12/07/2016,C,FM CONWAY LTD                 
119,,,Borough Roads Maintenance               ,CE026FA,New Construction Conversion and Renovation,,B4,Contractor - Site works                 ,19470.72,12/07/2016,C,FM CONWAY LTD                 
120,,,Borough Roads Maintenance               ,CE026FA,New Construction Conversion and Renovation,,B4,Contractor - Site works                 ,31595.97,12/07/2016,C,FM CONWAY LTD                 
121,,,Borough Roads Maintenance               ,CE026FA,New Construction Conversion and Renovation,,B4,Contractor - Site works                 ,137729.41,12/07/2016,C,FM CONWAY LTD                 
122,,,Borough Roads Maintenance               ,CE026FA,New Construction Conversion and Renovation,,B4,Contractor - Site works                 ,15398.49,08/07/2016,C,FM CONWAY LTD                 
123,,,TFL Projected Slippage                  ,CE026SA,New Construction Conversion and Renovation,,B4,Contractor - Site works                 ,1258.87,31/07/2016,C,KIER INTEGRATED SERVICES LTD  
124,,,TFL Projected Slippage                  ,CE026SA,New Construction Conversion and Renovation,,B4,Contractor - Site works                 ,1093.24,31/07/2016,C,FM CONWAY LTD                 
125,,,TFL Projected Slippage                  ,CE026SA,New Construction Conversion and Renovation,,B4,Contractor - Site works                 ,12299,27/06/2016,C,FM CONWAY LTD                 
126,,,TFL Projected Slippage                  ,CE026SA,New Construction Conversion and Renovation,,B4,Contractor - Site works                 ,14032.4,27/06/2016,C,FM CONWAY LTD                 
127,,,TFL Projected Slippage                  ,CE026SA,New Construction Conversion and Renovation,,B4,Contractor - Site works                 ,49933.68,29/06/2016,C,FM CONWAY LTD                 
128,,,TFL Projected Slippage                  ,CE026SA,New Construction Conversion and Renovation,,B4,Contractor - Site works                 ,10000,13/07/2016,C,FM CONWAY LTD                 
129,,,TFL Projected Slippage                  ,CE026SA,New Construction Conversion and Renovation,,B4,Contractor - Site works                 ,11000,13/07/2016,C,FM CONWAY LTD                 
130,,,TFL Projected Slippage                  ,CE026SA,New Construction Conversion and Renovation,,B4,Contractor - Site works                 ,2631.77,08/07/2016,C,FM CONWAY LTD                 
131,,,TFL Projected Slippage                  ,CE026SA,New Construction Conversion and Renovation,,B4,Contractor - Site works                 ,4314.41,08/07/2016,C,FM CONWAY LTD                 
132,,,TFL Projected Slippage                  ,CE026SA,New Construction Conversion and Renovation,,B4,Contractor - Site works                 ,7574.96,08/07/2016,C,FM CONWAY LTD                 
133,,,TFL Projected Slippage                  ,CE026SA,New Construction Conversion and Renovation,,B4,Contractor - Site works                 ,8988.08,08/07/2016,C,FM CONWAY LTD                 
134,,,TFL Projected Slippage                  ,CE026SA,New Construction Conversion and Renovation,,B4,Contractor - Site works                 ,9760.92,08/07/2016,C,FM CONWAY LTD                 
135,,,TFL Projected Slippage                  ,CE026SA,New Construction Conversion and Renovation,,B4,Contractor - Site works                 ,39549.06,08/07/2016,C,FM CONWAY LTD                 
136,,,TFL Projected Slippage                  ,CE026SA,New Construction Conversion and Renovation,,B5,Suppliers - Site works                  ,1933,31/07/2016,C,GILLETT&JOHNSTON (CROYDON) LTD
137,,,TFL Projected Slippage                  ,CE026SA,New Construction Conversion and Renovation,,B5,Suppliers - Site works                  ,17500,31/07/2016,C,CIS STREET FURNITURE          
138,,,TFL Projected Slippage                  ,CE026SA,New Construction Conversion and Renovation,,B5,Suppliers - Site works                  ,880,14/06/2016,C,GILLETT&JOHNSTON (CROYDON) LTD
139,,,TFL Projected Slippage                  ,CE026SA,Vehicles Plant Equipment and Machinery,,D3,Equipment                               ,1350,31/07/2016,C,ABBEY NAMEPLATES              
140,,,Maintain AntiSkid and Coloured          ,CE027FA,New Construction Conversion and Renovation,,B4,Contractor - Site works                 ,18309.02,12/07/2016,C,FM CONWAY LTD                 
141,,,Maintain AntiSkid and Coloured          ,CE027FA,New Construction Conversion and Renovation,,B4,Contractor - Site works                 ,18704.93,08/07/2016,C,FM CONWAY LTD                 
142,,,Repairs to Footways                     ,CE029FA,New Construction Conversion and Renovation,,B4,Contractor - Site works                 ,10000,31/07/2016,C,FM CONWAY LTD                 
143,,,Repairs to Footways                     ,CE029FA,New Construction Conversion and Renovation,,B4,Contractor - Site works                 ,17182.02,31/07/2016,C,FM CONWAY LTD                 
144,,,Repairs to Footways                     ,CE029FA,New Construction Conversion and Renovation,,B4,Contractor - Site works                 ,30000,31/07/2016,C,FM CONWAY LTD                 
145,,,Repairs to Footways                     ,CE029FA,New Construction Conversion and Renovation,,B4,Contractor - Site works                 ,30000,31/07/2016,C,FM CONWAY LTD                 
146,,,Repairs to Footways                     ,CE029FA,New Construction Conversion and Renovation,,B4,Contractor - Site works                 ,25000,29/06/2016,C,FM CONWAY LTD                 
147,,,Repairs to Footways                     ,CE029FA,New Construction Conversion and Renovation,,B4,Contractor - Site works                 ,90000,29/06/2016,C,FM CONWAY LTD                 
148,,,Repairs to Footways                     ,CE029FA,New Construction Conversion and Renovation,,B4,Contractor - Site works                 ,20000,13/07/2016,C,FM CONWAY LTD                 
149,,,Leisure Centre Plant & Machine          ,CE038MA,New Construction Conversion and Renovation,,B4,Contractor - Site works                 ,5947,31/07/2016,C,NATIONCARE WINDOWS LTD        
150,,,Leisure Centre Plant & Machine          ,CE038MA,New Construction Conversion and Renovation,,B4,Contractor - Site works                 ,46417,31/07/2016,C,NATIONCARE WINDOWS LTD        
151,,,Leisure Centre Plant & Machine          ,CE038MA,New Construction Conversion and Renovation,,B4,Contractor - Site works                 ,1655,12/07/2016,C,REDACTED
152,,,Leisure Centre Plant & Machine          ,CE038MA,Vehicles Plant Equipment and Machinery,,D3,Equipment                               ,8650.08,18/07/2016,C,TRIDENT-UK                    
153,,,Morden Leisure Centre                   ,CE045AA,Acquisition of Land and Existing Buildings,,A2,External Fees                           ,1763,31/07/2016,C,REDACTED
154,,,Morden Leisure Centre                   ,CE045AA,Acquisition of Land and Existing Buildings,,A2,External Fees                           ,4196,29/06/2016,C,REDACTED
155,,,Morden Leisure Centre                   ,CE045AA,Acquisition of Land and Existing Buildings,,A2,External Fees                           ,-4196,01/07/2016,C,REDACTED
156,,,Morden Leisure Centre                   ,CE045AA,Acquisition of Land and Existing Buildings,,A2,External Fees                           ,4196,14/07/2016,C,REDACTED
157,,,Morden Leisure Centre                   ,CE045AA,New Construction Conversion and Renovation,,B1,Consultants Fees D&S Structure          ,3500,31/07/2016,C,SWEETT (UK) LIMITED           
158,,,Morden Leisure Centre                   ,CE045AA,New Construction Conversion and Renovation,,B1,Consultants Fees D&S Structure          ,123316,31/07/2016,C,FAITHFUL AND GOULD            
159,,,Morden Leisure Centre                   ,CE045AA,New Construction Conversion and Renovation,,B1,Consultants Fees D&S Structure          ,800,28/06/2016,C,1ST LINE DEFENCE              
160,,,Morden Leisure Centre                   ,CE045AA,New Construction Conversion and Renovation,,B1,Consultants Fees D&S Structure          ,1000,30/06/2016,C,SWEETT (UK) LIMITED           
161,,,Morden Leisure Centre                   ,CE045AA,New Construction Conversion and Renovation,,B1,Consultants Fees D&S Structure          ,1530,30/06/2016,C,OOBE LTD                      
162,,,Morden Leisure Centre                   ,CE045AA,New Construction Conversion and Renovation,,B1,Consultants Fees D&S Structure          ,3500,30/06/2016,C,SWEETT (UK) LIMITED           
163,,,Morden Leisure Centre                   ,CE045AA,New Construction Conversion and Renovation,,B1,Consultants Fees D&S Structure          ,3882,30/06/2016,C,GARDINER & THEOBALD LLP       
164,,,Morden Leisure Centre                   ,CE045AA,New Construction Conversion and Renovation,,B2,Site Surveys D&S Structure              ,1105,31/07/2016,C,GPM ECOLOGY                   
165,,,Industrial Estate Investment,CE059FA,New Construction Conversion and Renovation,,B4,Contractor - Site works                 ,39178,24/06/2016,C,KIARA DECORATING CONTRACTORS  
166,,,Town Centre Investment                  ,CE061FB,New Construction Conversion and Renovation,,B4,Contractor - Site works                 ,3244.72,31/07/2016,C,KIER INTEGRATED SERVICES LTD  
167,,,Town Centre Investment                  ,CE061FB,New Construction Conversion and Renovation,,B4,Contractor - Site works                 ,3420,31/07/2016,C,FM CONWAY LTD                 
168,,,Town Centre Investment                  ,CE061FB,New Construction Conversion and Renovation,,B4,Contractor - Site works                 ,4510,31/07/2016,C,FM CONWAY LTD                 
169,,,Town Centre Investment                  ,CE061FB,New Construction Conversion and Renovation,,B5,Suppliers - Site works                  ,5776.23,16/06/2016,C,CLEARWATER POND & LAKE MANAGMT
170,,,Town Centre Investment                  ,CE061FB,New Construction Conversion and Renovation,,B6,Other Costs - Site works                ,582,11/07/2016,C,UK POWER NETWORKS (OPERATIONS)
171,,,Town Centre Investment                  ,CE061FB,New Construction Conversion and Renovation,,B6,Other Costs - Site works                ,1124,11/07/2016,C,UK POWER NETWORKS (OPERATIONS)
172,,,Rediscover Mitcham                      ,CE061FG,New Construction Conversion and Renovation,,B4,Contractor - Site works                 ,1617.86,31/05/2016,C,KIER INTEGRATED SERVICES LTD  
173,,,Rediscover Mitcham                      ,CE061FG,New Construction Conversion and Renovation,,B4,Contractor - Site works                 ,8778.4,22/06/2016,C,KIER INTEGRATED SERVICES LTD  
174,,,Rediscover Mitcham                      ,CE061FG,New Construction Conversion and Renovation,,B4,Contractor - Site works                 ,703.16,30/06/2016,C,KIER INTEGRATED SERVICES LTD  
175,,,Rediscover Mitcham                      ,CE061FG,New Construction Conversion and Renovation,,B5,Suppliers - Site works                  ,4285,31/07/2016,C,CIS STREET FURNITURE          
176,,,Morden Shopping Parade                  ,CE061FH,New Construction Conversion and Renovation,,B4,Contractor - Site works                 ,3206.9,04/07/2016,C,ROCKIT EVENT PRODUCTION       
177,,,Morden Shopping Parade                  ,CE061FH,New Construction Conversion and Renovation,,B4,Contractor - Site works                 ,80000,04/07/2016,C,ROCKIT EVENT PRODUCTION       
178,,,B591b Shop Front Improvement,CE066FG,Other Capital Expenditure,,E1,Grants                                  ,28436.82,28/06/2016,C,CONCEPT BUILDING SERVICES LTD 
179,,,Street Tree Programme                   ,CE067FA,New Construction Conversion and Renovation,,B5,Suppliers - Site works                  ,-7149.7,31/07/2016,C,BARCHAM TREES P.L.C.          
180,,,Street Tree Programme                   ,CE067FA,New Construction Conversion and Renovation,,B5,Suppliers - Site works                  ,1152.4,31/07/2016,C,BARCHAM TREES P.L.C.          
181,,,Street Tree Programme                   ,CE067FA,New Construction Conversion and Renovation,,B5,Suppliers - Site works                  ,7149.7,31/07/2016,C,BARCHAM TREES P.L.C.          
182,,,Street Lighting Replacement Pr          ,CE068FA,New Construction Conversion and Renovation,,B4,Contractor - Site works                 ,1415.67,31/07/2016,C,KIER INTEGRATED SERVICES LTD  
183,,,Street Lighting Replacement Pr          ,CE068FA,New Construction Conversion and Renovation,,B4,Contractor - Site works                 ,4412,31/07/2016,C,KIER INTEGRATED SERVICES LTD  
184,,,Street Lighting Replacement Pr          ,CE068FA,New Construction Conversion and Renovation,,B4,Contractor - Site works                 ,1755.68,22/06/2016,C,KIER INTEGRATED SERVICES LTD  
185,,,Street Lighting Replacement Pr          ,CE068FA,New Construction Conversion and Renovation,,B4,Contractor - Site works                 ,2623.29,28/06/2016,C,KIER INTEGRATED SERVICES LTD  
186,,,Street Lighting Replacement Pr          ,CE068FA,New Construction Conversion and Renovation,,B4,Contractor - Site works                 ,28868.51,28/06/2016,C,KIER INTEGRATED SERVICES LTD  
187,,,Street Lighting Replacement Pr          ,CE068FA,New Construction Conversion and Renovation,,B4,Contractor - Site works                 ,1700.07,30/06/2016,C,KIER INTEGRATED SERVICES LTD  
188,,,Street Lighting Replacement Pr          ,CE068FA,New Construction Conversion and Renovation,,B4,Contractor - Site works                 ,2646.65,30/06/2016,C,KIER INTEGRATED SERVICES LTD  
189,,,Street Lighting Replacement Pr          ,CE068FA,New Construction Conversion and Renovation,,B4,Contractor - Site works                 ,17017.67,30/06/2016,C,KIER INTEGRATED SERVICES LTD  
190,,,Street Lighting Replacement Pr          ,CE068FA,New Construction Conversion and Renovation,,B4,Contractor - Site works                 ,1020,22/07/2016,C,TK CONSTRUCT & ELECTRIC INSTAL
191,,,Street Lighting Replacement Pr          ,CE068FA,New Construction Conversion and Renovation,,B6,Other Costs - Site works                ,593,30/06/2016,C,UK POWER NETWORKS (OPERATIONS)
192,,,Street Lighting Replacement Pr          ,CE068FA,New Construction Conversion and Renovation,,B6,Other Costs - Site works                ,500,24/06/2016,C,WIMBLEDON TREE SURGEONS       
193,,,Street Lighting Replacement Pr          ,CE068FA,New Construction Conversion and Renovation,,B6,Other Costs - Site works                ,500,11/07/2016,C,WIMBLEDON TREE SURGEONS       
194,,,Street Lighting Replacement Pr          ,CE068FA,New Construction Conversion and Renovation,,B6,Other Costs - Site works                ,2772,30/06/2016,C,UK POWER NETWORKS (OPERATIONS)
195,,,Street Lighting Replacement Pr          ,CE068FA,New Construction Conversion and Renovation,,B6,Other Costs - Site works                ,2772,30/06/2016,C,UK POWER NETWORKS (OPERATIONS)
196,,,Street Lighting Replacement Pr          ,CE068FA,New Construction Conversion and Renovation,,B6,Other Costs - Site works                ,4550,11/07/2016,C,UK POWER NETWORKS (OPERATIONS)
197,,,Street Lighting Replacement Pr          ,CE068FA,New Construction Conversion and Renovation,,B6,Other Costs - Site works                ,500,15/07/2016,C,WIMBLEDON TREE SURGEONS       
198,,,Alley Gating Scheme - Fly Tip           ,CE087FA,Other Capital Expenditure,,E1,Grants                                  ,2633.62,11/07/2016,C,FM CONWAY LTD                 
199,,,Alley Gating Scheme - Fly Tip           ,CE087FA,Other Capital Expenditure,,E1,Grants                                  ,1471.5,18/07/2016,C,MASTERS OF STEEL LTD          
200,,,Alley Gating Scheme - Fly Tip           ,CE087FA,Other Capital Expenditure,,E1,Grants                                  ,4380,18/07/2016,C,THE CRESCENT FENCING CO       
201,,,Mobile working initiative               ,CE095EA,Vehicles Plant Equipment and Machinery,,D5,Software                                ,22400,30/06/2016,C,PITNEY BOWES LIMITED          
202,,,Accesibility Programme                  ,CE104FD,New Construction Conversion and Renovation,,B4,Contractor - Site works                 ,22379.06,08/07/2016,C,FM CONWAY LTD                 
203,,,Casualty Reduction & Schools            ,CE104RA,New Construction Conversion and Renovation,,B4,Contractor - Site works                 ,1654.72,30/06/2016,C,KIER INTEGRATED SERVICES LTD  
204,,,Casualty Reduction & Schools            ,CE104RA,New Construction Conversion and Renovation,,B4,Contractor - Site works                 ,35528.98,08/07/2016,C,FM CONWAY LTD                 
205,,,TFL Quietways Cyclepath                 ,CE104RQ,New Construction Conversion and Renovation,,B3,Other Expenses D&S Structure            ,12130,31/03/2016,C,FM CONWAY LTD                 
206,,,TfL Prinicipal Road Maint               ,CE105FV,New Construction Conversion and Renovation,,B4,Contractor - Site works                 ,91740.49,29/06/2016,C,FM CONWAY LTD                 
207,,,TfL Prinicipal Road Maint               ,CE105FV,New Construction Conversion and Renovation,,B4,Contractor - Site works                 ,136565.58,12/07/2016,C,FM CONWAY LTD                 
208,,,Traffic Schemes                         ,CE142FA,New Construction Conversion and Renovation,,B2,Site Surveys D&S Structure              ,6500,31/07/2016,C,TRAFFICWATCH (UK) LTD.        
209,,,Traffic Schemes                         ,CE142FA,New Construction Conversion and Renovation,,B4,Contractor - Site works                 ,704.08,31/07/2016,C,KIER INTEGRATED SERVICES LTD  
210,,,Tackling Traffic Congestion             ,CE150AA,New Construction Conversion and Renovation,,B4,Contractor - Site works                 ,561.5,30/06/2016,C,KIER INTEGRATED SERVICES LTD  
211,,,Tackling Traffic Congestion             ,CE150AA,New Construction Conversion and Renovation,,B6,Other Costs - Site works                ,1787,30/06/2016,C,UK POWER NETWORKS (OPERATIONS)
212,,,Tackling Traffic Congestion             ,CE150AA,Vehicles Plant Equipment and Machinery,,D3,Equipment                               ,354180.29,24/06/2016,C,TYCO FIRE & INTEGR'TD SOL (UK 
213,,,Civic Centre- Upgrading lifts           ,CF001AL,New Construction Conversion and Renovation,,B4,Contractor - Site works                 ,9469.6,31/07/2016,C,AXIS ELEVATORS LTD            
214,,,St Mary's expansion                     ,CS008RA,New Construction Conversion and Renovation,,B6,Other Costs - Site works                ,20250,18/07/2016,C,T MCKEOWN & SON FENCING       
215,,,Hillcross School Expansion              ,CS020AC,New Construction Conversion and Renovation,,B1,Consultants Fees D&S Structure          ,1180.62,13/06/2016,C,HALSION LTD                   
216,,,Dundonald expansion                     ,CS031AC,New Construction Conversion and Renovation,,B1,Consultants Fees D&S Structure          ,812.5,31/07/2016,C,AREA LANDSCAPE ARCHITECTS     
217,,,Dundonald expansion                     ,CS031AC,New Construction Conversion and Renovation,,B1,Consultants Fees D&S Structure          ,1500,31/07/2016,C,SYNERGY CPC LLP               
218,,,Dundonald expansion                     ,CS031AC,New Construction Conversion and Renovation,,B1,Consultants Fees D&S Structure          ,1500,30/06/2016,C,SYNERGY CPC LLP               
219,,,Dundonald expansion                     ,CS031AC,New Construction Conversion and Renovation,,B1,Consultants Fees D&S Structure          ,812.5,07/07/2016,C,AREA LANDSCAPE ARCHITECTS     
220,,,Dundonald expansion                     ,CS031AC,New Construction Conversion and Renovation,,B1,Consultants Fees D&S Structure          ,12767,30/06/2016,C,HAVERSTOCK ASSOCIATES LLP     
221,,,Dundonald expansion                     ,CS031AC,New Construction Conversion and Renovation,,B4,Contractor - Site works                 ,285000,31/07/2016,C,KIND & COMPANY (BUILDERS) LTD 
222,,,Dundonald expansion                     ,CS031AC,New Construction Conversion and Renovation,,B4,Contractor - Site works                 ,330000,21/07/2016,C,KIND & COMPANY (BUILDERS) LTD 
223,,,Singlegate expansion                    ,CS049AA,New Construction Conversion and Renovation,,B4,Contractor - Site works                 ,154000.21,31/07/2016,C,KIND & COMPANY (BUILDERS) LTD 
224,,,New School 6fe,CS085SF,New Construction Conversion and Renovation,,B1,Consultants Fees D&S Structure          ,21965.62,31/07/2016,C,HAZLE MCCORMACK YOUNG LLP     
225,,,Harris Merton 2fe                       ,CS085SG,New Construction Conversion and Renovation,,B1,Consultants Fees D&S Structure          ,21965.62,30/06/2016,C,HAZLE MCCORMACK YOUNG LLP     
226,,,Harris Merton 2fe                       ,CS085SG,New Construction Conversion and Renovation,,B1,Consultants Fees D&S Structure          ,990,30/06/2016,C,HAZLE MCCORMACK YOUNG LLP     
227,,,Perseid                                 ,CS092AA,New Construction Conversion and Renovation,,B4,Contractor - Site works                 ,47579.41,21/07/2016,C,R DURTNELL & SONS LTD         
228,,,IT Equipment                            ,CT006EA,Vehicles Plant Equipment and Machinery,,D3,Equipment                               ,1018.8,31/07/2016,C,MARQUEST LIMITED              
229,,,IT Equipment                            ,CT006EA,Vehicles Plant Equipment and Machinery,,D3,Equipment                               ,716.02,30/06/2016,C,XMA LIMITED                   
230,,,IT Equipment                            ,CT006EA,Vehicles Plant Equipment and Machinery,,D3,Equipment                               ,1066.52,30/06/2016,C,XMA LIMITED                   
231,,,IT Equipment                            ,CT006EA,Vehicles Plant Equipment and Machinery,,D3,Equipment                               ,2344.5,30/06/2016,C,XMA LIMITED                   
232,,,IT Equipment                            ,CT006EA,Vehicles Plant Equipment and Machinery,,D3,Equipment                               ,6551.4,30/06/2016,C,XMA LIMITED                   
233,,,IT Equipment                            ,CT006EA,Vehicles Plant Equipment and Machinery,,D3,Equipment                               ,570.84,27/06/2016,C,SPECIALIST COMPUTER CENT. PLC 
234,,,IT Equipment                            ,CT006EA,Vehicles Plant Equipment and Machinery,,D3,Equipment                               ,2149.96,27/06/2016,C,SPECIALIST COMPUTER CENT. PLC 
235,,,IT Equipment                            ,CT006EA,Vehicles Plant Equipment and Machinery,,D3,Equipment                               ,2180.59,27/06/2016,C,SPECIALIST COMPUTER CENT. PLC 
236,,,IT Equipment                            ,CT006EA,Vehicles Plant Equipment and Machinery,,D3,Equipment                               ,4065.95,12/07/2016,C,SPECIALIST COMPUTER CENT. PLC 
237,,,IT Equipment                            ,CT006EA,Vehicles Plant Equipment and Machinery,,D3,Equipment                               ,4099.84,08/07/2016,C,SPECIALIST COMPUTER CENT. PLC 
238,,,IT Equipment                            ,CT006EA,Other Capital Expenditure,,E3,Miscellaneous Capital Expendit          ,540,31/07/2016,C,NETWORK SOLUTIONS INC         
239,,,IT Equipment                            ,CT006EA,Other Capital Expenditure,,E3,Miscellaneous Capital Expendit          ,1790,31/05/2016,C,NU NETWORK PRODUCTS LTD       
240,,,IT Equipment                            ,CT006EA,Other Capital Expenditure,,E3,Miscellaneous Capital Expendit          ,3500,24/06/2016,C,GETRONICS UNIFIED COM (UK) LTD
241,,,IT Equipment                            ,CT006EA,Other Capital Expenditure,,E3,Miscellaneous Capital Expendit          ,12500,14/07/2016,C,NU NETWORK PRODUCTS LTD       
242,,,Stability Networks                      ,CT012ED,Vehicles Plant Equipment and Machinery,,D3,Equipment                               ,1000,21/07/2016,C,ASSURED NETWORK SERVICES LTD  
243,,,Stability Networks                      ,CT012ED,Other Capital Expenditure,,E3,Miscellaneous Capital Expendit          ,1000,22/07/2016,C,ASSURED NETWORK SERVICES LTD  
244,,,Stability Networks                      ,CT012ED,Other Capital Expenditure,,E3,Miscellaneous Capital Expendit          ,1000,22/07/2016,C,ASSURED NETWORK SERVICES LTD  
245,,,Stability Networks                      ,CT012ED,Other Capital Expenditure,,E3,Miscellaneous Capital Expendit          ,1000,22/07/2016,C,ASSURED NETWORK SERVICES LTD  
246,,,Stability Networks                      ,CT012ED,Other Capital Expenditure,,E3,Miscellaneous Capital Expendit          ,5000,22/07/2016,C,ASSURED NETWORK SERVICES LTD  
247,,,Improving Information Systems           ,CT020NB,Vehicles Plant Equipment and Machinery,,D5,Software                                ,6467,30/06/2016,C,ADVANCED BUSINESS SOLUTIONS   
248,,,Improving Information Systems           ,CT020NB,Vehicles Plant Equipment and Machinery,,D5,Software                                ,19898,30/06/2016,C,ADVANCED BUSINESS SOLUTIONS   
249,,,Improving Information Systems           ,CT020NB,Vehicles Plant Equipment and Machinery,,D5,Software                                ,13928,30/06/2016,C,ADVANCED BUSINESS SOLUTIONS   
250,,,Data Labling                            ,CT023NA,Vehicles Plant Equipment and Machinery,,D5,Software                                ,80500,20/06/2016,C,BOLDON JAMES LTD              
251,Central Services,Council tax collection,Local Taxation Services,E02100,Supplies & Services           ,Comms and Computing           ,DG09,Computer Purchases - Misc               ,3700,31/07/2016,R,INFORM CPI LTD                
252,Central Services,Council tax collection,Local Taxation Services,E02100,Supplies & Services           ,Comms and Computing           ,DG09,Computer Purchases - Misc               ,800,30/06/2016,R,BLAZIE                        
253,Central Services,Council tax collection,Local Taxation Services,E02100,Supplies & Services           ,Comms and Computing           ,DG09,Computer Purchases - Misc               ,900,30/06/2016,R,ONESTEP SOLUTIONS PLC         
254,Central Services,Council tax collection,Local Taxation Services,E02100,Supplies & Services           ,Comms and Computing           ,DG09,Computer Purchases - Misc               ,4011.88,13/07/2016,R,CIVICA UK LIMITED             
255,Central Services,Council tax collection,Sutton Shared Bailiffs Service          ,E02102,Third Party Payments          ,Other Local Authorities       ,EB01,Payments to OLAs                        ,71196.49,31/07/2016,R,LONDON BOROUGH OF SUTTON      
256,Central Services,Council tax collection,Sutton Shared Bailiffs Service          ,E02102,Third Party Payments          ,Other Local Authorities       ,EB01,Payments to OLAs                        ,66956.77,26/07/2016,R,LONDON BOROUGH OF SUTTON      
257,Housing Services,HB Administration,Benefits Administration,E02120,Supplies & Services           ,Comms and Computing           ,DG09,Computer Purchases - Misc               ,2446.08,13/07/2016,R,CIVICA UK LIMITED             
258,Central Services,SupS Payroll,Payroll,E02140,Third Party Payments          ,Private Contractors           ,EH10,Contract Payments                       ,6006.04,31/07/2016,R,LONDON BOROUGH OF SUTTON      
259,Central Services,SupS Payroll,Trinity Project,E02141,Supplies & Services           ,Services                      ,DF03,Consultants                             ,2870,31/07/2016,R,LONDON BOROUGH OF SUTTON      
260,Central Services,SupS Payroll,Trinity Project,E02141,Supplies & Services           ,Services                      ,DF03,Consultants                             ,5058,13/06/2016,R,LONDON BOROUGH OF SUTTON      
261,Central Services,SupS Facilities,Post Room,E02220,Supplies & Services           ,Comms and Computing           ,DG04,Postage - General                       ,629.33,31/07/2016,R,STREETWISE COURIERS           
262,Central Services,SupS Facilities,Post Room,E02220,Supplies & Services           ,Comms and Computing           ,DG04,Postage - General                       ,644.76,31/07/2016,R,STREETWISE COURIERS           
263,Central Services,SupS Facilities,Post Room,E02220,Supplies & Services           ,Comms and Computing           ,DG04,Postage - General                       ,645.41,31/07/2016,R,STREETWISE COURIERS           
264,Central Services,SupS Facilities,Post Room,E02220,Supplies & Services           ,Comms and Computing           ,DG04,Postage - General                       ,680.07,31/07/2016,R,STREETWISE COURIERS           
265,Central Services,SupS Facilities,Post Room,E02220,Supplies & Services           ,Comms and Computing           ,DG04,Postage - General                       ,718.73,31/07/2016,R,STREETWISE COURIERS           
266,Central Services,SupS Facilities,Post Room,E02220,Supplies & Services           ,Comms and Computing           ,DG04,Postage - General                       ,766.37,31/07/2016,R,STREETWISE COURIERS           
267,Central Services,SupS Facilities,Post Room,E02220,Supplies & Services           ,Comms and Computing           ,DG04,Postage - General                       ,789.57,31/07/2016,R,STREETWISE COURIERS           
268,Central Services,SupS Facilities,Post Room,E02220,Supplies & Services           ,Comms and Computing           ,DG04,Postage - General                       ,819.09,31/07/2016,R,STREETWISE COURIERS           
269,Central Services,SupS Facilities,Post Room,E02220,Supplies & Services           ,Comms and Computing           ,DG04,Postage - General                       ,1234.27,31/07/2016,R,STREETWISE COURIERS           
270,Central Services,SupS Facilities,Post Room,E02220,Supplies & Services           ,Comms and Computing           ,DG04,Postage - General                       ,1396,27/06/2016,R,STREETWISE COURIERS           
271,Central Services,SupS Facilities,Post Room,E02220,Supplies & Services           ,Comms and Computing           ,DG04,Postage - General                       ,703.4,31/05/2016,R,STREETWISE COURIERS           
272,Central Services,SupS Facilities,Post Room,E02220,Supplies & Services           ,Comms and Computing           ,DG04,Postage - General                       ,645.66,04/07/2016,R,STREETWISE COURIERS           
273,Central Services,SupS Facilities,Post Room,E02220,Supplies & Services           ,Comms and Computing           ,DG04,Postage - General                       ,2600,29/06/2016,R,DX NETWORK SERVICES LTD       
274,Central Services,SupS Facilities,Post Room,E02220,Supplies & Services           ,Comms and Computing           ,DG04,Postage - General                       ,593.2,11/07/2016,R,STREETWISE COURIERS           
275,Central Services,SupS Facilities,Post Room,E02220,Supplies & Services           ,Comms and Computing           ,DG04,Postage - General                       ,597.21,18/07/2016,R,STREETWISE COURIERS           
276,Central Services,SupS Facilities,Security Services,E02221,Third Party Payments          ,Private Contractors           ,EH10,Contract Payments                       ,8592.7,31/07/2016,R,SIGHT & SOUND                 
277,Central Services,SupS Facilities,Security Services,E02221,Third Party Payments          ,Private Contractors           ,EH10,Contract Payments                       ,9000,01/07/2016,R,SIGHT & SOUND                 
278,Central Services,SupS Facilities,Civic Centre,E02222,Premises Related Expenditure  ,RepairsAlterations&MtceOfBldgs,BA01,DDM - General Building                  ,4854.22,07/07/2016,R,SALTASH ENTERPRISES LTD       
279,Central Services,SupS Facilities,Civic Centre,E02222,Premises Related Expenditure  ,RepairsAlterations&MtceOfBldgs,BA01,DDM - General Building                  ,3000,07/07/2016,R,SALTASH ENTERPRISES LTD       
280,Central Services,SupS Facilities,Civic Centre,E02222,Premises Related Expenditure  ,RepairsAlterations&MtceOfBldgs,BA01,DDM - General Building                  ,4294.64,07/07/2016,R,SALTASH ENTERPRISES LTD       
281,Central Services,SupS Facilities,Civic Centre,E02222,Premises Related Expenditure  ,RepairsAlterations&MtceOfBldgs,BA01,DDM - General Building                  ,5186.74,13/07/2016,R,SALTASH ENTERPRISES LTD       
282,Central Services,SupS Facilities,Civic Centre,E02222,Premises Related Expenditure  ,RepairsAlterations&MtceOfBldgs,BA01,DDM - General Building                  ,1097.77,13/07/2016,R,SALTASH ENTERPRISES LTD       
283,Central Services,SupS Facilities,Civic Centre,E02222,Premises Related Expenditure  ,RepairsAlterations&MtceOfBldgs,BA01,DDM - General Building                  ,5000,13/07/2016,R,SALTASH ENTERPRISES LTD       
284,Central Services,SupS Facilities,Civic Centre,E02222,Premises Related Expenditure  ,RepairsAlterations&MtceOfBldgs,BA79,Security of Premises                    ,593.6,01/07/2016,R,SIGHT & SOUND                 
285,Central Services,SupS Facilities,Civic Centre,E02222,Supplies & Services           ,Equip Furniture/Materials     ,DA01,Equipment - R & M                       ,1126,31/07/2016,R,SSD LIMITED                   
286,Central Services,SupS Facilities,Civic Centre,E02222,Supplies & Services           ,Equip Furniture/Materials     ,DA01,Equipment - R & M                       ,1180,31/07/2016,R,SSD LIMITED                   
287,Central Services,SupS Facilities,Civic Centre,E02222,Supplies & Services           ,Equip Furniture/Materials     ,DA01,Equipment - R & M                       ,1721,31/07/2016,R,SSD LIMITED                   
288,Central Services,SupS Facilities,Civic Centre,E02222,Supplies & Services           ,Equip Furniture/Materials     ,DA01,Equipment - R & M                       ,7745,31/07/2016,R,SSD LIMITED                   
289,Central Services,SupS Facilities,Civic Centre,E02222,Supplies & Services           ,Equip Furniture/Materials     ,DA04,Materials                               ,-3259.49,13/07/2016,R,STARK SOFTWARE INTERNATIONAL  
290,Central Services,SupS Facilities,Civic Centre,E02222,Supplies & Services           ,Equip Furniture/Materials     ,DA04,Materials                               ,5046.99,13/07/2016,R,STARK SOFTWARE INTERNATIONAL  
291,Central Services,SupS Facilities,Civic Centre,E02222,Supplies & Services           ,Equip Furniture/Materials     ,DA09,Equip-Purchases                         ,4687.5,17/05/2016,R,CAD-CAPTURE                   
292,Central Services,SupS Facilities,Facilities,E02231,Premises Related Expenditure  ,RepairsAlterations&MtceOfBldgs,BA01,DDM - General Building                  ,7575.85,07/07/2016,R,SALTASH ENTERPRISES LTD       
293,Central Services,SupS Facilities,Facilities,E02231,Premises Related Expenditure  ,RepairsAlterations&MtceOfBldgs,BA02,ENERGY CONSERVATION                     ,3200,31/07/2016,R,POWER DATA ASSOCIATES LTD     
294,Central Services,SupS Facilities,Facilities,E02231,Premises Related Expenditure  ,RepairsAlterations&MtceOfBldgs,BA02,ENERGY CONSERVATION                     ,3480,31/07/2016,R,NDA CONSULTING                
295,Central Services,SupS Facilities,Facilities,E02231,Premises Related Expenditure  ,RepairsAlterations&MtceOfBldgs,BA02,ENERGY CONSERVATION                     ,3000,05/07/2016,R,JOJU SOLA                     
296,Central Services,SupS Facilities,Facilities,E02231,Premises Related Expenditure  ,RepairsAlterations&MtceOfBldgs,BA02,ENERGY CONSERVATION                     ,7000,01/07/2016,R,THE UTILITIES EXCHANGE LTD    
297,Central Services,SupS Facilities,Facilities,E02231,Premises Related Expenditure  ,RepairsAlterations&MtceOfBldgs,BA02,ENERGY CONSERVATION                     ,7750,30/06/2016,R,THE UTILITIES EXCHANGE LTD    
298,Central Services,SupS Facilities,Facilities,E02231,Premises Related Expenditure  ,RepairsAlterations&MtceOfBldgs,BA02,ENERGY CONSERVATION                     ,6650,15/07/2016,R,JOJU SOLA                     
299,Central Services,SupS Facilities,Facilities,E02231,Premises Related Expenditure  ,RepairsAlterations&MtceOfBldgs,BA02,ENERGY CONSERVATION                     ,996.3,10/06/2016,R,STARK SOFTWARE INTERNATIONAL  
300,Central Services,SupS Facilities,Facilities,E02231,Premises Related Expenditure  ,RepairsAlterations&MtceOfBldgs,BA03,DDM - Mechanical                        ,3010.6,01/07/2016,R,FLETCHERS FACILITIES LIMITED  
301,Central Services,SupS Facilities,Facilities,E02231,Premises Related Expenditure  ,RepairsAlterations&MtceOfBldgs,BA03,DDM - Mechanical                        ,9120.6,01/07/2016,R,FLETCHERS FACILITIES LIMITED  
302,Central Services,SupS Facilities,Facilities,E02231,Supplies & Services           ,Equip Furniture/Materials     ,DA04,Materials                               ,-1287.88,13/07/2016,R,STARK SOFTWARE INTERNATIONAL  
303,Central Services,SupS Facilities,Corporate Services Buildings,E02240,Premises Related Expenditure  ,RepairsAlterations&MtceOfBldgs,BA01,DDM - General Building                  ,640,08/06/2016,R,HAZLEMERE WINDOW CO LIMITED   
304,Central Services,SupS Facilities,Corporate Services Buildings,E02240,Premises Related Expenditure  ,RepairsAlterations&MtceOfBldgs,BA01,DDM - General Building                  ,725,07/07/2016,R,KH FLOORING LTD               
305,Central Services,SupS Facilities,Corporate Services Buildings,E02240,Premises Related Expenditure  ,RepairsAlterations&MtceOfBldgs,BA01,DDM - General Building                  ,1058.68,07/07/2016,R,SALTASH ENTERPRISES LTD       
306,Central Services,SupS Facilities,Corporate Services Buildings,E02240,Premises Related Expenditure  ,RepairsAlterations&MtceOfBldgs,BA01,DDM - General Building                  ,674.36,14/07/2016,R,FUTURE TECH                   
307,Central Services,SupS Facilities,Corporate Services Buildings,E02240,Premises Related Expenditure  ,RepairsAlterations&MtceOfBldgs,BA03,DDM - Mechanical                        ,554.49,20/06/2016,R,BILFINGER EUROPA FACILITY     
308,Central Services,SupS Facilities,Corporate Services Buildings,E02240,Premises Related Expenditure  ,RepairsAlterations&MtceOfBldgs,BA03,DDM - Mechanical                        ,554.49,22/06/2016,R,BILFINGER EUROPA FACILITY     
309,Central Services,SupS Facilities,Corporate Services Buildings,E02240,Premises Related Expenditure  ,RepairsAlterations&MtceOfBldgs,BA03,DDM - Mechanical                        ,3787.99,20/06/2016,R,BILFINGER EUROPA FACILITY     
310,Central Services,SupS Facilities,Corporate Services Buildings,E02240,Premises Related Expenditure  ,RepairsAlterations&MtceOfBldgs,BA03,DDM - Mechanical                        ,3787.99,22/06/2016,R,BILFINGER EUROPA FACILITY     
311,Central Services,SupS Facilities,Corporate Services Buildings,E02240,Premises Related Expenditure  ,RepairsAlterations&MtceOfBldgs,BA03,DDM - Mechanical                        ,554.49,13/07/2016,R,BILFINGER EUROPA FACILITY     
312,Central Services,SupS Facilities,Corporate Services Buildings,E02240,Premises Related Expenditure  ,RepairsAlterations&MtceOfBldgs,BA03,DDM - Mechanical                        ,3787.99,13/07/2016,R,BILFINGER EUROPA FACILITY     
313,Central Services,SupS Facilities,Corporate Services Buildings,E02240,Premises Related Expenditure  ,RepairsAlterations&MtceOfBldgs,BA05,DDM - ELECTRICAL                        ,737.4,31/07/2016,R,SSD LIMITED                   
314,Central Services,SupS Facilities,Corporate Services Buildings,E02240,Premises Related Expenditure  ,RepairsAlterations&MtceOfBldgs,BA05,DDM - ELECTRICAL                        ,1198,31/07/2016,R,SSD LIMITED                   
315,Central Services,SupS Facilities,Corporate Services Buildings,E02240,Premises Related Expenditure  ,RepairsAlterations&MtceOfBldgs,BA05,DDM - ELECTRICAL                        ,636.9,16/06/2016,R,BILFINGER EUROPA FACILITY     
316,Central Services,SupS Facilities,Corporate Services Buildings,E02240,Premises Related Expenditure  ,RepairsAlterations&MtceOfBldgs,BA05,DDM - ELECTRICAL                        ,666.5,14/07/2016,R,FUTURE TECH                   
317,Central Services,SupS Facilities,Corporate Services Buildings,E02240,Premises Related Expenditure  ,RepairsAlterations&MtceOfBldgs,BA05,DDM - ELECTRICAL                        ,969.68,14/07/2016,R,FUTURE TECH                   
318,Central Services,SupS Facilities,Corporate Services Buildings,E02240,Premises Related Expenditure  ,RepairsAlterations&MtceOfBldgs,BA05,DDM - ELECTRICAL                        ,2652.3,14/07/2016,R,FUTURE TECH                   
319,Central Services,SupS Facilities,Corporate Services Buildings,E02240,Premises Related Expenditure  ,RepairsAlterations&MtceOfBldgs,BA29,Build Maint Mgt Fees                    ,2567.25,22/06/2016,R,BILFINGER EUROPA FACILITY     
320,Central Services,SupS Facilities,Corporate Services Buildings,E02240,Premises Related Expenditure  ,RepairsAlterations&MtceOfBldgs,BA29,Build Maint Mgt Fees                    ,2567.25,13/07/2016,R,BILFINGER EUROPA FACILITY     
321,Central Services,SupS Facilities,Corporate Services Buildings,E02240,Premises Related Expenditure  ,Energy Costs                  ,BB03,Gas (incl. Butane)                      ,-4973,31/07/2016,R,GAZPROM MARKETING&TRADING LTD 
322,Central Services,SupS Facilities,Corporate Services Buildings,E02240,Premises Related Expenditure  ,Energy Costs                  ,BB03,Gas (incl. Butane)                      ,5238.62,31/07/2016,R,GAZPROM MARKETING&TRADING LTD 
323,Central Services,SupS Facilities,Corporate Services Buildings,E02240,Premises Related Expenditure  ,Energy Costs                  ,BB03,Gas (incl. Butane)                      ,4442.02,11/07/2016,R,GAZPROM MARKETING&TRADING LTD 
324,Central Services,SupS Facilities,Corporate Services Buildings,E02240,Premises Related Expenditure  ,Water Services                ,BE01,Use of Water (Metered)                  ,2755.46,31/07/2016,R,SUTTON AND EAST SURREY WATER  
325,Central Services,SupS Facilities,Corporate Services Buildings,E02240,Premises Related Expenditure  ,Water Services                ,BE01,Use of Water (Metered)                  ,516.24,24/06/2016,R,SUTTON AND EAST SURREY WATER  
326,Central Services,SupS Facilities,Corporate Services Buildings,E02240,Premises Related Expenditure  ,Water Services                ,BE01,Use of Water (Metered)                  ,573.75,24/06/2016,R,SUTTON AND EAST SURREY WATER  
327,Central Services,SupS Facilities,Corporate Services Buildings,E02240,Premises Related Expenditure  ,Water Services                ,BE01,Use of Water (Metered)                  ,797.02,06/06/2016,R,SUTTON AND EAST SURREY WATER  
328,Central Services,SupS Facilities,Corporate Services Buildings,E02240,Premises Related Expenditure  ,Water Services                ,BE01,Use of Water (Metered)                  ,2607.55,06/06/2016,R,SUTTON AND EAST SURREY WATER  
329,Central Services,SupS Facilities,Corporate Services Buildings,E02240,Premises Related Expenditure  ,Water Services                ,BE01,Use of Water (Metered)                  ,1804.37,24/06/2016,R,SUTTON AND EAST SURREY WATER  
330,Childrens & Education Services,Strategic Management,PDC,E02254,Premises Related Expenditure  ,Energy Costs                  ,BB03,Gas (incl. Butane)                      ,-990.1,31/07/2016,R,GAZPROM MARKETING&TRADING LTD 
331,Childrens & Education Services,Strategic Management,PDC,E02254,Premises Related Expenditure  ,Energy Costs                  ,BB03,Gas (incl. Butane)                      ,1047.29,31/07/2016,R,GAZPROM MARKETING&TRADING LTD 
332,Childrens & Education Services,Strategic Management,PDC,E02254,Premises Related Expenditure  ,Cleaning and Domestic Supplies,BH03,Cleaning Services                       ,2397.5,30/06/2016,R,JULIUS RUTHERFOORD & CO LTD   
333,Childrens & Education Services,Strategic Management,PDC,E02254,Supplies & Services           ,Equip Furniture/Materials     ,DA09,Equip-Purchases                         ,1260,08/07/2016,R,UNIQUE OFFICE SOLUTIONS LTD   
334,Childrens & Education Services,Strategic Management,CSF Buildings,E02256,Premises Related Expenditure  ,RepairsAlterations&MtceOfBldgs,BA01,DDM - General Building                  ,930,31/07/2016,R,HYDRO-CLEANSING LTD           
335,Childrens & Education Services,Strategic Management,CSF Buildings,E02256,Premises Related Expenditure  ,RepairsAlterations&MtceOfBldgs,BA05,DDM - ELECTRICAL                        ,561.39,16/10/2014,R,BILFINGER EUROPA FACILITY     
336,Childrens & Education Services,Strategic Management,CSF Buildings,E02256,Premises Related Expenditure  ,RepairsAlterations&MtceOfBldgs,BA06,REPAIRS & MAINTENANCE GENERAL           ,1213.11,31/07/2016,R,DMA SIGNS LTD                 
337,Adult Social Care,OP 65 & Over Day Care,Pollards Hill Day Centre,E02270,Premises Related Expenditure  ,Cleaning and Domestic Supplies,BH01,Cleaning Materials                      ,504,31/07/2016,R,GREENHAM TRADING LTD          
338,Adult Social Care,OP 65 & Over Day Care,Pollards Hill Day Centre,E02270,Premises Related Expenditure  ,Cleaning and Domestic Supplies,BH01,Cleaning Materials                      ,504,30/06/2016,R,GREENHAM                      
339,Adult Social Care,OP 65 & Over Day Care,Pollards Hill Day Centre,E02270,Premises Related Expenditure  ,Cleaning and Domestic Supplies,BH01,Cleaning Materials                      ,504,15/07/2016,R,GREENHAM                      
340,Adult Social Care,OP 65 & Over Day Care,Pollards Hill Day Centre,E02270,Premises Related Expenditure  ,Cleaning and Domestic Supplies,BH03,Cleaning Services                       ,865.12,31/07/2016,R,BIRKIN CLEANING SERVICES LTD  
341,Adult Social Care,OP 65 & Over Day Care,Pollards Hill Day Centre,E02270,Premises Related Expenditure  ,Cleaning and Domestic Supplies,BH03,Cleaning Services                       ,885.31,31/07/2016,R,BIRKIN CLEANING SERVICES LTD  
342,Adult Social Care,OP 65 & Over Day Care,Pollards Hill Day Centre,E02270,Premises Related Expenditure  ,Cleaning and Domestic Supplies,BH03,Cleaning Services                       ,892.7,31/07/2016,R,BIRKIN CLEANING SERVICES LTD  
343,Adult Social Care,OP 65 & Over Day Care,Pollards Hill Day Centre,E02270,Premises Related Expenditure  ,Cleaning and Domestic Supplies,BH03,Cleaning Services                       ,1304.95,31/07/2016,R,BIRKIN CLEANING SERVICES LTD  
344,Adult Social Care,OP 65 & Over Day Care,Pollards Hill Day Centre,E02270,Premises Related Expenditure  ,Cleaning and Domestic Supplies,BH03,Cleaning Services                       ,1497.38,31/07/2016,R,BIRKIN CLEANING SERVICES LTD  
345,Adult Social Care,OP 65 & Over Day Care,Pollards Hill Day Centre,E02270,Premises Related Expenditure  ,Cleaning and Domestic Supplies,BH03,Cleaning Services                       ,1591.8,31/07/2016,R,BIRKIN CLEANING SERVICES LTD  
346,Adult Social Care,OP 65 & Over Day Care,Pollards Hill Day Centre,E02270,Premises Related Expenditure  ,Cleaning and Domestic Supplies,BH03,Cleaning Services                       ,1623.45,31/07/2016,R,BIRKIN CLEANING SERVICES LTD  
347,Adult Social Care,OP 65 & Over Day Care,Pollards Hill Day Centre,E02270,Premises Related Expenditure  ,Cleaning and Domestic Supplies,BH03,Cleaning Services                       ,1764.19,31/07/2016,R,BIRKIN CLEANING SERVICES LTD  
348,Adult Social Care,OP 65 & Over Day Care,Pollards Hill Day Centre,E02270,Premises Related Expenditure  ,Cleaning and Domestic Supplies,BH03,Cleaning Services                       ,5216.05,31/07/2016,R,BIRKIN CLEANING SERVICES LTD  
349,Adult Social Care,OP 65 & Over Day Care,Pollards Hill Day Centre,E02270,Premises Related Expenditure  ,Cleaning and Domestic Supplies,BH03,Cleaning Services                       ,7302.68,31/07/2016,R,BIRKIN CLEANING SERVICES LTD  
350,Adult Social Care,OP 65 & Over Day Care,Pollards Hill Day Centre,E02270,Premises Related Expenditure  ,Cleaning and Domestic Supplies,BH03,Cleaning Services                       ,892.7,30/06/2016,R,BIRKIN CLEANING SERVICES LTD  
351,Adult Social Care,OP 65 & Over Day Care,Pollards Hill Day Centre,E02270,Premises Related Expenditure  ,Cleaning and Domestic Supplies,BH03,Cleaning Services                       ,1591.8,30/06/2016,R,BIRKIN CLEANING SERVICES LTD  
352,Adult Social Care,OP 65 & Over Day Care,Pollards Hill Day Centre,E02270,Premises Related Expenditure  ,Cleaning and Domestic Supplies,BH03,Cleaning Services                       ,865.12,30/06/2016,R,BIRKIN CLEANING SERVICES LTD  
353,Adult Social Care,OP 65 & Over Day Care,Pollards Hill Day Centre,E02270,Premises Related Expenditure  ,Cleaning and Domestic Supplies,BH03,Cleaning Services                       ,885.31,30/06/2016,R,BIRKIN CLEANING SERVICES LTD  
354,Adult Social Care,OP 65 & Over Day Care,Pollards Hill Day Centre,E02270,Premises Related Expenditure  ,Cleaning and Domestic Supplies,BH03,Cleaning Services                       ,1304.95,30/06/2016,R,BIRKIN CLEANING SERVICES LTD  
355,Adult Social Care,OP 65 & Over Day Care,Pollards Hill Day Centre,E02270,Premises Related Expenditure  ,Cleaning and Domestic Supplies,BH03,Cleaning Services                       ,1497.38,30/06/2016,R,BIRKIN CLEANING SERVICES LTD  
356,Adult Social Care,OP 65 & Over Day Care,Pollards Hill Day Centre,E02270,Premises Related Expenditure  ,Cleaning and Domestic Supplies,BH03,Cleaning Services                       ,1623.45,30/06/2016,R,BIRKIN CLEANING SERVICES LTD  
357,Adult Social Care,OP 65 & Over Day Care,Pollards Hill Day Centre,E02270,Premises Related Expenditure  ,Cleaning and Domestic Supplies,BH03,Cleaning Services                       ,1764.19,30/06/2016,R,BIRKIN CLEANING SERVICES LTD  
358,Adult Social Care,OP 65 & Over Day Care,Pollards Hill Day Centre,E02270,Premises Related Expenditure  ,Cleaning and Domestic Supplies,BH03,Cleaning Services                       ,5216.05,30/06/2016,R,BIRKIN CLEANING SERVICES LTD  
359,Adult Social Care,OP 65 & Over Day Care,Pollards Hill Day Centre,E02270,Premises Related Expenditure  ,Cleaning and Domestic Supplies,BH03,Cleaning Services                       ,7302.68,30/06/2016,R,BIRKIN CLEANING SERVICES LTD  
360,Adult Social Care,OP 65 & Over Day Care,Pollards Hill Day Centre,E02270,Third Party Payments          ,Private Contractors           ,EH02,Miscellaneous Hired Services            ,17499.01,13/07/2016,R,SALTASH ENTERPRISES LTD       
361,Cultural Env Reg&Plan Services,Parks & Open Spaces,E & R Buildings,E02344,Premises Related Expenditure  ,RepairsAlterations&MtceOfBldgs,BA01,DDM - General Building                  ,940,31/07/2016,R,SALTASH ENTERPRISES LTD       
362,Cultural Env Reg&Plan Services,Parks & Open Spaces,E & R Buildings,E02344,Premises Related Expenditure  ,RepairsAlterations&MtceOfBldgs,BA03,DDM - Mechanical                        ,542.52,20/06/2016,R,BILFINGER EUROPA FACILITY     
363,Cultural Env Reg&Plan Services,Parks & Open Spaces,E & R Buildings,E02344,Premises Related Expenditure  ,RepairsAlterations&MtceOfBldgs,BA03,DDM - Mechanical                        ,542.52,22/06/2016,R,BILFINGER EUROPA FACILITY     
364,Cultural Env Reg&Plan Services,Parks & Open Spaces,E & R Buildings,E02344,Premises Related Expenditure  ,RepairsAlterations&MtceOfBldgs,BA03,DDM - Mechanical                        ,542.52,13/07/2016,R,BILFINGER EUROPA FACILITY     
365,Adult Social Care,PS u65 Day Care,C & H Buildings,E02345,Premises Related Expenditure  ,RepairsAlterations&MtceOfBldgs,BA01,DDM - General Building                  ,608.28,23/06/2016,R,SALTASH ENTERPRISES LTD       
366,Adult Social Care,PS u65 Day Care,C & H Buildings,E02345,Premises Related Expenditure  ,RepairsAlterations&MtceOfBldgs,BA01,DDM - General Building                  ,2143.75,23/06/2016,R,SALTASH ENTERPRISES LTD       
367,Adult Social Care,PS u65 Day Care,C & H Buildings,E02345,Premises Related Expenditure  ,RepairsAlterations&MtceOfBldgs,BA03,DDM - Mechanical                        ,-824.09,31/07/2016,R,BILFINGER EUROPA FACILITY     
368,Adult Social Care,PS u65 Day Care,C & H Buildings,E02345,Premises Related Expenditure  ,RepairsAlterations&MtceOfBldgs,BA03,DDM - Mechanical                        ,824.09,31/07/2016,R,BILFINGER EUROPA FACILITY     
369,Adult Social Care,PS u65 Day Care,C & H Buildings,E02345,Premises Related Expenditure  ,RepairsAlterations&MtceOfBldgs,BA03,DDM - Mechanical                        ,515.32,20/06/2016,R,BILFINGER EUROPA FACILITY     
370,Adult Social Care,PS u65 Day Care,C & H Buildings,E02345,Premises Related Expenditure  ,RepairsAlterations&MtceOfBldgs,BA03,DDM - Mechanical                        ,515.32,22/06/2016,R,BILFINGER EUROPA FACILITY     
371,Adult Social Care,PS u65 Day Care,C & H Buildings,E02345,Premises Related Expenditure  ,RepairsAlterations&MtceOfBldgs,BA03,DDM - Mechanical                        ,781.02,21/08/2014,R,BILFINGER EUROPA FACILITY     
372,Adult Social Care,PS u65 Day Care,C & H Buildings,E02345,Premises Related Expenditure  ,RepairsAlterations&MtceOfBldgs,BA03,DDM - Mechanical                        ,515.32,13/07/2016,R,BILFINGER EUROPA FACILITY     
373,Adult Social Care,PS u65 Day Care,C & H Buildings,E02345,Premises Related Expenditure  ,RepairsAlterations&MtceOfBldgs,BA05,DDM - ELECTRICAL                        ,523.68,31/07/2016,R,CONTRACT FIRE SECURITY        
374,Adult Social Care,PS u65 Day Care,C & H Buildings,E02345,Premises Related Expenditure  ,RepairsAlterations&MtceOfBldgs,BA05,DDM - ELECTRICAL                        ,512,23/06/2016,R,BILFINGER EUROPA FACILITY     
375,Cultural Env Reg&Plan Services,Parks & Open Spaces,Leisure Buildings,E02350,Premises Related Expenditure  ,RepairsAlterations&MtceOfBldgs,BA03,DDM - Mechanical                        ,557.76,20/06/2016,R,BILFINGER EUROPA FACILITY     
376,Cultural Env Reg&Plan Services,Parks & Open Spaces,Leisure Buildings,E02350,Premises Related Expenditure  ,RepairsAlterations&MtceOfBldgs,BA03,DDM - Mechanical                        ,557.76,22/06/2016,R,BILFINGER EUROPA FACILITY     
377,Cultural Env Reg&Plan Services,Parks & Open Spaces,Leisure Buildings,E02350,Premises Related Expenditure  ,RepairsAlterations&MtceOfBldgs,BA03,DDM - Mechanical                        ,567.88,23/06/2016,R,BILFINGER EUROPA FACILITY     
378,Cultural Env Reg&Plan Services,Parks & Open Spaces,Leisure Buildings,E02350,Premises Related Expenditure  ,RepairsAlterations&MtceOfBldgs,BA03,DDM - Mechanical                        ,557.76,13/07/2016,R,BILFINGER EUROPA FACILITY     
379,Cultural Env Reg&Plan Services,Parks & Open Spaces,Leisure Buildings,E02350,Premises Related Expenditure  ,RepairsAlterations&MtceOfBldgs,BA05,DDM - ELECTRICAL                        ,703.91,23/06/2016,R,BILFINGER EUROPA FACILITY     
380,Central Services,SupS Corporate Finance,Corporate Accountancy,E06209,Supplies & Services           ,Grants and Subscriptions      ,DJ04,Subscriptions                           ,3000,31/07/2016,R,PRICEWATERHOUSE COOPERS       
381,Central Services,SupS Strategic Finance,Treasury & Insurance,E06222,Employees                     ,Direct Employee Expenses      ,AA17,Agency Staff & Casual Paymts            ,2260,31/07/2016,R,HAYS SPECIALIST RECRUITM'T LTD
382,Central Services,SupS Strategic Finance,Treasury & Insurance,E06222,Employees                     ,Direct Employee Expenses      ,AA17,Agency Staff & Casual Paymts            ,2260,29/06/2016,R,HAYS SPECIALIST RECRUITM'T LTD
383,Central Services,SupS Strategic Finance,Treasury & Insurance,E06222,Employees                     ,Direct Employee Expenses      ,AA17,Agency Staff & Casual Paymts            ,2260,06/07/2016,R,HAYS SPECIALIST RECRUITM'T LTD
384,Central Services,SupS Strategic Finance,Treasury & Insurance,E06222,Employees                     ,Direct Employee Expenses      ,AA17,Agency Staff & Casual Paymts            ,2260,13/07/2016,R,HAYS SPECIALIST RECRUITM'T LTD
385,Central Services,GENERATED ACCOUNT,Parking Cash Collect'n Contrct,E06225,Third Party Payments          ,Private Contractors           ,EH02,Miscellaneous Hired Services            ,10836.88,31/07/2016,R,JADE SECURITY SERVICE LTD     
386,Central Services,GENERATED ACCOUNT,Establishments' Cash Collect'n,E06226,Third Party Payments          ,Private Contractors           ,EH02,Miscellaneous Hired Services            ,585.9,31/07/2016,R,JADE SECURITY SERVICE LTD     
387,Central Services,GENERATED ACCOUNT,Establishments' Cash Collect'n,E06226,Third Party Payments          ,Private Contractors           ,EH02,Miscellaneous Hired Services            ,585.9,31/07/2016,R,JADE SECURITY SERVICE LTD     
388,Central Services,GENERATED ACCOUNT,Establishments' Cash Collect'n,E06226,Third Party Payments          ,Private Contractors           ,EH02,Miscellaneous Hired Services            ,592.83,30/06/2016,R,JADE SECURITY SERVICE LTD     
389,Central Services,GENERATED ACCOUNT,Establishments' Cash Collect'n,E06226,Third Party Payments          ,Private Contractors           ,EH02,Miscellaneous Hired Services            ,558,30/06/2016,R,JADE SECURITY SERVICE LTD     
390,Central Services,Land Charges,Land Charges,E10283,Supplies & Services           ,Expenses                      ,DH16,Compensation Payments                   ,19883.68,21/07/2016,R,REDACTED
391,Central Services,Land Charges,Land Charges,E10283,Supplies & Services           ,Expenses                      ,DH16,Compensation Payments                   ,14643.17,27/07/2016,R,REDACTED
392,Central Services,Conducting elections,Election Expenses,E10284,Employees                     ,Direct Employee Expenses      ,AA74,Public Duties (AP),763.2,01/07/2016,R,SIGHT & SOUND                 
393,Central Services,Conducting elections,Election Expenses,E10284,Premises Related Expenditure  ,RepairsAlterations&MtceOfBldgs,BA06,REPAIRS & MAINTENANCE GENERAL           ,1075,30/06/2016,R,ASHTEAD PLANT HIRE CO LTD     
394,Central Services,Conducting elections,Election Expenses,E10284,Premises Related Expenditure  ,RepairsAlterations&MtceOfBldgs,BA29,Build Maint Mgt Fees                    ,810,27/06/2016,R,MORTON FAIRVIEW ELEC SERVICES 
395,Central Services,Conducting elections,Election Expenses,E10284,Transport Related Expenditure ,Contract Hire and Op Leasing  ,CC01,Hired Transport                         ,-1076,29/06/2016,R,EDE'S (U.K.) LTD              
396,Central Services,Conducting elections,Election Expenses,E10284,Transport Related Expenditure ,Contract Hire and Op Leasing  ,CC01,Hired Transport                         ,9936.75,29/06/2016,R,EDE'S (U.K.) LTD              
397,Central Services,Conducting elections,Election Expenses,E10284,Transport Related Expenditure ,Contract Hire and Op Leasing  ,CC01,Hired Transport                         ,6574,11/05/2016,R,EDE'S (U.K.) LTD              
398,Central Services,Conducting elections,Election Expenses,E10284,Supplies & Services           ,Equip Furniture/Materials     ,DA03,Hire of Equipment                       ,557.7,31/07/2016,R,ASHTEAD PLANT HIRE CO LTD     
399,Central Services,Conducting elections,Election Expenses,E10284,Supplies & Services           ,Equip Furniture/Materials     ,DA09,Equip-Purchases                         ,504,30/06/2016,R,PAKFLATT (UK) LTD             
400,Central Services,Conducting elections,Election Expenses,E10284,Supplies & Services           ,Equip Furniture/Materials     ,DA09,Equip-Purchases                         ,1418.75,06/06/2016,R,SHAW & SONS LTD               
401,Central Services,Conducting elections,Election Expenses,E10284,Supplies & Services           ,Prntng Stnry Gen Off Exp      ,DE50,Ballot Papers/Poll Cards Print          ,4122.61,29/04/2016,R,FINANCIAL DATA MANAGEMENT PLC 
402,Central Services,Conducting elections,Election Expenses,E10284,Supplies & Services           ,Prntng Stnry Gen Off Exp      ,DE50,Ballot Papers/Poll Cards Print          ,-1360,02/07/2016,R,FINANCIAL DATA MANAGEMENT PLC 
403,Central Services,Conducting elections,Election Expenses,E10284,Supplies & Services           ,Prntng Stnry Gen Off Exp      ,DE50,Ballot Papers/Poll Cards Print          ,1360,29/04/2016,R,FINANCIAL DATA MANAGEMENT PLC 
404,Central Services,Conducting elections,Election Expenses,E10284,Supplies & Services           ,Prntng Stnry Gen Off Exp      ,DE50,Ballot Papers/Poll Cards Print          ,3167.09,29/04/2016,R,FINANCIAL DATA MANAGEMENT PLC 
405,Central Services,Conducting elections,Election Expenses,E10284,Supplies & Services           ,Prntng Stnry Gen Off Exp      ,DE50,Ballot Papers/Poll Cards Print          ,19414.35,30/04/2016,R,FINANCIAL DATA MANAGEMENT PLC 
406,Central Services,Conducting elections,Election Expenses,E10284,Supplies & Services           ,Comms and Computing           ,DG04,Postage - General                       ,1380.15,31/07/2016,R,ROYAL MAIL GROUP LTD          
407,Central Services,Conducting elections,Election Expenses,E10284,Supplies & Services           ,Comms and Computing           ,DG04,Postage - General                       ,543.9,31/07/2016,R,FINANCIAL DATA MANAGEMENT PLC 
408,Central Services,Conducting elections,Election Expenses,E10284,Supplies & Services           ,Comms and Computing           ,DG04,Postage - General                       ,632.45,31/07/2016,R,FINANCIAL DATA MANAGEMENT PLC 
409,Central Services,Conducting elections,Election Expenses,E10284,Supplies & Services           ,Comms and Computing           ,DG04,Postage - General                       ,2178.32,31/07/2016,R,FINANCIAL DATA MANAGEMENT PLC 
410,Central Services,Conducting elections,Election Expenses,E10284,Supplies & Services           ,Comms and Computing           ,DG04,Postage - General                       ,1847.7,27/06/2016,R,ROYAL MAIL GROUP LTD          
411,Central Services,Conducting elections,Election Expenses,E10284,Supplies & Services           ,Comms and Computing           ,DG04,Postage - General                       ,12383.93,31/05/2016,R,FINANCIAL DATA MANAGEMENT PLC 
412,Central Services,Conducting elections,Election Expenses,E10284,Supplies & Services           ,Comms and Computing           ,DG04,Postage - General                       ,1539,04/07/2016,R,ROYAL MAIL GROUP LTD          
413,Central Services,Registration of electors,Electoral Registration,E10285,Supplies & Services           ,Comms and Computing           ,DG04,Postage - General                       ,1249.5,31/07/2016,R,FINANCIAL DATA MANAGEMENT PLC 
414,Central Services,SupS Legal,Shared Legal Service,E10288,Employees                     ,Indirect Employee Expenses    ,AB57,EXTERNAL TRAINING COSTS                 ,593.33,12/07/2016,R,KAPLAN FINANCIAL              
415,Central Services,SupS Legal,Shared Legal Service,E10288,Supplies & Services           ,Prntng Stnry Gen Off Exp      ,DE30,General Office Expense                  ,814.69,30/06/2016,R,RESTORE PLC                   
416,Central Services,SupS Legal,Shared Legal Service,E10288,Supplies & Services           ,Services                      ,DF95,Services from Provider                  ,4500,31/07/2016,R,LEWIS SILKIN LLP              
417,Central Services,SupS Legal,Shared Legal Service,E10288,Supplies & Services           ,Services                      ,DF95,Services from Provider                  ,1925,31/03/2016,R,SOLACE IN BUSINESS            
418,Central Services,SupS Legal,Shared Legal Service,E10288,Supplies & Services           ,Comms and Computing           ,DG02,Software Licences                       ,6757,01/07/2016,R,ZYLPHA LIMITED                
419,Central Services,SupS Legal,Shared Legal Service,E10288,Supplies & Services           ,Comms and Computing           ,DG04,Postage - General                       ,750,31/07/2016,R,NEOPOST FINANCE LIMITED       
420,Central Services,SupS Legal,Shared Legal Service,E10288,Supplies & Services           ,Comms and Computing           ,DG04,Postage - General                       ,850,28/06/2016,R,NEOPOST FINANCE LIMITED       
421,Central Services,SupS Legal,Richmond Legal,E10289,Supplies & Services           ,Services                      ,DF11,Counsel's Fees                          ,1086.25,31/07/2016,R,REDACTED
422,Central Services,SupS Legal,Richmond Legal,E10289,Supplies & Services           ,Services                      ,DF11,Counsel's Fees                          ,500,31/07/2016,R,REDACTED
423,Central Services,SupS Legal,Richmond Legal,E10289,Supplies & Services           ,Services                      ,DF11,Counsel's Fees                          ,1700,31/07/2016,R,REDACTED
424,Central Services,SupS Legal,Richmond Legal,E10289,Supplies & Services           ,Services                      ,DF11,Counsel's Fees                          ,9825,31/07/2016,R,REDACTED
425,Central Services,SupS Legal,Richmond Legal,E10289,Supplies & Services           ,Services                      ,DF11,Counsel's Fees                          ,12500,31/07/2016,R,REDACTED
426,Central Services,SupS Legal,Richmond Legal,E10289,Supplies & Services           ,Services                      ,DF11,Counsel's Fees                          ,1250,31/07/2016,R,REDACTED
427,Central Services,SupS Legal,Richmond Legal,E10289,Supplies & Services           ,Services                      ,DF11,Counsel's Fees                          ,1000,19/07/2016,R,REDACTED
428,Central Services,SupS Legal,Richmond Legal,E10289,Supplies & Services           ,Services                      ,DF11,Counsel's Fees                          ,540,07/07/2016,R,REDACTED
429,Central Services,SupS Legal,Richmond Legal,E10289,Supplies & Services           ,Services                      ,DF11,Counsel's Fees                          ,625,05/07/2016,R,REDACTED
430,Central Services,SupS Legal,Richmond Legal,E10289,Supplies & Services           ,Services                      ,DF11,Counsel's Fees                          ,1080,07/07/2016,R,REDACTED
431,Central Services,SupS Legal,Richmond Legal,E10289,Supplies & Services           ,Services                      ,DF11,Counsel's Fees                          ,680,29/06/2016,R,REDACTED
432,Central Services,SupS Legal,Richmond Legal,E10289,Supplies & Services           ,Services                      ,DF95,Services from Provider                  ,504,31/07/2016,R,SHARPE PRITCHARD SOLICITORS   
433,Central Services,SupS Legal,Richmond Legal,E10289,Supplies & Services           ,Services                      ,DF95,Services from Provider                  ,796,31/07/2016,R,SHARPE PRITCHARD SOLICITORS   
434,Central Services,SupS Legal,Richmond Legal,E10289,Supplies & Services           ,Services                      ,DF95,Services from Provider                  ,727.75,31/07/2016,R,REDACTED
435,Central Services,SupS Legal,Richmond Legal,E10289,Supplies & Services           ,Services                      ,DF95,Services from Provider                  ,2482.25,31/07/2016,R,REDACTED
436,Central Services,SupS Legal,Richmond Legal,E10289,Supplies & Services           ,Services                      ,DF95,Services from Provider                  ,2901,31/07/2016,R,REDACTED
437,Central Services,SupS Legal,Richmond Legal,E10289,Supplies & Services           ,Services                      ,DF95,Services from Provider                  ,935,31/07/2016,R,SHARPE PRITCHARD SOLICITORS   
438,Central Services,SupS Legal,Richmond Legal,E10289,Supplies & Services           ,Services                      ,DF95,Services from Provider                  ,2236.5,30/04/2016,R,SHARPE PRITCHARD SOLICITORS   
439,Central Services,SupS Legal,LBR INCOME,E10290,Third Party Payments          ,Other Local Authorities       ,EB01,Payments to OLAs                        ,10476.68,25/07/2016,R,L.B OF RICHMOND UPON THAMES   
440,Central Services,SupS Legal,K&S Shared Legal,E10291,Third Party Payments          ,Other Local Authorities       ,EB01,Payments to OLAs                        ,16255,21/07/2016,R,KINGSTON CORPORATION          
441,Central Services,SupS Legal,K&S Shared Legal,E10291,Third Party Payments          ,Other Local Authorities       ,EB01,Payments to OLAs                        ,6459,25/07/2016,R,SUTTON HOUSING PARTNERSHIP LTD
442,Central Services,SupS Legal,K&S Shared Legal,E10291,Third Party Payments          ,Other Local Authorities       ,EB01,Payments to OLAs                        ,12256,25/07/2016,R,LONDON BOROUGH OF SUTTON      
443,Central Services,SupS Legal,Kingston Legal                          ,E10292,Supplies & Services           ,Services                      ,DF11,Counsel's Fees                          ,1500,31/07/2016,R,REDACTED
444,Central Services,SupS Legal,Kingston Legal                          ,E10292,Supplies & Services           ,Services                      ,DF11,Counsel's Fees                          ,1250,09/06/2016,R,REDACTED
445,Central Services,SupS Legal,Kingston Legal                          ,E10292,Supplies & Services           ,Services                      ,DF11,Counsel's Fees                          ,1445,09/06/2016,R,REDACTED
446,Central Services,SupS Legal,Kingston Legal                          ,E10292,Supplies & Services           ,Services                      ,DF95,Services from Provider                  ,2120,14/07/2016,R,HM REVENUE AND CUSTOMS        
447,Central Services,SupS Legal,Kingston Legal                          ,E10292,Supplies & Services           ,Services                      ,DF95,Services from Provider                  ,2133,14/07/2016,R,HM REVENUE AND CUSTOMS        
448,Central Services,SupS Legal,Sutton Legal                            ,E10293,Supplies & Services           ,Services                      ,DF11,Counsel's Fees                          ,520,31/07/2016,R,REDACTED
449,Central Services,SupS Legal,Sutton Legal                            ,E10293,Supplies & Services           ,Services                      ,DF11,Counsel's Fees                          ,520,31/07/2016,R,REDACTED
450,Central Services,SupS Legal,Sutton Legal                            ,E10293,Supplies & Services           ,Services                      ,DF11,Counsel's Fees                          ,610,31/07/2016,R,REDACTED
451,Central Services,SupS Legal,Sutton Legal                            ,E10293,Supplies & Services           ,Services                      ,DF11,Counsel's Fees                          ,980,31/07/2016,R,REDACTED
452,Central Services,SupS Legal,Sutton Legal                            ,E10293,Supplies & Services           ,Services                      ,DF11,Counsel's Fees                          ,1320,31/07/2016,R,REDACTED
453,Central Services,SupS Legal,Sutton Legal                            ,E10293,Supplies & Services           ,Services                      ,DF11,Counsel's Fees                          ,525,31/07/2016,R,REDACTED
454,Central Services,SupS Legal,Sutton Legal                            ,E10293,Supplies & Services           ,Services                      ,DF11,Counsel's Fees                          ,1210,31/07/2016,R,REDACTED
455,Central Services,SupS Legal,Sutton Legal                            ,E10293,Supplies & Services           ,Services                      ,DF11,Counsel's Fees                          ,1395,31/07/2016,R,REDACTED
456,Central Services,SupS Legal,Sutton Legal                            ,E10293,Supplies & Services           ,Services                      ,DF11,Counsel's Fees                          ,1250,31/07/2016,R,REDACTED
457,Central Services,SupS Legal,Sutton Legal                            ,E10293,Supplies & Services           ,Services                      ,DF11,Counsel's Fees                          ,2600,01/06/2016,R,REDACTED
458,Central Services,SupS Legal,Sutton Legal                            ,E10293,Supplies & Services           ,Services                      ,DF11,Counsel's Fees                          ,510,19/07/2016,R,REDACTED
459,Central Services,SupS Legal,Sutton Legal                            ,E10293,Supplies & Services           ,Services                      ,DF11,Counsel's Fees                          ,510,25/05/2016,R,REDACTED
460,Central Services,SupS Legal,Sutton Legal                            ,E10293,Supplies & Services           ,Services                      ,DF11,Counsel's Fees                          ,610,09/06/2016,R,REDACTED
461,Central Services,SupS Legal,Sutton Legal                            ,E10293,Supplies & Services           ,Services                      ,DF11,Counsel's Fees                          ,710,31/05/2016,R,REDACTED
462,Central Services,SupS Legal,Sutton Legal                            ,E10293,Supplies & Services           ,Services                      ,DF11,Counsel's Fees                          ,12000,18/07/2016,R,REDACTED
463,Central Services,SupS Legal,Sutton Legal                            ,E10293,Supplies & Services           ,Services                      ,DF11,Counsel's Fees                          ,22250,29/06/2016,R,REDACTED
464,Central Services,SupS Legal,Sutton Legal                            ,E10293,Supplies & Services           ,Services                      ,DF11,Counsel's Fees                          ,625.46,03/06/2016,R,LOCAL GOVERNMENT ASSOCIATION  
465,Central Services,SupS Legal,Sutton Legal                            ,E10293,Supplies & Services           ,Services                      ,DF11,Counsel's Fees                          ,930,07/07/2016,R,REDACTED
466,Central Services,SupS Legal,Sutton Legal                            ,E10293,Supplies & Services           ,Services                      ,DF11,Counsel's Fees                          ,510,01/07/2016,R,REDACTED
467,Central Services,SupS Legal,Sutton Legal                            ,E10293,Supplies & Services           ,Services                      ,DF11,Counsel's Fees                          ,555,28/06/2016,R,REDACTED
468,Central Services,SupS Legal,Sutton Legal                            ,E10293,Supplies & Services           ,Services                      ,DF11,Counsel's Fees                          ,810,21/06/2016,R,REDACTED
469,Central Services,SupS Legal,Sutton Legal                            ,E10293,Supplies & Services           ,Services                      ,DF11,Counsel's Fees                          ,840,21/06/2016,R,REDACTED
470,Central Services,SupS Legal,Sutton Legal                            ,E10293,Supplies & Services           ,Services                      ,DF11,Counsel's Fees                          ,5335,14/06/2016,R,REDACTED
471,Central Services,SupS Legal,Sutton Legal                            ,E10293,Supplies & Services           ,Services                      ,DF14,Doctors and Other Fees                  ,2736,31/07/2016,R,NATIO RESOURCING LTD          
472,Central Services,SupS Legal,Sutton Legal                            ,E10293,Supplies & Services           ,Services                      ,DF14,Doctors and Other Fees                  ,785.27,31/07/2016,R,BIBBY FACTORS YORKSHIRE LTD   
473,Central Services,SupS Legal,Sutton Legal                            ,E10293,Supplies & Services           ,Services                      ,DF14,Doctors and Other Fees                  ,1357,31/07/2016,R,REDACTED
474,Central Services,SupS Legal,Sutton Legal                            ,E10293,Supplies & Services           ,Services                      ,DF14,Doctors and Other Fees                  ,4118.4,16/06/2016,R,Y WALKER PSYCHOLOGY LTD       
475,Central Services,SupS Legal,Sutton Legal                            ,E10293,Supplies & Services           ,Services                      ,DF14,Doctors and Other Fees                  ,655.2,11/07/2016,R,MCKEOWN PROFESSIONAL ASSOC LTD
476,Central Services,SupS Legal,Sutton Legal                            ,E10293,Supplies & Services           ,Services                      ,DF14,Doctors and Other Fees                  ,525.5,20/04/2016,R,CARTER BROWN THE EXPERT SERV  
477,Central Services,SupS Legal,Sutton Legal                            ,E10293,Supplies & Services           ,Services                      ,DF14,Doctors and Other Fees                  ,2507.5,09/05/2016,R,CARTER BROWN THE EXPERT SERV  
478,Central Services,SupS Legal,Sutton Legal                            ,E10293,Supplies & Services           ,Services                      ,DF14,Doctors and Other Fees                  ,738.6,19/07/2016,R,CORAL COMMUNITY ASSESSMENTS   
479,Central Services,SupS Legal,Sutton Legal                            ,E10293,Supplies & Services           ,Services                      ,DF14,Doctors and Other Fees                  ,815.1,14/06/2016,R,PAI                           
480,Central Services,SupS Legal,Sutton Legal                            ,E10293,Supplies & Services           ,Services                      ,DF95,Services from Provider                  ,800,31/07/2016,R,LONDON BOROUGH OF SUTTON      
481,Central Services,SupS Legal,Sutton Legal                            ,E10293,Supplies & Services           ,Services                      ,DF95,Services from Provider                  ,500,24/06/2016,R,ATKINS HOPE SOLICITORS        
482,Central Services,SupS Legal,Achieving for Children (AFC),E10295,Supplies & Services           ,Services                      ,DF11,Counsel's Fees                          ,510,31/07/2016,R,REDACTED
483,Central Services,SupS Legal,Achieving for Children (AFC),E10295,Supplies & Services           ,Services                      ,DF11,Counsel's Fees                          ,510,31/07/2016,R,REDACTED
484,Central Services,SupS Legal,Achieving for Children (AFC),E10295,Supplies & Services           ,Services                      ,DF11,Counsel's Fees                          ,520,31/07/2016,R,REDACTED
485,Central Services,SupS Legal,Achieving for Children (AFC),E10295,Supplies & Services           ,Services                      ,DF11,Counsel's Fees                          ,765,31/07/2016,R,REDACTED
486,Central Services,SupS Legal,Achieving for Children (AFC),E10295,Supplies & Services           ,Services                      ,DF11,Counsel's Fees                          ,1372.5,31/07/2016,R,REDACTED
487,Central Services,SupS Legal,Achieving for Children (AFC),E10295,Supplies & Services           ,Services                      ,DF11,Counsel's Fees                          ,562.5,31/07/2016,R,REDACTED
488,Central Services,SupS Legal,Achieving for Children (AFC),E10295,Supplies & Services           ,Services                      ,DF11,Counsel's Fees                          ,500,28/06/2016,R,REDACTED
489,Central Services,SupS Legal,Achieving for Children (AFC),E10295,Supplies & Services           ,Services                      ,DF11,Counsel's Fees                          ,570,28/06/2016,R,REDACTED
490,Central Services,SupS Legal,Achieving for Children (AFC),E10295,Supplies & Services           ,Services                      ,DF11,Counsel's Fees                          ,610,07/07/2016,R,REDACTED
491,Central Services,SupS Legal,Achieving for Children (AFC),E10295,Supplies & Services           ,Services                      ,DF11,Counsel's Fees                          ,620,01/07/2016,R,REDACTED
492,Central Services,SupS Legal,Achieving for Children (AFC),E10295,Supplies & Services           ,Services                      ,DF11,Counsel's Fees                          ,1120,05/07/2016,R,REDACTED
493,Central Services,SupS Legal,Achieving for Children (AFC),E10295,Supplies & Services           ,Services                      ,DF11,Counsel's Fees                          ,2100,05/07/2016,R,REDACTED
494,Central Services,SupS Legal,Achieving for Children (AFC),E10295,Supplies & Services           ,Services                      ,DF14,Doctors and Other Fees                  ,1490.44,31/07/2016,R,ABRAHAMS CONSULTANCY          
495,Central Services,SupS Legal,Achieving for Children (AFC),E10295,Supplies & Services           ,Services                      ,DF14,Doctors and Other Fees                  ,2251,08/04/2016,R,CARTER BROWN THE EXPERT SERV  
496,Central Services,SupS Legal,Achieving for Children (AFC),E10295,Supplies & Services           ,Services                      ,DF14,Doctors and Other Fees                  ,633.26,06/04/2016,R,MCKEOWN PROFESSIONAL ASSOC LTD
497,Central Services,SupS Legal,Achieving for Children (AFC),E10295,Supplies & Services           ,Services                      ,DF14,Doctors and Other Fees                  ,19320,12/05/2016,R,THE BRESLAFF CENTRE           
498,Central Services,SupS Legal,Achieving for Children (AFC),E10295,Supplies & Services           ,Services                      ,DF14,Doctors and Other Fees                  ,678.6,27/06/2016,R,DSP PSYCHOLOGY                
499,Central Services,SupS Legal,Achieving for Children (AFC),E10295,Supplies & Services           ,Services                      ,DF14,Doctors and Other Fees                  ,763.78,06/04/2016,R,WILLEMSEN CONSULTING          
500,Central Services,SupS Legal,Achieving for Children (AFC),E10295,Supplies & Services           ,Services                      ,DF14,Doctors and Other Fees                  ,4948.5,28/06/2016,R,IND SOCIALCARE INVESTIGATIONS 
501,Central Services,SupS Legal,Achieving for Children (AFC),E10295,Supplies & Services           ,Services                      ,DF14,Doctors and Other Fees                  ,907.5,15/07/2016,R,REDACTED
502,Central Services,SupS Legal,Achieving for Children (AFC),E10295,Supplies & Services           ,Services                      ,DF14,Doctors and Other Fees                  ,1440,31/03/2016,R,DOMESTIC VIOLENCE INTERVENTION
503,Central Services,SupS Legal,Achieving for Children (AFC),E10295,Supplies & Services           ,Services                      ,DF14,Doctors and Other Fees                  ,1500,18/03/2016,R,DOMESTIC VIOLENCE INTERVENTION
504,Central Services,SupS Legal,Achieving for Children (AFC),E10295,Supplies & Services           ,Services                      ,DF14,Doctors and Other Fees                  ,2880,31/03/2016,R,DOMESTIC VIOLENCE INTERVENTION
505,Central Services,SupS Legal,Achieving for Children (AFC),E10295,Supplies & Services           ,Services                      ,DF14,Doctors and Other Fees                  ,3929.4,18/07/2016,R,REDACTED
506,Central Services,SupS IT,Social Care Info System (SCI)           ,E14357,Employees                     ,Direct Employee Expenses      ,AA17,Agency Staff & Casual Paymts            ,1575,31/07/2016,R,NUMBER 10 INTERIM LTD         
507,Central Services,SupS IT,Social Care Info System (SCI)           ,E14357,Employees                     ,Direct Employee Expenses      ,AA17,Agency Staff & Casual Paymts            ,1575,31/07/2016,R,NUMBER 10 INTERIM LTD         
508,Central Services,SupS IT,Social Care Info System (SCI)           ,E14357,Employees                     ,Direct Employee Expenses      ,AA17,Agency Staff & Casual Paymts            ,2500,31/07/2016,R,NUMBER 10 INTERIM LTD         
509,Central Services,SupS IT,Social Care Info System (SCI)           ,E14357,Employees                     ,Direct Employee Expenses      ,AA17,Agency Staff & Casual Paymts            ,6823.28,31/07/2016,R,REDACTED
510,Central Services,SupS IT,Social Care Info System (SCI)           ,E14357,Employees                     ,Direct Employee Expenses      ,AA17,Agency Staff & Casual Paymts            ,2500,31/07/2016,R,NUMBER 10 INTERIM LTD         
511,Central Services,SupS IT,Social Care Info System (SCI)           ,E14357,Employees                     ,Direct Employee Expenses      ,AA17,Agency Staff & Casual Paymts            ,2500,20/06/2016,R,NUMBER 10 INTERIM LTD         
512,Central Services,SupS IT,Social Care Info System (SCI)           ,E14357,Employees                     ,Direct Employee Expenses      ,AA17,Agency Staff & Casual Paymts            ,2660,31/05/2016,R,REDACTED
513,Central Services,SupS IT,Social Care Info System (SCI)           ,E14357,Employees                     ,Direct Employee Expenses      ,AA17,Agency Staff & Casual Paymts            ,4850,14/06/2016,R,NUMBER 10 INTERIM LTD         
514,Central Services,SupS IT,Social Care Info System (SCI)           ,E14357,Employees                     ,Direct Employee Expenses      ,AA17,Agency Staff & Casual Paymts            ,11140,31/05/2016,R,RANDSTAD FIN & PROF LTD.      
515,Central Services,SupS IT,Social Care Info System (SCI)           ,E14357,Employees                     ,Direct Employee Expenses      ,AA17,Agency Staff & Casual Paymts            ,3500,26/05/2016,R,NUMBER 10 INTERIM LTD         
516,Central Services,SupS IT,Social Care Info System (SCI)           ,E14357,Employees                     ,Direct Employee Expenses      ,AA17,Agency Staff & Casual Paymts            ,1700,30/06/2016,R,NUMBER 10 INTERIM LTD         
517,Central Services,SupS IT,Social Care Info System (SCI)           ,E14357,Employees                     ,Direct Employee Expenses      ,AA17,Agency Staff & Casual Paymts            ,7130,24/06/2016,R,REDACTED
518,Central Services,SupS IT,Social Care Info System (SCI)           ,E14357,Employees                     ,Direct Employee Expenses      ,AA17,Agency Staff & Casual Paymts            ,1575,26/06/2016,R,REDACTED
519,Central Services,SupS IT,Social Care Info System (SCI)           ,E14357,Employees                     ,Direct Employee Expenses      ,AA17,Agency Staff & Casual Paymts            ,1575,19/06/2016,R,REDACTED
520,Central Services,SupS IT,Social Care Info System (SCI)           ,E14357,Employees                     ,Direct Employee Expenses      ,AA17,Agency Staff & Casual Paymts            ,1700,24/06/2016,R,NUMBER 10 INTERIM LTD         
521,Central Services,SupS IT,Social Care Info System (SCI)           ,E14357,Employees                     ,Direct Employee Expenses      ,AA17,Agency Staff & Casual Paymts            ,2500,27/06/2016,R,NUMBER 10 INTERIM LTD         
522,Central Services,SupS IT,Social Care Info System (SCI)           ,E14357,Employees                     ,Direct Employee Expenses      ,AA17,Agency Staff & Casual Paymts            ,3220,11/07/2016,R,REDACTED
523,Central Services,SupS IT,Social Care Info System (SCI)           ,E14357,Employees                     ,Direct Employee Expenses      ,AA17,Agency Staff & Casual Paymts            ,7541.52,11/07/2016,R,REDACTED
524,Central Services,SupS IT,Social Care Info System (SCI)           ,E14357,Employees                     ,Direct Employee Expenses      ,AA17,Agency Staff & Casual Paymts            ,2500,05/07/2016,R,NUMBER 10 INTERIM LTD         
525,Central Services,SupS IT,BI IT Projects,E14360,Employees                     ,Direct Employee Expenses      ,AA17,Agency Staff & Casual Paymts            ,5040,31/07/2016,R,REDACTED
526,Central Services,SupS IT,BI IT Projects,E14360,Employees                     ,Direct Employee Expenses      ,AA17,Agency Staff & Casual Paymts            ,5040,29/06/2016,R,REDACTED
527,CS -Oth Operating Inc & Expend,SupS Codes No Longer Used,No longer used,E14361,Premises Related Expenditure  ,RepairsAlterations&MtceOfBldgs,BA62,Emergency Call-Out                      ,2000,06/07/2016,R,BRITISH RED CROSS SOCIETY     
528,CS -Oth Operating Inc & Expend,SupS Codes No Longer Used,No longer used,E14362,Transfer Payments             ,Housing Benefits              ,FA50,Burial and Cremation                    ,1272,16/06/2016,R,F.W. PAINE                    
529,CS -Oth Operating Inc & Expend,SupS Codes No Longer Used,No longer used,E14362,Transfer Payments             ,Housing Benefits              ,FA50,Burial and Cremation                    ,1272,22/07/2016,R,F.W. PAINE                    
530,CS -Oth Operating Inc & Expend,SupS Codes No Longer Used,No longer used,E14362,Transfer Payments             ,Housing Benefits              ,FA50,Burial and Cremation                    ,1742,22/07/2016,R,F.W. PAINE                    
531,Central Services,SupS IT,AD I&T,E14363,Employees                     ,Direct Employee Expenses      ,AA17,Agency Staff & Casual Paymts            ,6435,27/06/2016,R,REDACTED
532,Central Services,SupS IT,AD I&T,E14363,Employees                     ,Direct Employee Expenses      ,AA17,Agency Staff & Casual Paymts            ,4387.5,30/06/2016,R,REDACTED
533,Central Services,SupS IT,Systems & Projects,E14366,Supplies & Services           ,Services                      ,DF03,Consultants                             ,5460,31/07/2016,R,MARCUS DONALD PEOPLE LTD      
534,Central Services,SupS IT,Systems & Projects,E14366,Supplies & Services           ,Services                      ,DF03,Consultants                             ,1400,04/07/2016,R,MARCUS DONALD PEOPLE LTD      
535,Central Services,SupS IT,Systems & Projects,E14366,Supplies & Services           ,Comms and Computing           ,DG02,Software Licences                       ,1949.99,17/06/2016,R,CIVICA UK LIMITED             
536,Central Services,SupS IT,Systems & Projects,E14366,Supplies & Services           ,Comms and Computing           ,DG50,Other IT Expenditure                    ,3568,31/07/2016,R,OPEN OBJECTS SOFTWARE LTD     
537,Central Services,SupS IT,Systems & Projects,E14366,Supplies & Services           ,Comms and Computing           ,DG50,Other IT Expenditure                    ,16225,20/06/2016,R,BOLDON JAMES LTD              
538,Central Services,SupS IT,Systems & Projects,E14366,Supplies & Services           ,Comms and Computing           ,DG61,Computer Servs Special                  ,3284,31/07/2016,R,PITNEY BOWES SOFTWARE EUROPE  
539,Central Services,SupS IT,Systems & Projects,E14366,Supplies & Services           ,Comms and Computing           ,DG61,Computer Servs Special                  ,7326,28/06/2016,R,PITNEY BOWES SOFTWARE EUROPE  
540,Central Services,SupS IT,Systems & Projects,E14366,Supplies & Services           ,Comms and Computing           ,DG63,Software Licences - Data                ,74471.27,17/06/2016,R,CIVICA UK LIMITED             
541,Central Services,SupS IT,Operations & Telecomms,E14367,Supplies & Services           ,Comms and Computing           ,DG15,Network Maintenance                     ,2391.58,23/06/2016,R,AXIAL SYSTEMS                 
542,Central Services,SupS IT,Operations & Telecomms,E14367,Supplies & Services           ,Comms and Computing           ,DG15,Network Maintenance                     ,11526.16,23/06/2016,R,AXIAL SYSTEMS                 
543,Central Services,SupS IT,Operations & Telecomms,E14367,Supplies & Services           ,Comms and Computing           ,DG15,Network Maintenance                     ,799,12/07/2016,R,AJP NETWORKING LIMITED        
544,Central Services,SupS IT,Operations & Telecomms,E14367,Supplies & Services           ,Comms and Computing           ,DG15,Network Maintenance                     ,850,12/07/2016,R,AJP NETWORKING LIMITED        
545,Central Services,SupS IT,Operations & Telecomms,E14367,Supplies & Services           ,Comms and Computing           ,DG15,Network Maintenance                     ,1249,12/07/2016,R,AJP NETWORKING LIMITED        
546,Central Services,SupS IT,Operations & Telecomms,E14367,Supplies & Services           ,Comms and Computing           ,DG15,Network Maintenance                     ,2493.38,03/06/2016,R,CAPITA IT SERVICES (BSF) LTD  
547,Central Services,SupS IT,Operations & Telecomms,E14367,Supplies & Services           ,Comms and Computing           ,DG54,Corporate Telephones                    ,751.32,31/07/2016,R,VIRGIN MEDIA PAYMENTS LTD     
548,Central Services,SupS IT,Operations & Telecomms,E14367,Supplies & Services           ,Comms and Computing           ,DG54,Corporate Telephones                    ,751.9,24/06/2016,R,VIRGIN MEDIA PAYMENTS LTD     
549,Central Services,SupS IT,Operations & Telecomms,E14367,Supplies & Services           ,Comms and Computing           ,DG54,Corporate Telephones                    ,6461.31,02/07/2016,R,COLT TELECOMMUNICATIONS       
550,Central Services,SupS IT,Operations & Telecomms,E14367,Supplies & Services           ,Comms and Computing           ,DG54,Corporate Telephones                    ,1119.42,29/05/2016,R,O2 (UK) LIMITED               
551,Central Services,SupS IT,Distributed Services,E14368,Supplies & Services           ,Comms and Computing           ,DG15,Network Maintenance                     ,1575,31/07/2016,R,ALTODIGITAL NETWORKS LTD      
552,Central Services,SupS IT,Distributed Services,E14368,Supplies & Services           ,Comms and Computing           ,DG63,Software Licences - Data                ,1940.4,13/07/2016,R,SOFTCAT LTD                   
553,Central Services,SupS IT,Corp Saving-IT Consolidation,E14370,Premises Related Expenditure  ,RepairsAlterations&MtceOfBldgs,BA01,DDM - General Building                  ,5618.98,31/07/2016,R,MORTON FAIRVIEW ELEC SERVICES 
554,Central Services,SupS IT,Corp Saving-IT Consolidation,E14370,Premises Related Expenditure  ,RepairsAlterations&MtceOfBldgs,BA01,DDM - General Building                  ,1000,22/06/2016,R,SALTASH ENTERPRISES LTD       
555,Central Services,SupS IT,Corp Saving-IT Consolidation,E14370,Premises Related Expenditure  ,RepairsAlterations&MtceOfBldgs,BA03,DDM - Mechanical                        ,5220.6,28/06/2016,R,BILFINGER EUROPA FACILITY     
556,Central Services,SupS IT,Corp Saving-IT Consolidation,E14370,Premises Related Expenditure  ,RepairsAlterations&MtceOfBldgs,BA05,DDM - ELECTRICAL                        ,4427.03,28/06/2016,R,BILFINGER EUROPA FACILITY     
557,Central Services,SupS IT,Corp Saving-IT Consolidation,E14370,Premises Related Expenditure  ,RepairsAlterations&MtceOfBldgs,BA05,DDM - ELECTRICAL                        ,4880.48,28/06/2016,R,BILFINGER EUROPA FACILITY     
558,Central Services,SupS IT,No longer used,E14371,Employees                     ,Direct Employee Expenses      ,AA17,Agency Staff & Casual Paymts            ,3330,31/07/2016,R,HAYS SPECIALIST RECRUITM'T LTD
559,Central Services,SupS IT,No longer used,E14371,Employees                     ,Direct Employee Expenses      ,AA17,Agency Staff & Casual Paymts            ,3330,31/07/2016,R,HAYS SPECIALIST RECRUITM'T LTD
560,Central Services,SupS IT,No longer used,E14371,Employees                     ,Direct Employee Expenses      ,AA17,Agency Staff & Casual Paymts            ,3300,24/06/2016,R,HAYS SPECIALIST RECRUITM'T LTD
561,Central Services,SupS IT,No longer used,E14371,Employees                     ,Direct Employee Expenses      ,AA17,Agency Staff & Casual Paymts            ,13200,05/07/2016,R,MILESTONES COMMUNICATIONS LTD 
562,Central Services,SupS IT,No longer used,E14371,Employees                     ,Direct Employee Expenses      ,AA17,Agency Staff & Casual Paymts            ,2640,06/07/2016,R,HAYS SPECIALIST RECRUITM'T LTD
563,Central Services,SupS IT,No longer used,E14371,Employees                     ,Direct Employee Expenses      ,AA17,Agency Staff & Casual Paymts            ,3300,06/07/2016,R,HAYS SPECIALIST RECRUITM'T LTD
564,Central Services,SupS IT,Business Systems - Deptl Supt,E14377,Supplies & Services           ,Comms and Computing           ,DG15,Network Maintenance                     ,8297.1,13/07/2016,R,SOFTCAT LTD                   
565,Cultural Env Reg&Plan Services,Mgt & Support (Env),Senior Mgt. - E.S.C.,G00100,Third Party Payments          ,Private Contractors           ,EH02,Miscellaneous Hired Services            ,1670,04/07/2016,R,TGL BUILDING & CIVIL ENGIN'ING
566,Highways & Transport Services,Hwys/Rds (struct) not split,C'way & F'way Mtce,G00121,Supplies & Services           ,Equip Furniture/Materials     ,DA09,Equip-Purchases                         ,516.67,12/05/2016,R,MAGRATH SECURITY              
567,Highways & Transport Services,Hwys/Rds (struct) not split,Surf Water Drainage,G00123,Third Party Payments          ,Private Contractors           ,EH56,Carriageway/Fway Maint                  ,584.72,27/06/2016,R,FM CONWAY LTD                 
568,Highways & Transport Services,Repair prin/oth rds not split,Walk Sheets,G00127,Third Party Payments          ,Private Contractors           ,EH10,Contract Payments                       ,6441.4,12/07/2016,R,FM CONWAY LTD                 
569,Highways & Transport Services,Repair prin/oth rds not split,Walk Sheets,G00127,Third Party Payments          ,Private Contractors           ,EH10,Contract Payments                       ,2307,26/07/2016,R,TGL BUILDING & CIVIL ENGIN'ING
570,Highways & Transport Services,Repair prin/oth rds not split,Walk Sheets,G00127,Third Party Payments          ,Private Contractors           ,EH10,Contract Payments                       ,2530.15,08/07/2016,R,FM CONWAY LTD                 
571,Highways & Transport Services,Repair prin/oth rds not split,Walk Sheets,G00127,Third Party Payments          ,Private Contractors           ,EH56,Carriageway/Fway Maint                  ,43491.07,27/06/2016,R,FM CONWAY LTD                 
572,Highways & Transport Services,Repair prin/oth rds not split,Walk Sheets,G00127,Third Party Payments          ,Private Contractors           ,EH56,Carriageway/Fway Maint                  ,7034.3,29/06/2016,R,FM CONWAY LTD                 
573,Highways & Transport Services,Repair prin/oth rds not split,Walk Sheets,G00127,Third Party Payments          ,Private Contractors           ,EH56,Carriageway/Fway Maint                  ,15100.7,29/06/2016,R,FM CONWAY LTD                 
574,Highways & Transport Services,Repair prin/oth rds not split,Walk Sheets,G00127,Third Party Payments          ,Private Contractors           ,EH56,Carriageway/Fway Maint                  ,682.31,12/07/2016,R,FM CONWAY LTD                 
575,Highways & Transport Services,Repair prin/oth rds not split,Walk Sheets,G00127,Third Party Payments          ,Private Contractors           ,EH56,Carriageway/Fway Maint                  ,5627.36,12/07/2016,R,FM CONWAY LTD                 
576,Highways & Transport Services,Repair prin/oth rds not split,Walk Sheets,G00127,Third Party Payments          ,Private Contractors           ,EH56,Carriageway/Fway Maint                  ,3600,08/07/2016,R,FM CONWAY LTD                 
577,Highways & Transport Services,Saf mtc prin/oth rds not split,Traffic Signs.,G00160,Third Party Payments          ,Private Contractors           ,EH01,Miscellaneous Agency Services           ,5263.45,27/06/2016,R,FM CONWAY LTD                 
578,Highways & Transport Services,,TRAF & HWYS CAPITAL PROJECTS,G00210,Supplies & Services           ,Services                      ,DF05,Surveys (General)                       ,1938,04/04/2016,R,L. B. OF HAMMERSMITH & FULHAM 
579,Highways & Transport Services,,TRAF & HWYS CAPITAL PROJECTS,G00210,Third Party Payments          ,Private Contractors           ,EH56,Carriageway/Fway Maint                  ,4350,01/07/2016,R,TRAFFICWATCH (UK) LTD.        
580,Highways & Transport Services,Transport Plg/Policy/Strategy,CPZ implementation & Consultat,G00211,Third Party Payments          ,Private Contractors           ,EH56,Carriageway/Fway Maint                  ,2124.15,12/07/2016,R,FM CONWAY LTD                 
581,Highways & Transport Services,Street Lighting.,Street Lighting .,G00260,Premises Related Expenditure  ,Energy Costs                  ,BB02,Electricity                             ,1652.34,20/06/2016,R,SCOTTISH POWER                
582,Highways & Transport Services,Street Lighting.,Street Lighting .,G00260,Premises Related Expenditure  ,Energy Costs                  ,BB02,Electricity                             ,35133.03,07/06/2016,R,SCOTTISH POWER                
583,Highways & Transport Services,Street Lighting.,Street Lighting .,G00260,Premises Related Expenditure  ,Energy Costs                  ,BB02,Electricity                             ,39732.15,19/05/2016,R,SCOTTISH POWER                
584,Highways & Transport Services,Street Lighting.,Street Lighting .,G00260,Premises Related Expenditure  ,Energy Costs                  ,BB02,Electricity                             ,8063.65,06/07/2016,R,SCOTTISH POWER                
585,Highways & Transport Services,Street Lighting.,Street Lighting .,G00260,Premises Related Expenditure  ,Energy Costs                  ,BB02,Electricity                             ,23397.79,06/07/2016,R,SCOTTISH POWER                
586,Highways & Transport Services,Street Lighting.,Street Lighting .,G00260,Third Party Payments          ,Private Contractors           ,EH01,Miscellaneous Agency Services           ,1305.91,31/07/2016,R,KIER INTEGRATED SERVICES LTD  
587,Highways & Transport Services,Street Lighting.,Street Lighting .,G00260,Third Party Payments          ,Private Contractors           ,EH01,Miscellaneous Agency Services           ,13182,18/05/2016,R,KIER INTEGRATED SERVICES LTD  
588,Highways & Transport Services,Street Lighting.,Street Lighting .,G00260,Third Party Payments          ,Private Contractors           ,EH01,Miscellaneous Agency Services           ,3370.7,30/06/2016,R,KIER INTEGRATED SERVICES LTD  
589,Highways & Transport Services,Street Lighting.,Street Lighting .,G00260,Third Party Payments          ,Private Contractors           ,EH01,Miscellaneous Agency Services           ,13182,30/06/2016,R,KIER INTEGRATED SERVICES LTD  
590,Highways & Transport Services,Off-street parking,Car Parks (Unloc),G00291,Premises Related Expenditure  ,RepairsAlterations&MtceOfBldgs,BA06,REPAIRS & MAINTENANCE GENERAL           ,533.14,30/06/2016,R,KIER INTEGRATED SERVICES LTD  
591,Highways & Transport Services,Off-street parking,Car Parks (Unloc),G00291,Third Party Payments          ,Private Contractors           ,EH02,Miscellaneous Hired Services            ,3666,30/06/2016,R,COBALT TELEPHONE TECHNOLOGIES 
592,Highways & Transport Services,Off-street parking,"St. Mks Rd, Multi Sty",G00308,Premises Related Expenditure  ,Rents                         ,BC01,Miscellaneous Rents                     ,5500,01/06/2016,R,ASDA STORES LTD               
593,Highways & Transport Services,Road Safety Education,TFL CAPT SPEND (REV),G00326,Employees                     ,Indirect Employee Expenses    ,AB57,EXTERNAL TRAINING COSTS                 ,1020,30/06/2016,R,FLEET SOURCE LTD              
594,Highways & Transport Services,CYCLIST TRAINER,CYCLIST TRAINER,G00328,Third Party Payments          ,Private Contractors           ,EH10,Contract Payments                       ,13562.22,31/07/2016,R,CYCLE CONFIDENT               
595,Highways & Transport Services,CYCLIST TRAINER,CYCLIST TRAINER,G00328,Third Party Payments          ,Private Contractors           ,EH10,Contract Payments                       ,21631.85,01/07/2016,R,CYCLE CONFIDENT               
596,Highways & Transport Services,Parking Enforcement not split,Operational Running Costs,G00331,Supplies & Services           ,Equip Furniture/Materials     ,DA04,Materials                               ,2398,29/06/2016,R,JD ASSOCIATES                 
597,Highways & Transport Services,Parking Enforcement not split,Operational Running Costs,G00331,Supplies & Services           ,Equip Furniture/Materials     ,DA09,Equip-Purchases                         ,558,31/07/2016,R,PARKEON LTD                   
598,Highways & Transport Services,Parking Enforcement not split,Operational Running Costs,G00331,Supplies & Services           ,Equip Furniture/Materials     ,DA09,Equip-Purchases                         ,1980,20/06/2016,R,PARKEON LTD                   
599,Highways & Transport Services,Parking Enforcement not split,Operational Running Costs,G00331,Supplies & Services           ,Equip Furniture/Materials     ,DA09,Equip-Purchases                         ,1420,04/07/2016,R,PARKEON LTD                   
600,Highways & Transport Services,Parking Enforcement not split,Operational Running Costs,G00331,Supplies & Services           ,Equip Furniture/Materials     ,DA09,Equip-Purchases                         ,3930,22/07/2016,R,PARKEON LTD                   
601,Highways & Transport Services,Parking Enforcement not split,Operational Running Costs,G00331,Supplies & Services           ,Services                      ,DF95,Services from Provider                  ,610.5,29/06/2016,R,REDACTED
602,Highways & Transport Services,Repair prin/oth rds not split,Flood Risk Management,G00350,Third Party Payments          ,Private Contractors           ,EH56,Carriageway/Fway Maint                  ,5000,27/06/2016,R,FM CONWAY LTD                 
603,Highways & Transport Services,Repair prin/oth rds not split,Flood Risk Management,G00350,Third Party Payments          ,Private Contractors           ,EH56,Carriageway/Fway Maint                  ,20000,27/06/2016,R,FM CONWAY LTD                 
604,Highways & Transport Services,Hwys/Rds (struct) not split,NRSWA Permitting (LoPS),G00385,Employees                     ,Indirect Employee Expenses    ,AB57,EXTERNAL TRAINING COSTS                 ,540,25/07/2016,R,WILBAR ASSOCIATES LTD         
605,Highways & Transport Services,Hwys/Rds (struct) not split,Footpath Crossings.,G00390,Third Party Payments          ,Private Contractors           ,EH56,Carriageway/Fway Maint                  ,5036.05,31/07/2016,R,FM CONWAY LTD                 
606,Highways & Transport Services,Hwys/Rds (struct) not split,Footpath Crossings.,G00390,Third Party Payments          ,Private Contractors           ,EH56,Carriageway/Fway Maint                  ,8407.26,27/06/2016,R,FM CONWAY LTD                 
607,Highways & Transport Services,Hwys/Rds (struct) not split,Footpath Crossings.,G00390,Third Party Payments          ,Private Contractors           ,EH56,Carriageway/Fway Maint                  ,642,07/07/2016,R,UK POWER NETWORKS (OPERATIONS)
608,Highways & Transport Services,Hwys/Rds (struct) not split,Footpath Crossings.,G00390,Third Party Payments          ,Private Contractors           ,EH56,Carriageway/Fway Maint                  ,1124,07/07/2016,R,UK POWER NETWORKS (OPERATIONS)
609,Highways & Transport Services,Hwys/Rds (struct) not split,Footpath Crossings.,G00390,Third Party Payments          ,Private Contractors           ,EH56,Carriageway/Fway Maint                  ,2970.11,08/07/2016,R,FM CONWAY LTD                 
610,Highways & Transport Services,Hwys/Rds (struct) not split,Footpath Crossings.,G00390,Third Party Payments          ,Private Contractors           ,EH56,Carriageway/Fway Maint                  ,13368.13,08/07/2016,R,FM CONWAY LTD                 
611,Cultural Env Reg&Plan Services,Street Clean - Not highways,Street Cleansing (Inc. Gully),G00492,Premises Related Expenditure  ,Rents                         ,BC01,Miscellaneous Rents                     ,791.18,30/06/2016,R,CIRCLE HOUSING MERTON PRIORY  
612,Cultural Env Reg&Plan Services,Street Clean - Not highways,Street Cleansing (Inc. Gully),G00492,Premises Related Expenditure  ,Water Services                ,BE01,Use of Water (Metered)                  ,1076.52,23/06/2016,R,AQUAM WATER SERVICES LTD      
613,Cultural Env Reg&Plan Services,Street Clean - Not highways,Street Cleansing (Inc. Gully),G00492,Premises Related Expenditure  ,Water Services                ,BE01,Use of Water (Metered)                  ,1076.52,23/06/2016,R,AQUAM WATER SERVICES LTD      
614,Cultural Env Reg&Plan Services,Street Clean - Not highways,Street Cleansing (Inc. Gully),G00492,Premises Related Expenditure  ,Water Services                ,BE01,Use of Water (Metered)                  ,1076.52,23/06/2016,R,AQUAM WATER SERVICES LTD      
615,Cultural Env Reg&Plan Services,Street Clean - Not highways,Street Cleansing (Inc. Gully),G00492,Premises Related Expenditure  ,Water Services                ,BE01,Use of Water (Metered)                  ,1076.52,23/06/2016,R,AQUAM WATER SERVICES LTD      
616,Cultural Env Reg&Plan Services,Street Clean - Not highways,Street Cleansing (Inc. Gully),G00492,Premises Related Expenditure  ,Water Services                ,BE01,Use of Water (Metered)                  ,3997.56,23/06/2016,R,AQUAM WATER SERVICES LTD      
617,Cultural Env Reg&Plan Services,Street Clean - Not highways,Street Cleansing (Inc. Gully),G00492,Premises Related Expenditure  ,Water Services                ,BE01,Use of Water (Metered)                  ,3997.56,23/06/2016,R,AQUAM WATER SERVICES LTD      
618,Cultural Env Reg&Plan Services,Street Clean - Not highways,Street Cleansing (Inc. Gully),G00492,Premises Related Expenditure  ,Water Services                ,BE01,Use of Water (Metered)                  ,3997.56,23/06/2016,R,AQUAM WATER SERVICES LTD      
619,Cultural Env Reg&Plan Services,Street Clean - Not highways,Street Cleansing (Inc. Gully),G00492,Supplies & Services           ,Equip Furniture/Materials     ,DA01,Equipment - R & M                       ,12080,24/06/2016,R,R.J.H.WELDING                 
620,Cultural Env Reg&Plan Services,Street Clean - Not highways,Street Cleansing (Inc. Gully),G00492,Supplies & Services           ,Equip Furniture/Materials     ,DA03,Hire of Equipment                       ,690,31/07/2016,R,COMCIR RADIO COMMUNICATIONS LT
621,Cultural Env Reg&Plan Services,Street Clean - Not highways,Street Cleansing (Inc. Gully),G00492,Supplies & Services           ,Equip Furniture/Materials     ,DA03,Hire of Equipment                       ,1390,31/07/2016,R,COMCIR RADIO COMMUNICATIONS LT
622,Cultural Env Reg&Plan Services,Street Clean - Not highways,Street Cleansing (Inc. Gully),G00492,Supplies & Services           ,Equip Furniture/Materials     ,DA03,Hire of Equipment                       ,690,29/06/2016,R,COMCIR RADIO COMMUNICATIONS LT
623,Cultural Env Reg&Plan Services,Street Clean - Not highways,Street Cleansing (Inc. Gully),G00492,Supplies & Services           ,Equip Furniture/Materials     ,DA03,Hire of Equipment                       ,1390,29/06/2016,R,COMCIR RADIO COMMUNICATIONS LT
624,Cultural Env Reg&Plan Services,Street Clean - Not highways,Street Cleansing (Inc. Gully),G00492,Supplies & Services           ,Equip Furniture/Materials     ,DA04,Materials                               ,673.8,12/07/2016,R,GREENHAM                      
625,Cultural Env Reg&Plan Services,Street Clean - Not highways,Street Cleansing (Inc. Gully),G00492,Supplies & Services           ,Comms and Computing           ,DG07,Computer Software                       ,575,31/07/2016,R,SIGHT & SOUND TECHNOLOGY      
626,Cultural Env Reg&Plan Services,Street Clean - Not highways,Street Cleansing (Inc. Gully),G00492,Supplies & Services           ,Comms and Computing           ,DG08,Computer Hardware                       ,500,31/07/2016,R,DIGITAL HEARING CARE SOLUTIONS
627,Cultural Env Reg&Plan Services,Waste Disposal (not separated),Waste Disposal .,G00550,Third Party Payments          ,Private Contractors           ,EH04,C1 Viridor SLWP Landfill Contract       ,317607.91,31/07/2016,R,KINGSTON CORPORATION          
628,Cultural Env Reg&Plan Services,Waste Disposal (not separated),Waste Disposal .,G00550,Third Party Payments          ,Private Contractors           ,EH04,C1 Viridor SLWP Landfill Contract       ,5067.36,14/06/2016,R,KINGSTON CORPORATION          
629,Cultural Env Reg&Plan Services,Waste Disposal (not separated),Waste Disposal .,G00550,Third Party Payments          ,Private Contractors           ,EH04,C1 Viridor SLWP Landfill Contract       ,346030.4,14/06/2016,R,KINGSTON CORPORATION          
630,Cultural Env Reg&Plan Services,Waste Disposal (not separated),Waste Disposal .,G00550,Third Party Payments          ,Private Contractors           ,EH11,SLWP PROCUREMENT COSTS                  ,48199,31/07/2016,R,KINGSTON CORPORATION          
631,Cultural Env Reg&Plan Services,Waste Disposal (not separated),Waste Disposal .,G00550,Third Party Payments          ,Private Contractors           ,EH66,Clinical Waste Disposal                 ,663.41,30/06/2016,R,S.GRUNDON (WASTE) LTD.        
632,Cultural Env Reg&Plan Services,Civic Amenity Sites,Garth Road Site,G00580,Transport Related Expenditure ,Direct Transport Costs        ,CA01,Petrol Derv & Oil                       ,1287.9,09/06/2016,R,EMO OILS LTD                  
633,Cultural Env Reg&Plan Services,Civic Amenity Sites,Garth Road Site,G00580,Supplies & Services           ,Equip Furniture/Materials     ,DA01,Equipment - R & M                       ,2191.35,29/06/2016,R,MIST-AIR                      
634,Cultural Env Reg&Plan Services,Civic Amenity Sites,Garth Road Site,G00580,Third Party Payments          ,Private Contractors           ,EH01,Miscellaneous Agency Services           ,220553,31/07/2016,R,CROYDON COUNCIL               
635,Cultural Env Reg&Plan Services,Civic Amenity Sites,Garth Road Site,G00580,Third Party Payments          ,Private Contractors           ,EH04,C1 Viridor SLWP Landfill Contract       ,20603.4,31/07/2016,R,KINGSTON CORPORATION          
636,Cultural Env Reg&Plan Services,Civic Amenity Sites,Garth Road Site,G00580,Third Party Payments          ,Private Contractors           ,EH04,C1 Viridor SLWP Landfill Contract       ,20209.64,14/06/2016,R,KINGSTON CORPORATION          
637,Cultural Env Reg&Plan Services,Civic Amenity Sites,Garth Road Site,G00580,Third Party Payments          ,Private Contractors           ,EH11,SLWP PROCUREMENT COSTS                  ,40601,31/07/2016,R,KINGSTON CORPORATION          
638,Cultural Env Reg&Plan Services,Civic Amenity Sites,Garth Road Site,G00580,Third Party Payments          ,Private Contractors           ,EH18,SLWP C3 Food Waste Gate Fees            ,7437.93,14/06/2016,R,KINGSTON CORPORATION          
639,Cultural Env Reg&Plan Services,Civic Amenity Sites,Garth Road Site,G00580,Third Party Payments          ,Private Contractors           ,EH61,Green Waste Disposal                    ,7488.51,14/06/2016,R,KINGSTON CORPORATION          
640,Cultural Env Reg&Plan Services,Civic Amenity Sites,Garth Road Site,G00580,Third Party Payments          ,Private Contractors           ,EH94,Waste Disposal - Alt. Site              ,621.98,14/06/2016,R,KINGSTON CORPORATION          
641,Cultural Env Reg&Plan Services,Public Health,Dog Control.,G00620,Third Party Payments          ,Private Contractors           ,EH02,Miscellaneous Hired Services            ,2903.4,12/07/2016,R,NOAH'S ARK ENVIRONMENTAL SERV.
642,Cultural Env Reg&Plan Services,Recycling (Collection),Recycling Activities,G00640,Supplies & Services           ,Equip Furniture/Materials     ,DA09,Equip-Purchases                         ,880,21/07/2016,R,PJ HARVEY & CO LTD            
643,Cultural Env Reg&Plan Services,Recycling (Collection),Recycling Activities,G00640,Supplies & Services           ,Equip Furniture/Materials     ,DA32,Wheeled Bins                            ,689.55,31/07/2016,R,SPIDER UK LTD
644,Cultural Env Reg&Plan Services,Recycling (Collection),Recycling Activities,G00640,Supplies & Services           ,Equip Furniture/Materials     ,DA32,Wheeled Bins                            ,2185,31/07/2016,R,UK CONTAINER MAINTENANCE LTD  
645,Cultural Env Reg&Plan Services,Recycling (Collection),Recycling Activities,G00640,Supplies & Services           ,Equip Furniture/Materials     ,DA32,Wheeled Bins                            ,2770,14/06/2013,R,UK CONTAINER MAINTENANCE LTD  
646,Cultural Env Reg&Plan Services,Recycling (Collection),Recycling Activities,G00640,Supplies & Services           ,Equip Furniture/Materials     ,DA32,Wheeled Bins                            ,3483,27/06/2016,R,UK CONTAINER MAINTENANCE LTD  
647,Cultural Env Reg&Plan Services,Recycling (Collection),Recycling Activities,G00640,Supplies & Services           ,Equip Furniture/Materials     ,DA32,Wheeled Bins                            ,1846,14/07/2016,R,UK CONTAINER MAINTENANCE LTD  
648,Cultural Env Reg&Plan Services,Recycling (Collection),Recycling Activities,G00640,Supplies & Services           ,Equip Furniture/Materials     ,DA32,Wheeled Bins                            ,6895.5,20/07/2016,R,SPIDER UK LTD
649,Cultural Env Reg&Plan Services,Recycling (Collection),Recycling Activities,G00640,Third Party Payments          ,Private Contractors           ,EH08,SLWP C1 Haulage Dry Recyclable          ,27308.85,31/07/2016,R,KINGSTON CORPORATION          
650,Cultural Env Reg&Plan Services,Recycling (Collection),Recycling Activities,G00640,Third Party Payments          ,Private Contractors           ,EH08,SLWP C1 Haulage Dry Recyclable          ,27670.96,14/06/2016,R,KINGSTON CORPORATION          
651,Cultural Env Reg&Plan Services,Recycling (Collection),Recycling Activities,G00640,Third Party Payments          ,Private Contractors           ,EH94,Waste Disposal - Alt. Site              ,5948.48,31/07/2016,R,KINGSTON CORPORATION          
652,Cultural Env Reg&Plan Services,Recycling (Collection),Recycling Activities,G00640,Third Party Payments          ,Private Contractors           ,EH94,Waste Disposal - Alt. Site              ,6019.55,14/06/2016,R,KINGSTON CORPORATION          
653,Cultural Env Reg&Plan Services,Recycling (Collection),Garden Waste Service,G00647,Supplies & Services           ,Equip Furniture/Materials     ,DA32,Wheeled Bins                            ,10296,11/05/2016,R,CRAEMER UK LTD                
654,Cultural Env Reg&Plan Services,Recycling (Collection),Garden Waste Service,G00647,Third Party Payments          ,Private Contractors           ,EH61,Green Waste Disposal                    ,8013.8,14/06/2016,R,KINGSTON CORPORATION          
655,Cultural Env Reg&Plan Services,Recycling (Collection),Food Waste Service,G00648,Third Party Payments          ,Private Contractors           ,EH19,SLWP C3 FOOD WASTE HAULAGE              ,2695.49,31/07/2016,R,KINGSTON CORPORATION          
656,Cultural Env Reg&Plan Services,Recycling (Collection),Food Waste Service,G00648,Third Party Payments          ,Private Contractors           ,EH19,SLWP C3 FOOD WASTE HAULAGE              ,2879.8,31/07/2016,R,KINGSTON CORPORATION          
657,Cultural Env Reg&Plan Services,Recycling (Collection),Food Waste Service,G00648,Third Party Payments          ,Private Contractors           ,EH19,SLWP C3 FOOD WASTE HAULAGE              ,2697.36,14/06/2016,R,KINGSTON CORPORATION          
658,Cultural Env Reg&Plan Services,Recycling (Collection),Food Waste Service,G00648,Third Party Payments          ,Private Contractors           ,EH19,SLWP C3 FOOD WASTE HAULAGE              ,2881.8,14/06/2016,R,KINGSTON CORPORATION          
659,Cultural Env Reg&Plan Services,Recycling (Collection),WCSS Recycl Encourgmnt&Incentv          ,G00650,Supplies & Services           ,Equip Furniture/Materials     ,DA54,GREEN KERBSIDE RECYCLING BOXES          ,6550,08/07/2016,R,SMARTBAGS LIMITED             
660,Cultural Env Reg&Plan Services,Household Waste Collection,Refuse Collection (Operations),G00661,Supplies & Services           ,Clothing Unfrms Laundry       ,DC02,Clothing & Uniforms                     ,822.5,15/06/2016,R,GREENHAM                      
661,Cultural Env Reg&Plan Services,Household Waste Collection,Refuse Collection (Operations),G00661,Supplies & Services           ,Services                      ,DF03,Consultants                             ,8900,31/05/2016,R,INTEGRATED SKILLS (UK) LTD    
662,Cultural Env Reg&Plan Services,Trade Waste Collection,Commercial Waste,G00663,Third Party Payments          ,Private Contractors           ,EH04,C1 Viridor SLWP Landfill Contract       ,35385.96,31/07/2016,R,KINGSTON CORPORATION          
663,Cultural Env Reg&Plan Services,Trade Waste Collection,Commercial Waste,G00663,Third Party Payments          ,Private Contractors           ,EH04,C1 Viridor SLWP Landfill Contract       ,40060.48,14/06/2016,R,KINGSTON CORPORATION          
664,Cultural Env Reg&Plan Services,Trade Waste Collection,Commercial Waste,G00663,Third Party Payments          ,Private Contractors           ,EH08,SLWP C1 Haulage Dry Recyclable          ,1398.47,31/07/2016,R,KINGSTON CORPORATION          
665,Cultural Env Reg&Plan Services,Trade Waste Collection,Commercial Waste,G00663,Third Party Payments          ,Private Contractors           ,EH08,SLWP C1 Haulage Dry Recyclable          ,1575.04,14/06/2016,R,KINGSTON CORPORATION          
666,Cultural Env Reg&Plan Services,Household Waste Collection,Phase C Procurement                     ,G00667,Third Party Payments          ,Private Contractors           ,EH11,SLWP PROCUREMENT COSTS                  ,257046,31/07/2016,R,KINGSTON CORPORATION          
667,Cultural Env Reg&Plan Services,Street Clean - Not highways,Waste Enforcement,G00680,Premises Related Expenditure  ,RepairsAlterations&MtceOfBldgs,BA06,REPAIRS & MAINTENANCE GENERAL           ,1521.71,31/07/2016,R,PJ HARVEY & CO LTD            
668,Cultural Env Reg&Plan Services,Street Clean - Not highways,Waste Enforcement,G00680,Supplies & Services           ,Services                      ,DF30,Activities Programme                    ,1180,12/07/2016,R,DANGEROUS THEATRE COMPANY     
669,Cultural Env Reg&Plan Services,Street Clean - Not highways,Waste Enforcement,G00680,Third Party Payments          ,Private Contractors           ,EH02,Miscellaneous Hired Services            ,14748.25,31/07/2016,R,KINGDOM SECURITY              
670,Cultural Env Reg&Plan Services,Inspect/Enforce (Consumer P),Trading Standards,G00690,Supplies & Services           ,Equip Furniture/Materials     ,DA09,Equip-Purchases                         ,625,31/07/2016,R,B.W.Y.CANINE                  
671,Cultural Env Reg&Plan Services,Food Safety,Health & Safety,G00697,Supplies & Services           ,Grants and Subscriptions      ,DJ04,Subscriptions                           ,1250,01/07/2016,R,CHARTERED INST.OF ENVIR.HEALTH
672,Cultural Env Reg&Plan Services,Food Safety,Health & Safety,G00697,Third Party Payments          ,Private Contractors           ,EH10,Contract Payments                       ,3120,29/06/2016,R,PUBLIC ANALYST SCIENTIFIC SER.
673,Cultural Env Reg&Plan Services,Mgt & Support (Env),SLWP (rechargeable)                     ,G00905,Supplies & Services           ,Services                      ,DF03,Consultants                             ,3915,31/07/2016,R,BRAND NARRATIVE LIMITED       
674,Cultural Env Reg&Plan Services,Mgt & Support (Env),SLWP (rechargeable)                     ,G00905,Supplies & Services           ,Services                      ,DF03,Consultants                             ,3028.05,30/06/2016,R,BRAND NARRATIVE LIMITED       
675,Central Services,SupS Env and Regen,LBR - Pollution                         ,G01004,Supplies & Services           ,Equip Furniture/Materials     ,DA09,Equip-Purchases                         ,5235.6,31/07/2016,R,GRADKO INTERNATIONAL          
676,Central Services,Grants - Voluntary Groups,Vestry Hall,G19290,Employees                     ,Direct Employee Expenses      ,AA17,Agency Staff & Casual Paymts            ,5565.4,31/07/2016,R,REDACTED
677,Central Services,Grants - Voluntary Groups,Vestry Hall,G19290,Employees                     ,Direct Employee Expenses      ,AA17,Agency Staff & Casual Paymts            ,684.52,31/05/2016,R,REDACTED
678,Central Services,Grants - Voluntary Groups,Vestry Hall,G19290,Employees                     ,Direct Employee Expenses      ,AA17,Agency Staff & Casual Paymts            ,5565.4,10/06/2016,R,REDACTED
679,Central Services,Grants - Voluntary Groups,Vestry Hall,G19290,Premises Related Expenditure  ,RepairsAlterations&MtceOfBldgs,BA01,DDM - General Building                  ,510,12/07/2016,R,REDACTED
680,Central Services,Grants - Voluntary Groups,Vestry Hall,G19290,Premises Related Expenditure  ,RepairsAlterations&MtceOfBldgs,BA01,DDM - General Building                  ,6981,30/03/2016,R,REDACTED
681,Central Services,Grants - Voluntary Groups,Vestry Hall,G19290,Premises Related Expenditure  ,RepairsAlterations&MtceOfBldgs,BA06,REPAIRS & MAINTENANCE GENERAL           ,2158.63,30/03/2016,R,REDACTED
682,Central Services,Grants - Voluntary Groups,Vestry Hall,G19290,Premises Related Expenditure  ,RepairsAlterations&MtceOfBldgs,BA79,Security of Premises                    ,1151.51,30/06/2016,R,KINGDOM SECURITY LTD          
683,Central Services,Grants - Voluntary Groups,Vestry Hall,G19290,Premises Related Expenditure  ,Cleaning and Domestic Supplies,BH03,Cleaning Services                       ,1934.4,31/07/2016,R,BIRKIN CLEANING SERVICES LTD  
684,Central Services,Grants - Voluntary Groups,Vestry Hall,G19290,Premises Related Expenditure  ,Cleaning and Domestic Supplies,BH03,Cleaning Services                       ,1934.45,30/06/2016,R,BIRKIN CLEANING SERVICES LTD  
685,Central Services,Grants - Voluntary Groups,Vestry Hall,G19290,Supplies & Services           ,Prntng Stnry Gen Off Exp      ,DE22,Marketing                               ,500,09/06/2016,R,REDACTED
686,Central Services,Grants - Voluntary Groups,Vestry Hall,G19290,Supplies & Services           ,Prntng Stnry Gen Off Exp      ,DE22,Marketing                               ,600,09/06/2016,R,REDACTED
687,Central Services,Grants - Voluntary Groups,Vestry Hall,G19290,Supplies & Services           ,Comms and Computing           ,DG08,Computer Hardware                       ,540,22/06/2016,R,SUNA COMMUNICATION            
688,Highways & Transport Services,Safe routes inc schl x patrol,School & Road Safety TFL                ,H01083,Supplies & Services           ,Equip Furniture/Materials     ,DA04,Materials                               ,510,05/07/2016,R,BIKEWIZE MOTORCYCLE TRAINING  
689,Highways & Transport Services,Safe routes inc schl x patrol,School & Road Safety TFL                ,H01083,Supplies & Services           ,Equip Furniture/Materials     ,DA04,Materials                               ,534,22/07/2016,R,BLAKES DRIVER TRAINING        
690,Cultural Env Reg&Plan Services,DC Advice Apps & Reg not split,Development Control,H01130,Supplies & Services           ,Services                      ,DF02,Misc Advertising/Publicity              ,768,31/07/2016,R,NEWSQUEST MEDIA GROUP LTD     
691,Cultural Env Reg&Plan Services,DC Advice Apps & Reg not split,Development Control,H01130,Supplies & Services           ,Services                      ,DF03,Consultants                             ,700,28/06/2016,R,SARAH TANBURN ASSOCIATES LTD  
692,Cultural Env Reg&Plan Services,DC Advice Apps & Reg not split,Development Control,H01130,Supplies & Services           ,Services                      ,DF11,Counsel's Fees                          ,1350,14/06/2016,R,REDACTED
693,Cultural Env Reg&Plan Services,Planning Policy not split,Spatial Policy,H01173,Supplies & Services           ,Services                      ,DF11,Counsel's Fees                          ,1000,12/07/2016,R,REDACTED
694,Cultural Env Reg&Plan Services,Planning Policy not split,Spatial Policy,H01173,Third Party Payments          ,Private Contractors           ,EH10,Contract Payments                       ,6156.64,05/04/2016,R,BBP REGENERATION              
695,Cultural Env Reg&Plan Services,Planning Policy not split,REGENERATION & INVESTMENT,H01174,Supplies & Services           ,Grants and Subscriptions      ,DJ54,Contributions                           ,1500,11/07/2016,R,MITCHAM COMM'TY ORCHARD & GDNS
696,Cultural Env Reg&Plan Services,Planning Policy not split,MAYOR'S AIR QUALITY                     ,H01187,Third Party Payments          ,Private Contractors           ,EH10,Contract Payments                       ,3000,20/04/2016,R,WANDSWORTH CORPORATION        
697,Cultural Env Reg&Plan Services,Economic Dev (Not separated),NHB-Morden Shopping Parades             ,H01190,Supplies & Services           ,Services                      ,DF03,Consultants                             ,975,31/07/2016,R,URBAN ENTERPRISE NETWORK      
698,Cultural Env Reg&Plan Services,Economic Dev (Not separated),NHB-Morden Shopping Parades             ,H01190,Supplies & Services           ,Services                      ,DF03,Consultants                             ,975,12/07/2016,R,URBAN ENTERPRISE NETWORK      
699,Cultural Env Reg&Plan Services,Economic Dev (Not separated),NHB-Morden Shopping Parades             ,H01190,Supplies & Services           ,Services                      ,DF03,Consultants                             ,975,01/07/2016,R,URBAN ENTERPRISE NETWORK      
700,Cultural Env Reg&Plan Services,Economic Dev (Not separated),NHB-Morden Shopping Parades             ,H01190,Supplies & Services           ,Services                      ,DF03,Consultants                             ,975,26/07/2016,R,URBAN ENTERPRISE NETWORK      
701,Cultural Env Reg&Plan Services,Economic Dev (Not separated),Capt Ambition-Suburban Opprt Z,H01231,Supplies & Services           ,Equip Furniture/Materials     ,DA09,Equip-Purchases                         ,8748.6,12/07/2016,R,BLACHERE ILLUMINATION UK      
702,Cultural Env Reg&Plan Services,Economic Dev (Not separated),Employability & Skills (S106),H01235,Supplies & Services           ,Grants and Subscriptions      ,DJ01,Grants                                  ,4974,01/07/2016,R,SOCIAL ENTERPRISE MERTON CIC  
703,Cultural Env Reg&Plan Services,Economic Dev (Not separated),Employability & Skills (S106),H01235,Supplies & Services           ,Grants and Subscriptions      ,DJ01,Grants                                  ,5000,01/07/2016,R,DELROSE EARLE TRAINING        
704,Cultural Env Reg&Plan Services,Economic Dev (Not separated),Employability & Skills (S106),H01235,Supplies & Services           ,Grants and Subscriptions      ,DJ01,Grants                                  ,5000,01/07/2016,R,MERTON CHAMBER OF COMMERCE    
705,Cultural Env Reg&Plan Services,Economic Dev (Not separated),Employability & Skills (S106),H01235,Supplies & Services           ,Grants and Subscriptions      ,DJ01,Grants                                  ,5000,01/07/2016,R,MERTON VOLUNTARY SERV COUNCIL 
706,Cultural Env Reg&Plan Services,Economic Dev (Not separated),Employability & Skills (S106),H01235,Third Party Payments          ,Private Contractors           ,EH10,Contract Payments                       ,1530,20/05/2016,R,DELROSE EARLE TRAINING        
707,Cultural Env Reg&Plan Services,Economic Dev (Not separated),Employability & Skills (S106),H01235,Third Party Payments          ,Private Contractors           ,EH10,Contract Payments                       ,1530,02/07/2016,R,DELROSE EARLE TRAINING        
708,CS -Oth Operating Inc & Expend,T/A Vehicle Maintenance etc,Transport-Contract Hire,J01374,Employees                     ,Direct Employee Expenses      ,AA17,Agency Staff & Casual Paymts            ,9918,05/07/2016,R,REDACTED
709,CS -Oth Operating Inc & Expend,T/A Vehicle Maintenance etc,Transport-Contract Hire,J01374,Transport Related Expenditure ,Direct Transport Costs        ,CA01,Petrol Derv & Oil                       ,30823.68,07/07/2016,R,EMO OILS LTD                  
710,CS -Oth Operating Inc & Expend,T/A Vehicle Maintenance etc,Transport-Contract Hire,J01374,Transport Related Expenditure ,Contract Hire and Op Leasing  ,CC53,Plant Hire for MRCS                     ,745,31/07/2016,R,GULLIVER'S TRUCK HIRE LTD.    
711,CS -Oth Operating Inc & Expend,T/A Vehicle Maintenance etc,Transport-Contract Hire,J01374,Transport Related Expenditure ,Contract Hire and Op Leasing  ,CC53,Plant Hire for MRCS                     ,1250,31/07/2016,R,DAWSON RENTALS BUS AND COACH  
712,CS -Oth Operating Inc & Expend,T/A Vehicle Maintenance etc,Transport-Contract Hire,J01374,Transport Related Expenditure ,Contract Hire and Op Leasing  ,CC53,Plant Hire for MRCS                     ,2200,31/07/2016,R,DAWSON RENTALS BUS AND COACH  
713,CS -Oth Operating Inc & Expend,T/A Vehicle Maintenance etc,Transport-Contract Hire,J01374,Transport Related Expenditure ,Contract Hire and Op Leasing  ,CC53,Plant Hire for MRCS                     ,726,30/06/2016,R,REDACTED
714,CS -Oth Operating Inc & Expend,T/A Vehicle Maintenance etc,Transport-Contract Hire,J01374,Transport Related Expenditure ,Contract Hire and Op Leasing  ,CC53,Plant Hire for MRCS                     ,3168,30/06/2016,R,RIVERSIDE TRUCK RENTAL LTD    
715,CS -Oth Operating Inc & Expend,T/A Vehicle Maintenance etc,Transport-Contract Hire,J01374,Transport Related Expenditure ,Contract Hire and Op Leasing  ,CC53,Plant Hire for MRCS                     ,3344,30/06/2016,R,RIVERSIDE TRUCK RENTAL LTD    
716,CS -Oth Operating Inc & Expend,T/A Vehicle Maintenance etc,Transport-Contract Hire,J01374,Transport Related Expenditure ,Contract Hire and Op Leasing  ,CC53,Plant Hire for MRCS                     ,8050,15/04/2016,R,GULLIVER'S TRUCK HIRE LTD.    
717,CS -Oth Operating Inc & Expend,T/A Vehicle Maintenance etc,Transport-Contract Hire,J01374,Transport Related Expenditure ,Contract Hire and Op Leasing  ,CC53,Plant Hire for MRCS                     ,-2975,20/06/2016,R,GULLIVER'S TRUCK HIRE LTD.    
718,CS -Oth Operating Inc & Expend,T/A Vehicle Maintenance etc,Transport-Contract Hire,J01374,Transport Related Expenditure ,Contract Hire and Op Leasing  ,CC53,Plant Hire for MRCS                     ,1350,30/06/2016,R,C P DAVIDSON & SONS LTD       
719,CS -Oth Operating Inc & Expend,T/A Vehicle Maintenance etc,Transport-Contract Hire,J01374,Transport Related Expenditure ,Contract Hire and Op Leasing  ,CC53,Plant Hire for MRCS                     ,1471,11/07/2016,R,GULLIVER'S TRUCK HIRE LTD.    
720,CS -Oth Operating Inc & Expend,T/A Vehicle Maintenance etc,Transport-Contract Hire,J01374,Transport Related Expenditure ,Contract Hire and Op Leasing  ,CC53,Plant Hire for MRCS                     ,2625,08/07/2016,R,GULLIVER'S TRUCK HIRE LTD.    
721,CS -Oth Operating Inc & Expend,T/A Vehicle Maintenance etc,Transport-Contract Hire,J01374,Transport Related Expenditure ,Contract Hire and Op Leasing  ,CC56,Plant Hire for Leisure                  ,585,30/06/2016,R,REDACTED
722,CS -Oth Operating Inc & Expend,T/A Vehicle Maintenance etc,Transport-Contract Hire,J01374,Transport Related Expenditure ,Contract Hire and Op Leasing  ,CC59,HIRING TRANSPORT OPERATIONS             ,559.58,30/06/2016,R,REDACTED
723,CS -Oth Operating Inc & Expend,T/A Vehicle Maintenance etc,Transport-Contract Hire,J01374,Transport Related Expenditure ,Contract Hire and Op Leasing  ,CC59,HIRING TRANSPORT OPERATIONS             ,559.58,30/06/2016,R,REDACTED
724,CS -Oth Operating Inc & Expend,T/A Vehicle Maintenance etc,Transport-Contract Hire,J01374,Transport Related Expenditure ,Contract Hire and Op Leasing  ,CC59,HIRING TRANSPORT OPERATIONS             ,559.58,30/06/2016,R,REDACTED
725,CS -Oth Operating Inc & Expend,T/A Vehicle Maintenance etc,Transport-Contract Hire,J01374,Transport Related Expenditure ,Contract Hire and Op Leasing  ,CC59,HIRING TRANSPORT OPERATIONS             ,559.58,30/06/2016,R,REDACTED
726,CS -Oth Operating Inc & Expend,T/A Vehicle Maintenance etc,Transport-Contract Hire,J01374,Transport Related Expenditure ,Contract Hire and Op Leasing  ,CC59,HIRING TRANSPORT OPERATIONS             ,1452,30/06/2016,R,ENTERPRISE RENT-A-CAR UK LTD  
727,CS -Oth Operating Inc & Expend,T/A Vehicle Maintenance etc,Transport-Contract Hire,J01374,Transport Related Expenditure ,Contract Hire and Op Leasing  ,CC59,HIRING TRANSPORT OPERATIONS             ,1452,30/06/2016,R,ENTERPRISE RENT-A-CAR UK LTD  
728,CS -Oth Operating Inc & Expend,T/A Vehicle Maintenance etc,Transport-Contract Hire,J01374,Transport Related Expenditure ,Contract Hire and Op Leasing  ,CC64,CSF - SEN CABS (RK02)                   ,555,31/07/2016,R,KENDALL CARS                  
729,CS -Oth Operating Inc & Expend,T/A Vehicle Maintenance etc,Transport-Contract Hire,J01374,Transport Related Expenditure ,Contract Hire and Op Leasing  ,CC64,CSF - SEN CABS (RK02)                   ,596.72,31/07/2016,R,KAT TRANSPORT LTD             
730,CS -Oth Operating Inc & Expend,T/A Vehicle Maintenance etc,Transport-Contract Hire,J01374,Transport Related Expenditure ,Contract Hire and Op Leasing  ,CC64,CSF - SEN CABS (RK02)                   ,1231.2,31/07/2016,R,KAT TRANSPORT LTD             
731,CS -Oth Operating Inc & Expend,T/A Vehicle Maintenance etc,Transport-Contract Hire,J01374,Transport Related Expenditure ,Contract Hire and Op Leasing  ,CC64,CSF - SEN CABS (RK02)                   ,1499.4,31/07/2016,R,KAT TRANSPORT LTD             
732,CS -Oth Operating Inc & Expend,T/A Vehicle Maintenance etc,Transport-Contract Hire,J01374,Transport Related Expenditure ,Contract Hire and Op Leasing  ,CC64,CSF - SEN CABS (RK02)                   ,1626.02,31/07/2016,R,KAT TRANSPORT LTD             
733,CS -Oth Operating Inc & Expend,T/A Vehicle Maintenance etc,Transport-Contract Hire,J01374,Transport Related Expenditure ,Contract Hire and Op Leasing  ,CC64,CSF - SEN CABS (RK02)                   ,1646.12,31/07/2016,R,KAT TRANSPORT LTD             
734,CS -Oth Operating Inc & Expend,T/A Vehicle Maintenance etc,Transport-Contract Hire,J01374,Transport Related Expenditure ,Contract Hire and Op Leasing  ,CC64,CSF - SEN CABS (RK02)                   ,1676.92,31/07/2016,R,KAT TRANSPORT LTD             
735,CS -Oth Operating Inc & Expend,T/A Vehicle Maintenance etc,Transport-Contract Hire,J01374,Transport Related Expenditure ,Contract Hire and Op Leasing  ,CC64,CSF - SEN CABS (RK02)                   ,1708.1,31/07/2016,R,KAT TRANSPORT LTD             
736,CS -Oth Operating Inc & Expend,T/A Vehicle Maintenance etc,Transport-Contract Hire,J01374,Transport Related Expenditure ,Contract Hire and Op Leasing  ,CC64,CSF - SEN CABS (RK02)                   ,1710,31/07/2016,R,KAT TRANSPORT LTD             
737,CS -Oth Operating Inc & Expend,T/A Vehicle Maintenance etc,Transport-Contract Hire,J01374,Transport Related Expenditure ,Contract Hire and Op Leasing  ,CC64,CSF - SEN CABS (RK02)                   ,1778.02,31/07/2016,R,KAT TRANSPORT LTD             
738,CS -Oth Operating Inc & Expend,T/A Vehicle Maintenance etc,Transport-Contract Hire,J01374,Transport Related Expenditure ,Contract Hire and Op Leasing  ,CC64,CSF - SEN CABS (RK02)                   ,1842.62,31/07/2016,R,KAT TRANSPORT LTD             
739,CS -Oth Operating Inc & Expend,T/A Vehicle Maintenance etc,Transport-Contract Hire,J01374,Transport Related Expenditure ,Contract Hire and Op Leasing  ,CC64,CSF - SEN CABS (RK02)                   ,1862,31/07/2016,R,KAT TRANSPORT LTD             
740,CS -Oth Operating Inc & Expend,T/A Vehicle Maintenance etc,Transport-Contract Hire,J01374,Transport Related Expenditure ,Contract Hire and Op Leasing  ,CC64,CSF - SEN CABS (RK02)                   ,1898.1,31/07/2016,R,KAT TRANSPORT LTD             
741,CS -Oth Operating Inc & Expend,T/A Vehicle Maintenance etc,Transport-Contract Hire,J01374,Transport Related Expenditure ,Contract Hire and Op Leasing  ,CC64,CSF - SEN CABS (RK02)                   ,1900,31/07/2016,R,KAT TRANSPORT LTD             
742,CS -Oth Operating Inc & Expend,T/A Vehicle Maintenance etc,Transport-Contract Hire,J01374,Transport Related Expenditure ,Contract Hire and Op Leasing  ,CC64,CSF - SEN CABS (RK02)                   ,1987.02,31/07/2016,R,KAT TRANSPORT LTD             
743,CS -Oth Operating Inc & Expend,T/A Vehicle Maintenance etc,Transport-Contract Hire,J01374,Transport Related Expenditure ,Contract Hire and Op Leasing  ,CC64,CSF - SEN CABS (RK02)                   ,2089.24,31/07/2016,R,KAT TRANSPORT LTD             
744,CS -Oth Operating Inc & Expend,T/A Vehicle Maintenance etc,Transport-Contract Hire,J01374,Transport Related Expenditure ,Contract Hire and Op Leasing  ,CC64,CSF - SEN CABS (RK02)                   ,2126.1,31/07/2016,R,KAT TRANSPORT LTD             
745,CS -Oth Operating Inc & Expend,T/A Vehicle Maintenance etc,Transport-Contract Hire,J01374,Transport Related Expenditure ,Contract Hire and Op Leasing  ,CC64,CSF - SEN CABS (RK02)                   ,2156.5,31/07/2016,R,KAT TRANSPORT LTD             
746,CS -Oth Operating Inc & Expend,T/A Vehicle Maintenance etc,Transport-Contract Hire,J01374,Transport Related Expenditure ,Contract Hire and Op Leasing  ,CC64,CSF - SEN CABS (RK02)                   ,2242,31/07/2016,R,KAT TRANSPORT LTD             
747,CS -Oth Operating Inc & Expend,T/A Vehicle Maintenance etc,Transport-Contract Hire,J01374,Transport Related Expenditure ,Contract Hire and Op Leasing  ,CC64,CSF - SEN CABS (RK02)                   ,2316.1,31/07/2016,R,KAT TRANSPORT LTD             
748,CS -Oth Operating Inc & Expend,T/A Vehicle Maintenance etc,Transport-Contract Hire,J01374,Transport Related Expenditure ,Contract Hire and Op Leasing  ,CC64,CSF - SEN CABS (RK02)                   ,2393.24,31/07/2016,R,KAT TRANSPORT LTD             
749,CS -Oth Operating Inc & Expend,T/A Vehicle Maintenance etc,Transport-Contract Hire,J01374,Transport Related Expenditure ,Contract Hire and Op Leasing  ,CC64,CSF - SEN CABS (RK02)                   ,2500,31/07/2016,R,KAT TRANSPORT LTD             
750,CS -Oth Operating Inc & Expend,T/A Vehicle Maintenance etc,Transport-Contract Hire,J01374,Transport Related Expenditure ,Contract Hire and Op Leasing  ,CC64,CSF - SEN CABS (RK02)                   ,2579.82,31/07/2016,R,KAT TRANSPORT LTD             
751,CS -Oth Operating Inc & Expend,T/A Vehicle Maintenance etc,Transport-Contract Hire,J01374,Transport Related Expenditure ,Contract Hire and Op Leasing  ,CC64,CSF - SEN CABS (RK02)                   ,2659.24,31/07/2016,R,KAT TRANSPORT LTD             
752,CS -Oth Operating Inc & Expend,T/A Vehicle Maintenance etc,Transport-Contract Hire,J01374,Transport Related Expenditure ,Contract Hire and Op Leasing  ,CC64,CSF - SEN CABS (RK02)                   ,2807.82,31/07/2016,R,KAT TRANSPORT LTD             
753,CS -Oth Operating Inc & Expend,T/A Vehicle Maintenance etc,Transport-Contract Hire,J01374,Transport Related Expenditure ,Contract Hire and Op Leasing  ,CC64,CSF - SEN CABS (RK02)                   ,2812,31/07/2016,R,KAT TRANSPORT LTD             
754,CS -Oth Operating Inc & Expend,T/A Vehicle Maintenance etc,Transport-Contract Hire,J01374,Transport Related Expenditure ,Contract Hire and Op Leasing  ,CC64,CSF - SEN CABS (RK02)                   ,2848.1,31/07/2016,R,KAT TRANSPORT LTD             
755,CS -Oth Operating Inc & Expend,T/A Vehicle Maintenance etc,Transport-Contract Hire,J01374,Transport Related Expenditure ,Contract Hire and Op Leasing  ,CC64,CSF - SEN CABS (RK02)                   ,2848.86,31/07/2016,R,KAT TRANSPORT LTD             
756,CS -Oth Operating Inc & Expend,T/A Vehicle Maintenance etc,Transport-Contract Hire,J01374,Transport Related Expenditure ,Contract Hire and Op Leasing  ,CC64,CSF - SEN CABS (RK02)                   ,2925.62,31/07/2016,R,KAT TRANSPORT LTD             
757,CS -Oth Operating Inc & Expend,T/A Vehicle Maintenance etc,Transport-Contract Hire,J01374,Transport Related Expenditure ,Contract Hire and Op Leasing  ,CC64,CSF - SEN CABS (RK02)                   ,3070.02,31/07/2016,R,KAT TRANSPORT LTD             
758,CS -Oth Operating Inc & Expend,T/A Vehicle Maintenance etc,Transport-Contract Hire,J01374,Transport Related Expenditure ,Contract Hire and Op Leasing  ,CC64,CSF - SEN CABS (RK02)                   ,3229.62,31/07/2016,R,KAT TRANSPORT LTD             
759,CS -Oth Operating Inc & Expend,T/A Vehicle Maintenance etc,Transport-Contract Hire,J01374,Transport Related Expenditure ,Contract Hire and Op Leasing  ,CC64,CSF - SEN CABS (RK02)                   ,3404.42,31/07/2016,R,KAT TRANSPORT LTD             
760,CS -Oth Operating Inc & Expend,T/A Vehicle Maintenance etc,Transport-Contract Hire,J01374,Transport Related Expenditure ,Contract Hire and Op Leasing  ,CC64,CSF - SEN CABS (RK02)                   ,1536,31/07/2016,R,KENDALL CARS                  
761,CS -Oth Operating Inc & Expend,T/A Vehicle Maintenance etc,Transport-Contract Hire,J01374,Transport Related Expenditure ,Contract Hire and Op Leasing  ,CC64,CSF - SEN CABS (RK02)                   ,1102,31/07/2016,R,SILVERBURN FINANCE (UK) LTD   
762,CS -Oth Operating Inc & Expend,T/A Vehicle Maintenance etc,Transport-Contract Hire,J01374,Transport Related Expenditure ,Contract Hire and Op Leasing  ,CC64,CSF - SEN CABS (RK02)                   ,1190,31/07/2016,R,BRUNSWICK CARS LTD            
763,CS -Oth Operating Inc & Expend,T/A Vehicle Maintenance etc,Transport-Contract Hire,J01374,Transport Related Expenditure ,Contract Hire and Op Leasing  ,CC64,CSF - SEN CABS (RK02)                   ,1224,31/07/2016,R,BRUNSWICK CARS LTD            
764,CS -Oth Operating Inc & Expend,T/A Vehicle Maintenance etc,Transport-Contract Hire,J01374,Transport Related Expenditure ,Contract Hire and Op Leasing  ,CC64,CSF - SEN CABS (RK02)                   ,1368,31/07/2016,R,BRUNSWICK CARS LTD            
765,CS -Oth Operating Inc & Expend,T/A Vehicle Maintenance etc,Transport-Contract Hire,J01374,Transport Related Expenditure ,Contract Hire and Op Leasing  ,CC64,CSF - SEN CABS (RK02)                   ,1406,31/07/2016,R,BRUNSWICK CARS LTD            
766,CS -Oth Operating Inc & Expend,T/A Vehicle Maintenance etc,Transport-Contract Hire,J01374,Transport Related Expenditure ,Contract Hire and Op Leasing  ,CC64,CSF - SEN CABS (RK02)                   ,1430,31/07/2016,R,SILVERBURN FINANCE (UK) LTD   
767,CS -Oth Operating Inc & Expend,T/A Vehicle Maintenance etc,Transport-Contract Hire,J01374,Transport Related Expenditure ,Contract Hire and Op Leasing  ,CC64,CSF - SEN CABS (RK02)                   ,1444,31/07/2016,R,A STAR TRANSPORT LIMITED      
768,CS -Oth Operating Inc & Expend,T/A Vehicle Maintenance etc,Transport-Contract Hire,J01374,Transport Related Expenditure ,Contract Hire and Op Leasing  ,CC64,CSF - SEN CABS (RK02)                   ,1463,31/07/2016,R,BRUNSWICK CARS LTD            
769,CS -Oth Operating Inc & Expend,T/A Vehicle Maintenance etc,Transport-Contract Hire,J01374,Transport Related Expenditure ,Contract Hire and Op Leasing  ,CC64,CSF - SEN CABS (RK02)                   ,1502.9,31/07/2016,R,SILVERBURN FINANCE (UK) LTD   
770,CS -Oth Operating Inc & Expend,T/A Vehicle Maintenance etc,Transport-Contract Hire,J01374,Transport Related Expenditure ,Contract Hire and Op Leasing  ,CC64,CSF - SEN CABS (RK02)                   ,1512,31/07/2016,R,SILVERBURN FINANCE (UK) LTD   
771,CS -Oth Operating Inc & Expend,T/A Vehicle Maintenance etc,Transport-Contract Hire,J01374,Transport Related Expenditure ,Contract Hire and Op Leasing  ,CC64,CSF - SEN CABS (RK02)                   ,1520,31/07/2016,R,BRUNSWICK CARS LTD            
772,CS -Oth Operating Inc & Expend,T/A Vehicle Maintenance etc,Transport-Contract Hire,J01374,Transport Related Expenditure ,Contract Hire and Op Leasing  ,CC64,CSF - SEN CABS (RK02)                   ,1560,31/07/2016,R,BRUNSWICK CARS LTD            
773,CS -Oth Operating Inc & Expend,T/A Vehicle Maintenance etc,Transport-Contract Hire,J01374,Transport Related Expenditure ,Contract Hire and Op Leasing  ,CC64,CSF - SEN CABS (RK02)                   ,1624,31/07/2016,R,BRUNSWICK CARS LTD            
774,CS -Oth Operating Inc & Expend,T/A Vehicle Maintenance etc,Transport-Contract Hire,J01374,Transport Related Expenditure ,Contract Hire and Op Leasing  ,CC64,CSF - SEN CABS (RK02)                   ,1634,31/07/2016,R,SILVERBURN FINANCE (UK) LTD   
775,CS -Oth Operating Inc & Expend,T/A Vehicle Maintenance etc,Transport-Contract Hire,J01374,Transport Related Expenditure ,Contract Hire and Op Leasing  ,CC64,CSF - SEN CABS (RK02)                   ,1674,31/07/2016,R,BRUNSWICK CARS LTD            
776,CS -Oth Operating Inc & Expend,T/A Vehicle Maintenance etc,Transport-Contract Hire,J01374,Transport Related Expenditure ,Contract Hire and Op Leasing  ,CC64,CSF - SEN CABS (RK02)                   ,1710,31/07/2016,R,BRUNSWICK CARS LTD            
777,CS -Oth Operating Inc & Expend,T/A Vehicle Maintenance etc,Transport-Contract Hire,J01374,Transport Related Expenditure ,Contract Hire and Op Leasing  ,CC64,CSF - SEN CABS (RK02)                   ,1728,31/07/2016,R,SILVERBURN FINANCE (UK) LTD   
778,CS -Oth Operating Inc & Expend,T/A Vehicle Maintenance etc,Transport-Contract Hire,J01374,Transport Related Expenditure ,Contract Hire and Op Leasing  ,CC64,CSF - SEN CABS (RK02)                   ,1728,31/07/2016,R,BARCLAYS ASSET & SALES FINANCE
779,CS -Oth Operating Inc & Expend,T/A Vehicle Maintenance etc,Transport-Contract Hire,J01374,Transport Related Expenditure ,Contract Hire and Op Leasing  ,CC64,CSF - SEN CABS (RK02)                   ,1767,31/07/2016,R,BRUNSWICK CARS LTD            
780,CS -Oth Operating Inc & Expend,T/A Vehicle Maintenance etc,Transport-Contract Hire,J01374,Transport Related Expenditure ,Contract Hire and Op Leasing  ,CC64,CSF - SEN CABS (RK02)                   ,1800,31/07/2016,R,BRUNSWICK CARS LTD            
781,CS -Oth Operating Inc & Expend,T/A Vehicle Maintenance etc,Transport-Contract Hire,J01374,Transport Related Expenditure ,Contract Hire and Op Leasing  ,CC64,CSF - SEN CABS (RK02)                   ,1824,31/07/2016,R,BARCLAYS ASSET & SALES FINANCE
782,CS -Oth Operating Inc & Expend,T/A Vehicle Maintenance etc,Transport-Contract Hire,J01374,Transport Related Expenditure ,Contract Hire and Op Leasing  ,CC64,CSF - SEN CABS (RK02)                   ,1824,31/07/2016,R,BRUNSWICK CARS LTD            
783,CS -Oth Operating Inc & Expend,T/A Vehicle Maintenance etc,Transport-Contract Hire,J01374,Transport Related Expenditure ,Contract Hire and Op Leasing  ,CC64,CSF - SEN CABS (RK02)                   ,1824,31/07/2016,R,BARCLAYS ASSET & SALES FINANCE
784,CS -Oth Operating Inc & Expend,T/A Vehicle Maintenance etc,Transport-Contract Hire,J01374,Transport Related Expenditure ,Contract Hire and Op Leasing  ,CC64,CSF - SEN CABS (RK02)                   ,1944,31/07/2016,R,BRUNSWICK CARS LTD            
785,CS -Oth Operating Inc & Expend,T/A Vehicle Maintenance etc,Transport-Contract Hire,J01374,Transport Related Expenditure ,Contract Hire and Op Leasing  ,CC64,CSF - SEN CABS (RK02)                   ,1960,31/07/2016,R,BRUNSWICK CARS LTD            
786,CS -Oth Operating Inc & Expend,T/A Vehicle Maintenance etc,Transport-Contract Hire,J01374,Transport Related Expenditure ,Contract Hire and Op Leasing  ,CC64,CSF - SEN CABS (RK02)                   ,1976,31/07/2016,R,A STAR TRANSPORT LIMITED      
787,CS -Oth Operating Inc & Expend,T/A Vehicle Maintenance etc,Transport-Contract Hire,J01374,Transport Related Expenditure ,Contract Hire and Op Leasing  ,CC64,CSF - SEN CABS (RK02)                   ,1995,31/07/2016,R,SILVERBURN FINANCE (UK) LTD   
788,CS -Oth Operating Inc & Expend,T/A Vehicle Maintenance etc,Transport-Contract Hire,J01374,Transport Related Expenditure ,Contract Hire and Op Leasing  ,CC64,CSF - SEN CABS (RK02)                   ,1995,31/07/2016,R,BRUNSWICK CARS LTD            
789,CS -Oth Operating Inc & Expend,T/A Vehicle Maintenance etc,Transport-Contract Hire,J01374,Transport Related Expenditure ,Contract Hire and Op Leasing  ,CC64,CSF - SEN CABS (RK02)                   ,2016.5,31/07/2016,R,SILVERBURN FINANCE (UK) LTD   
790,CS -Oth Operating Inc & Expend,T/A Vehicle Maintenance etc,Transport-Contract Hire,J01374,Transport Related Expenditure ,Contract Hire and Op Leasing  ,CC64,CSF - SEN CABS (RK02)                   ,2124,31/07/2016,R,SILVERBURN FINANCE (UK) LTD   
791,CS -Oth Operating Inc & Expend,T/A Vehicle Maintenance etc,Transport-Contract Hire,J01374,Transport Related Expenditure ,Contract Hire and Op Leasing  ,CC64,CSF - SEN CABS (RK02)                   ,2147,31/07/2016,R,SILVERBURN FINANCE (UK) LTD   
792,CS -Oth Operating Inc & Expend,T/A Vehicle Maintenance etc,Transport-Contract Hire,J01374,Transport Related Expenditure ,Contract Hire and Op Leasing  ,CC64,CSF - SEN CABS (RK02)                   ,2204,31/07/2016,R,BRUNSWICK CARS LTD            
793,CS -Oth Operating Inc & Expend,T/A Vehicle Maintenance etc,Transport-Contract Hire,J01374,Transport Related Expenditure ,Contract Hire and Op Leasing  ,CC64,CSF - SEN CABS (RK02)                   ,2240,31/07/2016,R,BARCLAYS ASSET & SALES FINANCE
794,CS -Oth Operating Inc & Expend,T/A Vehicle Maintenance etc,Transport-Contract Hire,J01374,Transport Related Expenditure ,Contract Hire and Op Leasing  ,CC64,CSF - SEN CABS (RK02)                   ,2275,31/07/2016,R,BARCLAYS ASSET & SALES FINANCE
795,CS -Oth Operating Inc & Expend,T/A Vehicle Maintenance etc,Transport-Contract Hire,J01374,Transport Related Expenditure ,Contract Hire and Op Leasing  ,CC64,CSF - SEN CABS (RK02)                   ,2375,31/07/2016,R,SILVERBURN FINANCE (UK) LTD   
796,CS -Oth Operating Inc & Expend,T/A Vehicle Maintenance etc,Transport-Contract Hire,J01374,Transport Related Expenditure ,Contract Hire and Op Leasing  ,CC64,CSF - SEN CABS (RK02)                   ,2397,31/07/2016,R,BRUNSWICK CARS LTD            
797,CS -Oth Operating Inc & Expend,T/A Vehicle Maintenance etc,Transport-Contract Hire,J01374,Transport Related Expenditure ,Contract Hire and Op Leasing  ,CC64,CSF - SEN CABS (RK02)                   ,2430,31/07/2016,R,SILVERBURN FINANCE (UK) LTD   
798,CS -Oth Operating Inc & Expend,T/A Vehicle Maintenance etc,Transport-Contract Hire,J01374,Transport Related Expenditure ,Contract Hire and Op Leasing  ,CC64,CSF - SEN CABS (RK02)                   ,2430,31/07/2016,R,SILVERBURN FINANCE (UK) LTD   
799,CS -Oth Operating Inc & Expend,T/A Vehicle Maintenance etc,Transport-Contract Hire,J01374,Transport Related Expenditure ,Contract Hire and Op Leasing  ,CC64,CSF - SEN CABS (RK02)                   ,2470,31/07/2016,R,SILVERBURN FINANCE (UK) LTD   
800,CS -Oth Operating Inc & Expend,T/A Vehicle Maintenance etc,Transport-Contract Hire,J01374,Transport Related Expenditure ,Contract Hire and Op Leasing  ,CC64,CSF - SEN CABS (RK02)                   ,2641,31/07/2016,R,BRUNSWICK CARS LTD            
801,CS -Oth Operating Inc & Expend,T/A Vehicle Maintenance etc,Transport-Contract Hire,J01374,Transport Related Expenditure ,Contract Hire and Op Leasing  ,CC64,CSF - SEN CABS (RK02)                   ,2717,31/07/2016,R,BRUNSWICK CARS LTD            
802,CS -Oth Operating Inc & Expend,T/A Vehicle Maintenance etc,Transport-Contract Hire,J01374,Transport Related Expenditure ,Contract Hire and Op Leasing  ,CC64,CSF - SEN CABS (RK02)                   ,2850,31/07/2016,R,BARCLAYS ASSET & SALES FINANCE
803,CS -Oth Operating Inc & Expend,T/A Vehicle Maintenance etc,Transport-Contract Hire,J01374,Transport Related Expenditure ,Contract Hire and Op Leasing  ,CC64,CSF - SEN CABS (RK02)                   ,3230,31/07/2016,R,BARCLAYS ASSET & SALES FINANCE
804,CS -Oth Operating Inc & Expend,T/A Vehicle Maintenance etc,Transport-Contract Hire,J01374,Transport Related Expenditure ,Contract Hire and Op Leasing  ,CC64,CSF - SEN CABS (RK02)                   ,3268,31/07/2016,R,BRUNSWICK CARS LTD            
805,CS -Oth Operating Inc & Expend,T/A Vehicle Maintenance etc,Transport-Contract Hire,J01374,Transport Related Expenditure ,Contract Hire and Op Leasing  ,CC64,CSF - SEN CABS (RK02)                   ,3743,31/07/2016,R,BRUNSWICK CARS LTD            
806,CS -Oth Operating Inc & Expend,T/A Vehicle Maintenance etc,Transport-Contract Hire,J01374,Transport Related Expenditure ,Contract Hire and Op Leasing  ,CC64,CSF - SEN CABS (RK02)                   ,652.8,31/07/2016,R,SNA TRANSPORT LTD             
807,CS -Oth Operating Inc & Expend,T/A Vehicle Maintenance etc,Transport-Contract Hire,J01374,Transport Related Expenditure ,Contract Hire and Op Leasing  ,CC64,CSF - SEN CABS (RK02)                   ,704,31/07/2016,R,CHEAM STATION CARS            
808,CS -Oth Operating Inc & Expend,T/A Vehicle Maintenance etc,Transport-Contract Hire,J01374,Transport Related Expenditure ,Contract Hire and Op Leasing  ,CC64,CSF - SEN CABS (RK02)                   ,715.2,31/07/2016,R,SNA TRANSPORT LTD             
809,CS -Oth Operating Inc & Expend,T/A Vehicle Maintenance etc,Transport-Contract Hire,J01374,Transport Related Expenditure ,Contract Hire and Op Leasing  ,CC64,CSF - SEN CABS (RK02)                   ,860,31/07/2016,R,CHEAM STATION CARS            
810,CS -Oth Operating Inc & Expend,T/A Vehicle Maintenance etc,Transport-Contract Hire,J01374,Transport Related Expenditure ,Contract Hire and Op Leasing  ,CC64,CSF - SEN CABS (RK02)                   ,925,31/07/2016,R,CHEAM STATION CARS            
811,CS -Oth Operating Inc & Expend,T/A Vehicle Maintenance etc,Transport-Contract Hire,J01374,Transport Related Expenditure ,Contract Hire and Op Leasing  ,CC64,CSF - SEN CABS (RK02)                   ,1050,31/07/2016,R,CHEAM STATION CARS            
812,CS -Oth Operating Inc & Expend,T/A Vehicle Maintenance etc,Transport-Contract Hire,J01374,Transport Related Expenditure ,Contract Hire and Op Leasing  ,CC64,CSF - SEN CABS (RK02)                   ,1120,31/07/2016,R,CHEAM STATION CARS            
813,CS -Oth Operating Inc & Expend,T/A Vehicle Maintenance etc,Transport-Contract Hire,J01374,Transport Related Expenditure ,Contract Hire and Op Leasing  ,CC64,CSF - SEN CABS (RK02)                   ,1136.2,31/07/2016,R,PREMIER MINICAB SER.(SURBITON)
814,CS -Oth Operating Inc & Expend,T/A Vehicle Maintenance etc,Transport-Contract Hire,J01374,Transport Related Expenditure ,Contract Hire and Op Leasing  ,CC64,CSF - SEN CABS (RK02)                   ,1140,31/07/2016,R,CHEAM STATION CARS            
815,CS -Oth Operating Inc & Expend,T/A Vehicle Maintenance etc,Transport-Contract Hire,J01374,Transport Related Expenditure ,Contract Hire and Op Leasing  ,CC64,CSF - SEN CABS (RK02)                   ,1208.25,31/07/2016,R,SNA TRANSPORT LTD             
816,CS -Oth Operating Inc & Expend,T/A Vehicle Maintenance etc,Transport-Contract Hire,J01374,Transport Related Expenditure ,Contract Hire and Op Leasing  ,CC64,CSF - SEN CABS (RK02)                   ,1243.2,31/07/2016,R,SNA TRANSPORT LTD             
817,CS -Oth Operating Inc & Expend,T/A Vehicle Maintenance etc,Transport-Contract Hire,J01374,Transport Related Expenditure ,Contract Hire and Op Leasing  ,CC64,CSF - SEN CABS (RK02)                   ,1260,31/07/2016,R,SNA TRANSPORT LTD             
818,CS -Oth Operating Inc & Expend,T/A Vehicle Maintenance etc,Transport-Contract Hire,J01374,Transport Related Expenditure ,Contract Hire and Op Leasing  ,CC64,CSF - SEN CABS (RK02)                   ,1330,31/07/2016,R,SNA TRANSPORT LTD             
819,CS -Oth Operating Inc & Expend,T/A Vehicle Maintenance etc,Transport-Contract Hire,J01374,Transport Related Expenditure ,Contract Hire and Op Leasing  ,CC64,CSF - SEN CABS (RK02)                   ,1355,31/07/2016,R,PREMIER MINICAB SER.(SURBITON)
820,CS -Oth Operating Inc & Expend,T/A Vehicle Maintenance etc,Transport-Contract Hire,J01374,Transport Related Expenditure ,Contract Hire and Op Leasing  ,CC64,CSF - SEN CABS (RK02)                   ,1361.5,31/07/2016,R,PREMIER MINICAB SER.(SURBITON)
821,CS -Oth Operating Inc & Expend,T/A Vehicle Maintenance etc,Transport-Contract Hire,J01374,Transport Related Expenditure ,Contract Hire and Op Leasing  ,CC64,CSF - SEN CABS (RK02)                   ,1425,31/07/2016,R,PREMIER MINICAB SER.(SURBITON)
822,CS -Oth Operating Inc & Expend,T/A Vehicle Maintenance etc,Transport-Contract Hire,J01374,Transport Related Expenditure ,Contract Hire and Op Leasing  ,CC64,CSF - SEN CABS (RK02)                   ,1501,31/07/2016,R,SNA TRANSPORT LTD             
823,CS -Oth Operating Inc & Expend,T/A Vehicle Maintenance etc,Transport-Contract Hire,J01374,Transport Related Expenditure ,Contract Hire and Op Leasing  ,CC64,CSF - SEN CABS (RK02)                   ,1501,31/07/2016,R,SNA TRANSPORT LTD             
824,CS -Oth Operating Inc & Expend,T/A Vehicle Maintenance etc,Transport-Contract Hire,J01374,Transport Related Expenditure ,Contract Hire and Op Leasing  ,CC64,CSF - SEN CABS (RK02)                   ,1612,31/07/2016,R,CHEAM STATION CARS            
825,CS -Oth Operating Inc & Expend,T/A Vehicle Maintenance etc,Transport-Contract Hire,J01374,Transport Related Expenditure ,Contract Hire and Op Leasing  ,CC64,CSF - SEN CABS (RK02)                   ,1642.8,31/07/2016,R,SNA TRANSPORT LTD             
826,CS -Oth Operating Inc & Expend,T/A Vehicle Maintenance etc,Transport-Contract Hire,J01374,Transport Related Expenditure ,Contract Hire and Op Leasing  ,CC64,CSF - SEN CABS (RK02)                   ,1650,31/07/2016,R,PREMIER MINICAB SER.(SURBITON)
827,CS -Oth Operating Inc & Expend,T/A Vehicle Maintenance etc,Transport-Contract Hire,J01374,Transport Related Expenditure ,Contract Hire and Op Leasing  ,CC64,CSF - SEN CABS (RK02)                   ,1700.5,31/07/2016,R,SNA TRANSPORT LTD             
828,CS -Oth Operating Inc & Expend,T/A Vehicle Maintenance etc,Transport-Contract Hire,J01374,Transport Related Expenditure ,Contract Hire and Op Leasing  ,CC64,CSF - SEN CABS (RK02)                   ,1710,31/07/2016,R,SNA TRANSPORT LTD             
829,CS -Oth Operating Inc & Expend,T/A Vehicle Maintenance etc,Transport-Contract Hire,J01374,Transport Related Expenditure ,Contract Hire and Op Leasing  ,CC64,CSF - SEN CABS (RK02)                   ,1710,31/07/2016,R,SNA TRANSPORT LTD             
830,CS -Oth Operating Inc & Expend,T/A Vehicle Maintenance etc,Transport-Contract Hire,J01374,Transport Related Expenditure ,Contract Hire and Op Leasing  ,CC64,CSF - SEN CABS (RK02)                   ,1755,31/07/2016,R,SNA TRANSPORT LTD             
831,CS -Oth Operating Inc & Expend,T/A Vehicle Maintenance etc,Transport-Contract Hire,J01374,Transport Related Expenditure ,Contract Hire and Op Leasing  ,CC64,CSF - SEN CABS (RK02)                   ,1805,31/07/2016,R,SNA TRANSPORT LTD             
832,CS -Oth Operating Inc & Expend,T/A Vehicle Maintenance etc,Transport-Contract Hire,J01374,Transport Related Expenditure ,Contract Hire and Op Leasing  ,CC64,CSF - SEN CABS (RK02)                   ,1824,31/07/2016,R,SNA TRANSPORT LTD             
833,CS -Oth Operating Inc & Expend,T/A Vehicle Maintenance etc,Transport-Contract Hire,J01374,Transport Related Expenditure ,Contract Hire and Op Leasing  ,CC64,CSF - SEN CABS (RK02)                   ,1839.2,31/07/2016,R,SNA TRANSPORT LTD             
834,CS -Oth Operating Inc & Expend,T/A Vehicle Maintenance etc,Transport-Contract Hire,J01374,Transport Related Expenditure ,Contract Hire and Op Leasing  ,CC64,CSF - SEN CABS (RK02)                   ,1862,31/07/2016,R,SNA TRANSPORT LTD             
835,CS -Oth Operating Inc & Expend,T/A Vehicle Maintenance etc,Transport-Contract Hire,J01374,Transport Related Expenditure ,Contract Hire and Op Leasing  ,CC64,CSF - SEN CABS (RK02)                   ,1881,31/07/2016,R,SNA TRANSPORT LTD             
836,CS -Oth Operating Inc & Expend,T/A Vehicle Maintenance etc,Transport-Contract Hire,J01374,Transport Related Expenditure ,Contract Hire and Op Leasing  ,CC64,CSF - SEN CABS (RK02)                   ,1925,31/07/2016,R,SNA TRANSPORT LTD             
837,CS -Oth Operating Inc & Expend,T/A Vehicle Maintenance etc,Transport-Contract Hire,J01374,Transport Related Expenditure ,Contract Hire and Op Leasing  ,CC64,CSF - SEN CABS (RK02)                   ,1980,31/07/2016,R,SNA TRANSPORT LTD             
838,CS -Oth Operating Inc & Expend,T/A Vehicle Maintenance etc,Transport-Contract Hire,J01374,Transport Related Expenditure ,Contract Hire and Op Leasing  ,CC64,CSF - SEN CABS (RK02)                   ,2016,31/07/2016,R,PREMIER MINICAB SER.(SURBITON)
839,CS -Oth Operating Inc & Expend,T/A Vehicle Maintenance etc,Transport-Contract Hire,J01374,Transport Related Expenditure ,Contract Hire and Op Leasing  ,CC64,CSF - SEN CABS (RK02)                   ,2090,31/07/2016,R,PREMIER MINICAB SER.(SURBITON)
840,CS -Oth Operating Inc & Expend,T/A Vehicle Maintenance etc,Transport-Contract Hire,J01374,Transport Related Expenditure ,Contract Hire and Op Leasing  ,CC64,CSF - SEN CABS (RK02)                   ,2125.2,31/07/2016,R,SNA TRANSPORT LTD             
841,CS -Oth Operating Inc & Expend,T/A Vehicle Maintenance etc,Transport-Contract Hire,J01374,Transport Related Expenditure ,Contract Hire and Op Leasing  ,CC64,CSF - SEN CABS (RK02)                   ,2242,31/07/2016,R,PREMIER MINICAB SER.(SURBITON)
842,CS -Oth Operating Inc & Expend,T/A Vehicle Maintenance etc,Transport-Contract Hire,J01374,Transport Related Expenditure ,Contract Hire and Op Leasing  ,CC64,CSF - SEN CABS (RK02)                   ,2279.62,31/07/2016,R,SNA TRANSPORT LTD             
843,CS -Oth Operating Inc & Expend,T/A Vehicle Maintenance etc,Transport-Contract Hire,J01374,Transport Related Expenditure ,Contract Hire and Op Leasing  ,CC64,CSF - SEN CABS (RK02)                   ,2375,31/07/2016,R,SNA TRANSPORT LTD             
844,CS -Oth Operating Inc & Expend,T/A Vehicle Maintenance etc,Transport-Contract Hire,J01374,Transport Related Expenditure ,Contract Hire and Op Leasing  ,CC64,CSF - SEN CABS (RK02)                   ,2565,31/07/2016,R,SNA TRANSPORT LTD             
845,CS -Oth Operating Inc & Expend,T/A Vehicle Maintenance etc,Transport-Contract Hire,J01374,Transport Related Expenditure ,Contract Hire and Op Leasing  ,CC64,CSF - SEN CABS (RK02)                   ,2637.2,31/07/2016,R,SNA TRANSPORT LTD             
846,CS -Oth Operating Inc & Expend,T/A Vehicle Maintenance etc,Transport-Contract Hire,J01374,Transport Related Expenditure ,Contract Hire and Op Leasing  ,CC64,CSF - SEN CABS (RK02)                   ,2730,31/07/2016,R,SNA TRANSPORT LTD             
847,CS -Oth Operating Inc & Expend,T/A Vehicle Maintenance etc,Transport-Contract Hire,J01374,Transport Related Expenditure ,Contract Hire and Op Leasing  ,CC64,CSF - SEN CABS (RK02)                   ,2850,31/07/2016,R,SNA TRANSPORT LTD             
848,CS -Oth Operating Inc & Expend,T/A Vehicle Maintenance etc,Transport-Contract Hire,J01374,Transport Related Expenditure ,Contract Hire and Op Leasing  ,CC64,CSF - SEN CABS (RK02)                   ,2888,31/07/2016,R,BARCLAYS ASSET & SALES FINANCE
849,CS -Oth Operating Inc & Expend,T/A Vehicle Maintenance etc,Transport-Contract Hire,J01374,Transport Related Expenditure ,Contract Hire and Op Leasing  ,CC64,CSF - SEN CABS (RK02)                   ,2922,31/07/2016,R,SNA TRANSPORT LTD             
850,CS -Oth Operating Inc & Expend,T/A Vehicle Maintenance etc,Transport-Contract Hire,J01374,Transport Related Expenditure ,Contract Hire and Op Leasing  ,CC64,CSF - SEN CABS (RK02)                   ,3230,31/07/2016,R,SNA TRANSPORT LTD             
851,CS -Oth Operating Inc & Expend,T/A Vehicle Maintenance etc,Transport-Contract Hire,J01374,Transport Related Expenditure ,Contract Hire and Op Leasing  ,CC64,CSF - SEN CABS (RK02)                   ,1072.5,30/06/2016,R,SNA TRANSPORT LTD             
852,CS -Oth Operating Inc & Expend,T/A Vehicle Maintenance etc,Transport-Contract Hire,J01374,Transport Related Expenditure ,Contract Hire and Op Leasing  ,CC64,CSF - SEN CABS (RK02)                   ,1190,30/06/2016,R,BRUNSWICK CARS LTD            
853,CS -Oth Operating Inc & Expend,T/A Vehicle Maintenance etc,Transport-Contract Hire,J01374,Transport Related Expenditure ,Contract Hire and Op Leasing  ,CC64,CSF - SEN CABS (RK02)                   ,1260,30/06/2016,R,BRUNSWICK CARS LTD            
854,CS -Oth Operating Inc & Expend,T/A Vehicle Maintenance etc,Transport-Contract Hire,J01374,Transport Related Expenditure ,Contract Hire and Op Leasing  ,CC64,CSF - SEN CABS (RK02)                   ,1322.4,30/06/2016,R,SNA TRANSPORT LTD             
855,CS -Oth Operating Inc & Expend,T/A Vehicle Maintenance etc,Transport-Contract Hire,J01374,Transport Related Expenditure ,Contract Hire and Op Leasing  ,CC64,CSF - SEN CABS (RK02)                   ,1330,30/06/2016,R,SNA TRANSPORT LTD             
856,CS -Oth Operating Inc & Expend,T/A Vehicle Maintenance etc,Transport-Contract Hire,J01374,Transport Related Expenditure ,Contract Hire and Op Leasing  ,CC64,CSF - SEN CABS (RK02)                   ,1375,30/06/2016,R,BRUNSWICK CARS LTD            
857,CS -Oth Operating Inc & Expend,T/A Vehicle Maintenance etc,Transport-Contract Hire,J01374,Transport Related Expenditure ,Contract Hire and Op Leasing  ,CC64,CSF - SEN CABS (RK02)                   ,1382.5,30/06/2016,R,SNA TRANSPORT LTD             
858,CS -Oth Operating Inc & Expend,T/A Vehicle Maintenance etc,Transport-Contract Hire,J01374,Transport Related Expenditure ,Contract Hire and Op Leasing  ,CC64,CSF - SEN CABS (RK02)                   ,1406,30/06/2016,R,BRUNSWICK CARS LTD            
859,CS -Oth Operating Inc & Expend,T/A Vehicle Maintenance etc,Transport-Contract Hire,J01374,Transport Related Expenditure ,Contract Hire and Op Leasing  ,CC64,CSF - SEN CABS (RK02)                   ,1426,30/06/2016,R,BRUNSWICK CARS LTD            
860,CS -Oth Operating Inc & Expend,T/A Vehicle Maintenance etc,Transport-Contract Hire,J01374,Transport Related Expenditure ,Contract Hire and Op Leasing  ,CC64,CSF - SEN CABS (RK02)                   ,1463,30/06/2016,R,BRUNSWICK CARS LTD            
861,CS -Oth Operating Inc & Expend,T/A Vehicle Maintenance etc,Transport-Contract Hire,J01374,Transport Related Expenditure ,Contract Hire and Op Leasing  ,CC64,CSF - SEN CABS (RK02)                   ,1520,30/06/2016,R,BRUNSWICK CARS LTD            
862,CS -Oth Operating Inc & Expend,T/A Vehicle Maintenance etc,Transport-Contract Hire,J01374,Transport Related Expenditure ,Contract Hire and Op Leasing  ,CC64,CSF - SEN CABS (RK02)                   ,1536,30/06/2016,R,BRUNSWICK CARS LTD            
863,CS -Oth Operating Inc & Expend,T/A Vehicle Maintenance etc,Transport-Contract Hire,J01374,Transport Related Expenditure ,Contract Hire and Op Leasing  ,CC64,CSF - SEN CABS (RK02)                   ,1674,30/06/2016,R,BRUNSWICK CARS LTD            
864,CS -Oth Operating Inc & Expend,T/A Vehicle Maintenance etc,Transport-Contract Hire,J01374,Transport Related Expenditure ,Contract Hire and Op Leasing  ,CC64,CSF - SEN CABS (RK02)                   ,1710,30/06/2016,R,BRUNSWICK CARS LTD            
865,CS -Oth Operating Inc & Expend,T/A Vehicle Maintenance etc,Transport-Contract Hire,J01374,Transport Related Expenditure ,Contract Hire and Op Leasing  ,CC64,CSF - SEN CABS (RK02)                   ,1710,30/06/2016,R,SNA TRANSPORT LTD             
866,CS -Oth Operating Inc & Expend,T/A Vehicle Maintenance etc,Transport-Contract Hire,J01374,Transport Related Expenditure ,Contract Hire and Op Leasing  ,CC64,CSF - SEN CABS (RK02)                   ,1767,30/06/2016,R,BRUNSWICK CARS LTD            
867,CS -Oth Operating Inc & Expend,T/A Vehicle Maintenance etc,Transport-Contract Hire,J01374,Transport Related Expenditure ,Contract Hire and Op Leasing  ,CC64,CSF - SEN CABS (RK02)                   ,1805,30/06/2016,R,SNA TRANSPORT LTD             
868,CS -Oth Operating Inc & Expend,T/A Vehicle Maintenance etc,Transport-Contract Hire,J01374,Transport Related Expenditure ,Contract Hire and Op Leasing  ,CC64,CSF - SEN CABS (RK02)                   ,1824,30/06/2016,R,BRUNSWICK CARS LTD            
869,CS -Oth Operating Inc & Expend,T/A Vehicle Maintenance etc,Transport-Contract Hire,J01374,Transport Related Expenditure ,Contract Hire and Op Leasing  ,CC64,CSF - SEN CABS (RK02)                   ,1849.6,30/06/2016,R,SNA TRANSPORT LTD             
870,CS -Oth Operating Inc & Expend,T/A Vehicle Maintenance etc,Transport-Contract Hire,J01374,Transport Related Expenditure ,Contract Hire and Op Leasing  ,CC64,CSF - SEN CABS (RK02)                   ,1852.5,30/06/2016,R,SNA TRANSPORT LTD             
871,CS -Oth Operating Inc & Expend,T/A Vehicle Maintenance etc,Transport-Contract Hire,J01374,Transport Related Expenditure ,Contract Hire and Op Leasing  ,CC64,CSF - SEN CABS (RK02)                   ,1862,30/06/2016,R,SNA TRANSPORT LTD             
872,CS -Oth Operating Inc & Expend,T/A Vehicle Maintenance etc,Transport-Contract Hire,J01374,Transport Related Expenditure ,Contract Hire and Op Leasing  ,CC64,CSF - SEN CABS (RK02)                   ,1900,30/06/2016,R,BRUNSWICK CARS LTD            
873,CS -Oth Operating Inc & Expend,T/A Vehicle Maintenance etc,Transport-Contract Hire,J01374,Transport Related Expenditure ,Contract Hire and Op Leasing  ,CC64,CSF - SEN CABS (RK02)                   ,1942.5,30/06/2016,R,BRUNSWICK CARS LTD            
874,CS -Oth Operating Inc & Expend,T/A Vehicle Maintenance etc,Transport-Contract Hire,J01374,Transport Related Expenditure ,Contract Hire and Op Leasing  ,CC64,CSF - SEN CABS (RK02)                   ,1944,30/06/2016,R,BRUNSWICK CARS LTD            
875,CS -Oth Operating Inc & Expend,T/A Vehicle Maintenance etc,Transport-Contract Hire,J01374,Transport Related Expenditure ,Contract Hire and Op Leasing  ,CC64,CSF - SEN CABS (RK02)                   ,1980,30/06/2016,R,SNA TRANSPORT LTD             
876,CS -Oth Operating Inc & Expend,T/A Vehicle Maintenance etc,Transport-Contract Hire,J01374,Transport Related Expenditure ,Contract Hire and Op Leasing  ,CC64,CSF - SEN CABS (RK02)                   ,2076,30/06/2016,R,BRUNSWICK CARS LTD            
877,CS -Oth Operating Inc & Expend,T/A Vehicle Maintenance etc,Transport-Contract Hire,J01374,Transport Related Expenditure ,Contract Hire and Op Leasing  ,CC64,CSF - SEN CABS (RK02)                   ,2090,30/06/2016,R,SNA TRANSPORT LTD             
878,CS -Oth Operating Inc & Expend,T/A Vehicle Maintenance etc,Transport-Contract Hire,J01374,Transport Related Expenditure ,Contract Hire and Op Leasing  ,CC64,CSF - SEN CABS (RK02)                   ,2105.5,30/06/2016,R,BRUNSWICK CARS LTD            
879,CS -Oth Operating Inc & Expend,T/A Vehicle Maintenance etc,Transport-Contract Hire,J01374,Transport Related Expenditure ,Contract Hire and Op Leasing  ,CC64,CSF - SEN CABS (RK02)                   ,2204,30/05/2016,R,BRUNSWICK CARS LTD            
880,CS -Oth Operating Inc & Expend,T/A Vehicle Maintenance etc,Transport-Contract Hire,J01374,Transport Related Expenditure ,Contract Hire and Op Leasing  ,CC64,CSF - SEN CABS (RK02)                   ,2204,30/06/2016,R,BRUNSWICK CARS LTD            
881,CS -Oth Operating Inc & Expend,T/A Vehicle Maintenance etc,Transport-Contract Hire,J01374,Transport Related Expenditure ,Contract Hire and Op Leasing  ,CC64,CSF - SEN CABS (RK02)                   ,2297,30/06/2016,R,BRUNSWICK CARS LTD            
882,CS -Oth Operating Inc & Expend,T/A Vehicle Maintenance etc,Transport-Contract Hire,J01374,Transport Related Expenditure ,Contract Hire and Op Leasing  ,CC64,CSF - SEN CABS (RK02)                   ,2498.4,30/06/2016,R,SNA TRANSPORT LTD             
883,CS -Oth Operating Inc & Expend,T/A Vehicle Maintenance etc,Transport-Contract Hire,J01374,Transport Related Expenditure ,Contract Hire and Op Leasing  ,CC64,CSF - SEN CABS (RK02)                   ,2565,30/06/2016,R,SNA TRANSPORT LTD             
